Workbook

Sheet Overview
B3: Hydro One Transmission Contribution Model
B4: Goreway TS CCRA
B5: Hydro One Brampton

Sheet Project Inputs
A1: A: PROJECT INFORMATION
A3: To reset all user inputs, please click here:
A5: Analysis prepared by: | B5: Hydro One
A7: Plan Number:
A9: Project name: | B9: Goreway TS new (2nd) 230/28-28 kV DESN
A11: Description: | B11: 10 Year True Up Transformation Pool Capital Contribution
A13: Customer: | B13: Hydro One Brampton
A15: Project in-service date: | B15: 2010-05-23
A17: Type of Project: | B17: Transformation
A19: Customer Risk Classification | B19: Low | C19: Evaluation period (years): | E19: =VLOOKUP('Project Inputs'!B19,Menus!D12:E15,MATCH(C19,Menus!D11:E11,0),0) -> 25
A21: Alternate evaluation period (enter in years) | C21: =IF('Project Inputs'!B21>E19,"Warning - please select an alternate horizon that is less than the standard horizon of "&E19&" years.","Check: ok") -> Check: ok
A23: Rationale for selected economic evaluation period: | B23: Hydro One Brampton is a Distributor
A26: B: STAGE INFORMATION
A28: Current stage of economic evaluation: | B28: 2nd true-up | C28: =IF(OR(AND('Project Inputs'!B19="Low",OR('Project Inputs'!B28="4th true-up",'Project Inputs'!B28="5th true-up")),AND('Project Inputs'!B19="Medium-low",OR('Project Inputs'!B28="4th true-up",'Project Inputs'!B28="5th true-up")),AND('Project Inputs'!B19="Medium-high",OR('Project Inputs'!B28="4th true-up",'Project Inputs'!B28="5th true-up"))),"A true-up stage has been selected that does not exist for the selected customer risk classification. Please review the inputs.","Check: ok") -> Check: ok
A31: C: UP-FRONT COSTS:
A33: ='Standard Inputs'!A29 -> Land costs | B33: ='Capital Cont Inputs'!B15 -> 2010
A34: Enter total up-front capital costs ($k):
A37: ='Standard Inputs'!A30 -> Class 47 costs | B37: ='Capital Cont Inputs'!B15 -> 2010
A38: Enter total up-front capital costs (excluding AFUDC & OH - $k): | B38: 23871 | C38: =IF(AND(SUM(B38:B40)<>0,ISBLANK('Standard Inputs'!C30)),"Error - Decision Support has not assigned a class of asset for this input. Remove any inputs within this section","Check: ok") -> Check: ok
A39: Enter Overhead - $k
A40: Enter AFUDC - $k
A43: Removal costs | B43: ='Capital Cont Inputs'!B15 -> 2010
A44: Enter Cash Flows (excluding OH - $k):
A45: Enter Overhead - $k
A48: ='Standard Inputs'!A31 -> Decision Support defined costs (1) | B48: ='Capital Cont Inputs'!B15 -> 2010
A49: Enter total up-front capital costs (excluding AFUDC & OH - $k): | C49: =IF(AND(SUM(B49:B51)<>0,ISBLANK('Standard Inputs'!C31)),"Error - Decision Support has not assigned a class of asset for this input. Remove any inputs within this section","Check: ok") -> Check: ok
A50: Enter Overhead - $k
A51: Enter AFUDC - $k
A54: ='Standard Inputs'!A32 -> Decision Support defined costs (2) | B54: ='Capital Cont Inputs'!B15 -> 2010
A55: Enter total up-front capital costs (excluding AFUDC & OH - $k): | C55: =IF(AND(SUM(B55:B57)<>0,ISBLANK('Standard Inputs'!C32)),"Error - Decision Support has not assigned a class of asset for this input. Remove any inputs within this section","Check: ok") -> Check: ok
A56: Enter Overhead - $k
A57: Enter AFUDC - $k
A60: ='Standard Inputs'!A33 -> Decision Support defined costs (3) | B60: ='Capital Cont Inputs'!B15 -> 2010
A61: Enter total up-front capital costs (excluding AFUDC & OH - $k): | C61: =IF(AND(SUM(B61:B63)<>0,ISBLANK('Standard Inputs'!C33)),"Error - Decision Support has not assigned a class of asset for this input. Remove any inputs within this section","Check: ok") -> Check: ok
A62: Enter Overhead - $k
A63: Enter AFUDC - $k
A67: D: INCREMENTAL OM&A:
C69: ='Capital Cont Inputs'!C15 -> 2011 | D69: ='Capital Cont Inputs'!D15 -> 2012 | E69: ='Capital Cont Inputs'!E15 -> 2013 | F69: ='Capital Cont Inputs'!F15 -> 2014 | G69: ='Capital Cont Inputs'!G15 -> 2015 | H69: ='Capital Cont Inputs'!H15 -> 2016 | I69: ='Capital Cont Inputs'!I15 -> 2017 | J69: ='Capital Cont Inputs'!J15 -> 2018 | K69: ='Capital Cont Inputs'!K15 -> 2019 | L69: ='Capital Cont Inputs'!L15 -> 2020 | M69: ='Capital Cont Inputs'!M15 -> 2021 | N69: ='Capital Cont Inputs'!N15 -> 2022 | O69: ='Capital Cont Inputs'!O15 -> 2023 | P69: ='Capital Cont Inputs'!P15 -> 2024 | Q69: ='Capital Cont Inputs'!Q15 -> 2025 | R69: ='Capital Cont Inputs'!R15 -> 2026 | S69: ='Capital Cont Inputs'!S15 -> 2027 | T69: ='Capital Cont Inputs'!T15 -> 2028 | U69: ='Capital Cont Inputs'!U15 -> 2029 | V69: ='Capital Cont Inputs'!V15 -> 2030 | W69: ='Capital Cont Inputs'!W15 -> 2031 | X69: ='Capital Cont Inputs'!X15 -> 2032 | Y69: ='Capital Cont Inputs'!Y15 -> 2033 | Z69: ='Capital Cont Inputs'!Z15 -> 2034 | AA69: ='Capital Cont Inputs'!AA15 -> 2035
A70: OM&A input - $k | C70: 42 | D70: 42 | E70: 42 | F70: 42 | G70: 42 | H70: 42 | I70: 42 | J70: 42 | K70: 42 | L70: 42 | M70: 42 | N70: 42 | O70: 42 | P70: 42 | Q70: 42 | R70: 65 | S70: 65 | T70: 65 | U70: 65 | V70: 65 | W70: 65 | X70: 65 | Y70: 65 | Z70: 65 | AA70: 65
A73: E: LOAD INPUTS:
A75: Is this load based on calendar or project year? | B75: Project Year
A76: Has the load been load factor adjusted? | B76: Yes | C76: Enter PLI adj | D76: 1
B78: =IF($B$75="Project Year","Project Year Ended",$B$75) -> Project Year Ended | C78: =B78 -> Project Year Ended | D78: Project Year Ended | E78: Project Year Ended | F78: Project Year Ended | G78: Project Year Ended | H78: Project Year Ended | I78: Project Year Ended | J78: Project Year Ended | K78: Project Year Ended | L78: Project Year Ended | M78: Project Year Ended | N78: Project Year Ended | O78: Project Year Ended | P78: Project Year Ended | Q78: Project Year Ended | R78: Project Year Ended | S78: Project Year Ended | T78: Project Year Ended | U78: Project Year Ended | V78: Project Year Ended | W78: Project Year Ended | X78: Project Year Ended | Y78: Project Year Ended | Z78: Project Year Ended | AA78: Project Year Ended
B79: =IF(B75="Calendar Year",'Capital Cont Inputs'!B15,"") ->  | C79: ='Capital Cont Inputs'!C15 -> 2011 | D79: ='Capital Cont Inputs'!D15 -> 2012 | E79: ='Capital Cont Inputs'!E15 -> 2013 | F79: ='Capital Cont Inputs'!F15 -> 2014 | G79: ='Capital Cont Inputs'!G15 -> 2015 | H79: ='Capital Cont Inputs'!H15 -> 2016 | I79: ='Capital Cont Inputs'!I15 -> 2017 | J79: ='Capital Cont Inputs'!J15 -> 2018 | K79: ='Capital Cont Inputs'!K15 -> 2019 | L79: ='Capital Cont Inputs'!L15 -> 2020 | M79: ='Capital Cont Inputs'!M15 -> 2021 | N79: ='Capital Cont Inputs'!N15 -> 2022 | O79: ='Capital Cont Inputs'!O15 -> 2023 | P79: ='Capital Cont Inputs'!P15 -> 2024 | Q79: ='Capital Cont Inputs'!Q15 -> 2025 | R79: ='Capital Cont Inputs'!R15 -> 2026 | S79: ='Capital Cont Inputs'!S15 -> 2027 | T79: ='Capital Cont Inputs'!T15 -> 2028 | U79: ='Capital Cont Inputs'!U15 -> 2029 | V79: ='Capital Cont Inputs'!V15 -> 2030 | W79: ='Capital Cont Inputs'!W15 -> 2031 | X79: ='Capital Cont Inputs'!X15 -> 2032 | Y79: ='Capital Cont Inputs'!Y15 -> 2033 | Z79: ='Capital Cont Inputs'!Z15 -> 2034 | AA79: ='Capital Cont Inputs'!AA15 -> 2035
A80: Actual/Forecasted Load | B80: =C80 -> Actual | C80: =IF('Capital Cont Inputs'!B8<'Project Inputs'!C79,"Forecast","Actual") -> Actual | D80: =IF('Capital Cont Inputs'!B8<'Project Inputs'!D79,"Forecast","Actual") -> Actual | E80: =IF('Capital Cont Inputs'!B8<'Project Inputs'!E79,"Forecast","Actual") -> Actual | F80: =IF('Capital Cont Inputs'!B8<'Project Inputs'!F79,"Forecast","Actual") -> Actual | G80: =IF('Capital Cont Inputs'!B8<'Project Inputs'!G79,"Forecast","Actual") -> Actual | H80: Actual | I80: Actual | J80: Actual | K80: =IF('Capital Cont Inputs'!B8<'Project Inputs'!K79,"Forecast","Actual") -> Actual | L80: =IF('Capital Cont Inputs'!B8<'Project Inputs'!L79,"Forecast","Actual") -> Actual | M80: =IF('Capital Cont Inputs'!B8<'Project Inputs'!M79,"Forecast","Actual") -> Forecast | N80: =IF('Capital Cont Inputs'!B8<'Project Inputs'!N79,"Forecast","Actual") -> Forecast | O80: =IF('Capital Cont Inputs'!B8<'Project Inputs'!O79,"Forecast","Actual") -> Forecast | P80: =IF('Capital Cont Inputs'!B8<'Project Inputs'!P79,"Forecast","Actual") -> Forecast | Q80: =IF('Capital Cont Inputs'!B8<'Project Inputs'!Q79,"Forecast","Actual") -> Forecast | R80: =IF('Capital Cont Inputs'!B8<'Project Inputs'!R79,"Forecast","Actual") -> Forecast | S80: =IF('Capital Cont Inputs'!B8<'Project Inputs'!S79,"Forecast","Actual") -> Forecast | T80: =IF('Capital Cont Inputs'!B8<'Project Inputs'!T79,"Forecast","Actual") -> Forecast | U80: =IF('Capital Cont Inputs'!B8<'Project Inputs'!U79,"Forecast","Actual") -> Forecast | V80: =IF('Capital Cont Inputs'!B8<'Project Inputs'!V79,"Forecast","Actual") -> Forecast | W80: =IF('Capital Cont Inputs'!B8<'Project Inputs'!W79,"Forecast","Actual") -> Forecast | X80: =IF('Capital Cont Inputs'!B8<'Project Inputs'!X79,"Forecast","Actual") -> Forecast | Y80: =IF('Capital Cont Inputs'!B8<'Project Inputs'!Y79,"Forecast","Actual") -> Forecast | Z80: =IF('Capital Cont Inputs'!B8<'Project Inputs'!Z79,"Forecast","Actual") -> Forecast | AA80: =IF('Capital Cont Inputs'!B8<'Project Inputs'!AA79,"Forecast","Actual") -> Forecast
A81: Enter Load data by Year (MW) | C81: 21.26180917 | D81: 31.35384695 | E81: 29.59271892 | F81: 33.16229827 | G81: 40.47906394 | H81: 31.83579374 | I81: 42.63435444 | J81: 46.6358349 | K81: 47.73436657 | L81: 49.31130905 | M81: 54.09559515 | N81: 58.31781849 | O81: 62.37168764 | P81: 65.9458361 | Q81: 69.911763 | R81: 74.41029933 | S81: 78.79436044 | T81: 82.93702224 | U81: 87.53642255 | V81: 92.1605076 | W81: 95.82298243 | X81: 99.71285479 | Y81: 103.5145354 | Z81: 106.89774 | AA81: 110.7333098
A82: Enter Load adjustments (MW)
AB106: 2.015660804

Sheet Capital Cont Inputs
A1: SUMMARY OF CAPITAL CONTRIBUTIONS & ECONOMIC EVALUATION PERIOD
A3: Summary of Key Dates:
A4: In-service year | B4: =YEAR('Project Inputs'!B15) -> 2010
A5: Duration of Economic Evaluation | B5: =IF(ISNUMBER('Project Inputs'!B21),'Project Inputs'!B21,'Project Inputs'!E19) -> 25 | C5: ="Based on "&'Project Inputs'!B19&" "&'Project Inputs'!A19&IF(ISNUMBER('Project Inputs'!B21)," with alternate evaluation period of "&'Project Inputs'!B21&" years.",".") -> Based on Low Customer Risk Classification.
B7: Year | C7: Stage
A8: Current Stage Data | B8: =VLOOKUP('Project Inputs'!B19&" - "&'Project Inputs'!B28,'Standard Inputs'!$A$52:$F$84,MATCH('Standard Inputs'!$F$52,'Standard Inputs'!$A$52:$F$52,0),0) -> 2020 | C8: ='Project Inputs'!B28 -> 2nd true-up
A10: End of Economic Evaluation | B10: =B4+B5 -> 2035
A12: Economic Evaluation Period by Year: | B12: =IF(ISNUMBER(AlternateEvaluationYears),"Warning - an alternate evaluation period has been selected. This could result in an incorrect economic horizon schedule below. Please consult with your Decision Support contact.","Check: ok") -> Check: ok
B13: =IF(SUM('Standard Inputs'!C53:C84)<>0,"Warning - an alternate period has been used within the standard inputs worksheet. This could result in an incorrect economic horizon schedule below. Please review.","Check: ok") -> Check: ok | Q13: =IF(RiskLevel="Low","Note: the economic horizon schedule above contains a planned third true-up. This may not be required as per 6.5.3 section (c) of the Transmission System Code","Check: ok") -> Note: the economic horizon schedule above contains a planned third true-up. This may not be required as per 6.5.3 section (c) of the Transmission System Code
A14: Economic evaluation stages | B14: IEE | C14: =IF('Project Inputs'!$B$19="High",VLOOKUP('Capital Cont Inputs'!C16,'Standard Inputs'!$D$54:$E$60,MATCH('Standard Inputs'!$E$52,'Standard Inputs'!$D$52:$E$52,0),0),IF('Project Inputs'!$B$19="Medium-high",VLOOKUP('Capital Cont Inputs'!C16,'Standard Inputs'!$D$64:$E$68,MATCH('Standard Inputs'!$E$52,'Standard Inputs'!$D$52:$E$52,0),0),IF('Project Inputs'!$B$19="Medium-low",VLOOKUP('Capital Cont Inputs'!C16,'Standard Inputs'!$D$72:$E$76,MATCH('Standard Inputs'!$E$52,'Standard Inputs'!$D$52:$E$52,0),0),IF('Project Inputs'!$B$19="Low",VLOOKUP('Capital Cont Inputs'!C16,'Standard Inputs'!$D$80:$E$84,MATCH('Standard Inputs'!$E$52,'Standard Inputs'!$D$52:$E$52,0),0),"Error")))) ->  | D14: =IF('Project Inputs'!$B$19="High",VLOOKUP('Capital Cont Inputs'!D16,'Standard Inputs'!$D$54:$E$60,MATCH('Standard Inputs'!$E$52,'Standard Inputs'!$D$52:$E$52,0),0),IF('Project Inputs'!$B$19="Medium-high",VLOOKUP('Capital Cont Inputs'!D16,'Standard Inputs'!$D$64:$E$68,MATCH('Standard Inputs'!$E$52,'Standard Inputs'!$D$52:$E$52,0),0),IF('Project Inputs'!$B$19="Medium-low",VLOOKUP('Capital Cont Inputs'!D16,'Standard Inputs'!$D$72:$E$76,MATCH('Standard Inputs'!$E$52,'Standard Inputs'!$D$52:$E$52,0),0),IF('Project Inputs'!$B$19="Low",VLOOKUP('Capital Cont Inputs'!D16,'Standard Inputs'!$D$80:$E$84,MATCH('Standard Inputs'!$E$52,'Standard Inputs'!$D$52:$E$52,0),0),"Error")))) ->  | E14: =IF('Project Inputs'!$B$19="High",VLOOKUP('Capital Cont Inputs'!E16,'Standard Inputs'!$D$54:$E$60,MATCH('Standard Inputs'!$E$52,'Standard Inputs'!$D$52:$E$52,0),0),IF('Project Inputs'!$B$19="Medium-high",VLOOKUP('Capital Cont Inputs'!E16,'Standard Inputs'!$D$64:$E$68,MATCH('Standard Inputs'!$E$52,'Standard Inputs'!$D$52:$E$52,0),0),IF('Project Inputs'!$B$19="Medium-low",VLOOKUP('Capital Cont Inputs'!E16,'Standard Inputs'!$D$72:$E$76,MATCH('Standard Inputs'!$E$52,'Standard Inputs'!$D$52:$E$52,0),0),IF('Project Inputs'!$B$19="Low",VLOOKUP('Capital Cont Inputs'!E16,'Standard Inputs'!$D$80:$E$84,MATCH('Standard Inputs'!$E$52,'Standard Inputs'!$D$52:$E$52,0),0),"Error")))) ->  | F14: =IF('Project Inputs'!$B$19="High",VLOOKUP('Capital Cont Inputs'!F16,'Standard Inputs'!$D$54:$E$60,MATCH('Standard Inputs'!$E$52,'Standard Inputs'!$D$52:$E$52,0),0),IF('Project Inputs'!$B$19="Medium-high",VLOOKUP('Capital Cont Inputs'!F16,'Standard Inputs'!$D$64:$E$68,MATCH('Standard Inputs'!$E$52,'Standard Inputs'!$D$52:$E$52,0),0),IF('Project Inputs'!$B$19="Medium-low",VLOOKUP('Capital Cont Inputs'!F16,'Standard Inputs'!$D$72:$E$76,MATCH('Standard Inputs'!$E$52,'Standard Inputs'!$D$52:$E$52,0),0),IF('Project Inputs'!$B$19="Low",VLOOKUP('Capital Cont Inputs'!F16,'Standard Inputs'!$D$80:$E$84,MATCH('Standard Inputs'!$E$52,'Standard Inputs'!$D$52:$E$52,0),0),"Error")))) ->  | G14: =IF('Project Inputs'!$B$19="High",VLOOKUP('Capital Cont Inputs'!G16,'Standard Inputs'!$D$54:$E$60,MATCH('Standard Inputs'!$E$52,'Standard Inputs'!$D$52:$E$52,0),0),IF('Project Inputs'!$B$19="Medium-high",VLOOKUP('Capital Cont Inputs'!G16,'Standard Inputs'!$D$64:$E$68,MATCH('Standard Inputs'!$E$52,'Standard Inputs'!$D$52:$E$52,0),0),IF('Project Inputs'!$B$19="Medium-low",VLOOKUP('Capital Cont Inputs'!G16,'Standard Inputs'!$D$72:$E$76,MATCH('Standard Inputs'!$E$52,'Standard Inputs'!$D$52:$E$52,0),0),IF('Project Inputs'!$B$19="Low",VLOOKUP('Capital Cont Inputs'!G16,'Standard Inputs'!$D$80:$E$84,MATCH('Standard Inputs'!$E$52,'Standard Inputs'!$D$52:$E$52,0),0),"Error")))) -> 1st true-up | H14: =IF('Project Inputs'!$B$19="High",VLOOKUP('Capital Cont Inputs'!H16,'Standard Inputs'!$D$54:$E$60,MATCH('Standard Inputs'!$E$52,'Standard Inputs'!$D$52:$E$52,0),0),IF('Project Inputs'!$B$19="Medium-high",VLOOKUP('Capital Cont Inputs'!H16,'Standard Inputs'!$D$64:$E$68,MATCH('Standard Inputs'!$E$52,'Standard Inputs'!$D$52:$E$52,0),0),IF('Project Inputs'!$B$19="Medium-low",VLOOKUP('Capital Cont Inputs'!H16,'Standard Inputs'!$D$72:$E$76,MATCH('Standard Inputs'!$E$52,'Standard Inputs'!$D$52:$E$52,0),0),IF('Project Inputs'!$B$19="Low",VLOOKUP('Capital Cont Inputs'!H16,'Standard Inputs'!$D$80:$E$84,MATCH('Standard Inputs'!$E$52,'Standard Inputs'!$D$52:$E$52,0),0),"Error")))) ->  | I14: =IF('Project Inputs'!$B$19="High",VLOOKUP('Capital Cont Inputs'!I16,'Standard Inputs'!$D$54:$E$60,MATCH('Standard Inputs'!$E$52,'Standard Inputs'!$D$52:$E$52,0),0),IF('Project Inputs'!$B$19="Medium-high",VLOOKUP('Capital Cont Inputs'!I16,'Standard Inputs'!$D$64:$E$68,MATCH('Standard Inputs'!$E$52,'Standard Inputs'!$D$52:$E$52,0),0),IF('Project Inputs'!$B$19="Medium-low",VLOOKUP('Capital Cont Inputs'!I16,'Standard Inputs'!$D$72:$E$76,MATCH('Standard Inputs'!$E$52,'Standard Inputs'!$D$52:$E$52,0),0),IF('Project Inputs'!$B$19="Low",VLOOKUP('Capital Cont Inputs'!I16,'Standard Inputs'!$D$80:$E$84,MATCH('Standard Inputs'!$E$52,'Standard Inputs'!$D$52:$E$52,0),0),"Error")))) ->  | J14: =IF('Project Inputs'!$B$19="High",VLOOKUP('Capital Cont Inputs'!J16,'Standard Inputs'!$D$54:$E$60,MATCH('Standard Inputs'!$E$52,'Standard Inputs'!$D$52:$E$52,0),0),IF('Project Inputs'!$B$19="Medium-high",VLOOKUP('Capital Cont Inputs'!J16,'Standard Inputs'!$D$64:$E$68,MATCH('Standard Inputs'!$E$52,'Standard Inputs'!$D$52:$E$52,0),0),IF('Project Inputs'!$B$19="Medium-low",VLOOKUP('Capital Cont Inputs'!J16,'Standard Inputs'!$D$72:$E$76,MATCH('Standard Inputs'!$E$52,'Standard Inputs'!$D$52:$E$52,0),0),IF('Project Inputs'!$B$19="Low",VLOOKUP('Capital Cont Inputs'!J16,'Standard Inputs'!$D$80:$E$84,MATCH('Standard Inputs'!$E$52,'Standard Inputs'!$D$52:$E$52,0),0),"Error")))) ->  | K14: =IF('Project Inputs'!$B$19="High",VLOOKUP('Capital Cont Inputs'!K16,'Standard Inputs'!$D$54:$E$60,MATCH('Standard Inputs'!$E$52,'Standard Inputs'!$D$52:$E$52,0),0),IF('Project Inputs'!$B$19="Medium-high",VLOOKUP('Capital Cont Inputs'!K16,'Standard Inputs'!$D$64:$E$68,MATCH('Standard Inputs'!$E$52,'Standard Inputs'!$D$52:$E$52,0),0),IF('Project Inputs'!$B$19="Medium-low",VLOOKUP('Capital Cont Inputs'!K16,'Standard Inputs'!$D$72:$E$76,MATCH('Standard Inputs'!$E$52,'Standard Inputs'!$D$52:$E$52,0),0),IF('Project Inputs'!$B$19="Low",VLOOKUP('Capital Cont Inputs'!K16,'Standard Inputs'!$D$80:$E$84,MATCH('Standard Inputs'!$E$52,'Standard Inputs'!$D$52:$E$52,0),0),"Error")))) ->  | L14: =IF('Project Inputs'!$B$19="High",VLOOKUP('Capital Cont Inputs'!L16,'Standard Inputs'!$D$54:$E$60,MATCH('Standard Inputs'!$E$52,'Standard Inputs'!$D$52:$E$52,0),0),IF('Project Inputs'!$B$19="Medium-high",VLOOKUP('Capital Cont Inputs'!L16,'Standard Inputs'!$D$64:$E$68,MATCH('Standard Inputs'!$E$52,'Standard Inputs'!$D$52:$E$52,0),0),IF('Project Inputs'!$B$19="Medium-low",VLOOKUP('Capital Cont Inputs'!L16,'Standard Inputs'!$D$72:$E$76,MATCH('Standard Inputs'!$E$52,'Standard Inputs'!$D$52:$E$52,0),0),IF('Project Inputs'!$B$19="Low",VLOOKUP('Capital Cont Inputs'!L16,'Standard Inputs'!$D$80:$E$84,MATCH('Standard Inputs'!$E$52,'Standard Inputs'!$D$52:$E$52,0),0),"Error")))) -> 2nd true-up | M14: =IF('Project Inputs'!$B$19="High",VLOOKUP('Capital Cont Inputs'!M16,'Standard Inputs'!$D$54:$E$60,MATCH('Standard Inputs'!$E$52,'Standard Inputs'!$D$52:$E$52,0),0),IF('Project Inputs'!$B$19="Medium-high",VLOOKUP('Capital Cont Inputs'!M16,'Standard Inputs'!$D$64:$E$68,MATCH('Standard Inputs'!$E$52,'Standard Inputs'!$D$52:$E$52,0),0),IF('Project Inputs'!$B$19="Medium-low",VLOOKUP('Capital Cont Inputs'!M16,'Standard Inputs'!$D$72:$E$76,MATCH('Standard Inputs'!$E$52,'Standard Inputs'!$D$52:$E$52,0),0),IF('Project Inputs'!$B$19="Low",VLOOKUP('Capital Cont Inputs'!M16,'Standard Inputs'!$D$80:$E$84,MATCH('Standard Inputs'!$E$52,'Standard Inputs'!$D$52:$E$52,0),0),"Error")))) ->  | N14: =IF('Project Inputs'!$B$19="High",VLOOKUP('Capital Cont Inputs'!N16,'Standard Inputs'!$D$54:$E$60,MATCH('Standard Inputs'!$E$52,'Standard Inputs'!$D$52:$E$52,0),0),IF('Project Inputs'!$B$19="Medium-high",VLOOKUP('Capital Cont Inputs'!N16,'Standard Inputs'!$D$64:$E$68,MATCH('Standard Inputs'!$E$52,'Standard Inputs'!$D$52:$E$52,0),0),IF('Project Inputs'!$B$19="Medium-low",VLOOKUP('Capital Cont Inputs'!N16,'Standard Inputs'!$D$72:$E$76,MATCH('Standard Inputs'!$E$52,'Standard Inputs'!$D$52:$E$52,0),0),IF('Project Inputs'!$B$19="Low",VLOOKUP('Capital Cont Inputs'!N16,'Standard Inputs'!$D$80:$E$84,MATCH('Standard Inputs'!$E$52,'Standard Inputs'!$D$52:$E$52,0),0),"Error")))) ->  | O14: =IF('Project Inputs'!$B$19="High",VLOOKUP('Capital Cont Inputs'!O16,'Standard Inputs'!$D$54:$E$60,MATCH('Standard Inputs'!$E$52,'Standard Inputs'!$D$52:$E$52,0),0),IF('Project Inputs'!$B$19="Medium-high",VLOOKUP('Capital Cont Inputs'!O16,'Standard Inputs'!$D$64:$E$68,MATCH('Standard Inputs'!$E$52,'Standard Inputs'!$D$52:$E$52,0),0),IF('Project Inputs'!$B$19="Medium-low",VLOOKUP('Capital Cont Inputs'!O16,'Standard Inputs'!$D$72:$E$76,MATCH('Standard Inputs'!$E$52,'Standard Inputs'!$D$52:$E$52,0),0),IF('Project Inputs'!$B$19="Low",VLOOKUP('Capital Cont Inputs'!O16,'Standard Inputs'!$D$80:$E$84,MATCH('Standard Inputs'!$E$52,'Standard Inputs'!$D$52:$E$52,0),0),"Error")))) ->  | P14: =IF('Project Inputs'!$B$19="High",VLOOKUP('Capital Cont Inputs'!P16,'Standard Inputs'!$D$54:$E$60,MATCH('Standard Inputs'!$E$52,'Standard Inputs'!$D$52:$E$52,0),0),IF('Project Inputs'!$B$19="Medium-high",VLOOKUP('Capital Cont Inputs'!P16,'Standard Inputs'!$D$64:$E$68,MATCH('Standard Inputs'!$E$52,'Standard Inputs'!$D$52:$E$52,0),0),IF('Project Inputs'!$B$19="Medium-low",VLOOKUP('Capital Cont Inputs'!P16,'Standard Inputs'!$D$72:$E$76,MATCH('Standard Inputs'!$E$52,'Standard Inputs'!$D$52:$E$52,0),0),IF('Project Inputs'!$B$19="Low",VLOOKUP('Capital Cont Inputs'!P16,'Standard Inputs'!$D$80:$E$84,MATCH('Standard Inputs'!$E$52,'Standard Inputs'!$D$52:$E$52,0),0),"Error")))) ->  | Q14: =IF('Project Inputs'!$B$19="High",VLOOKUP('Capital Cont Inputs'!Q16,'Standard Inputs'!$D$54:$E$60,MATCH('Standard Inputs'!$E$52,'Standard Inputs'!$D$52:$E$52,0),0),IF('Project Inputs'!$B$19="Medium-high",VLOOKUP('Capital Cont Inputs'!Q16,'Standard Inputs'!$D$64:$E$68,MATCH('Standard Inputs'!$E$52,'Standard Inputs'!$D$52:$E$52,0),0),IF('Project Inputs'!$B$19="Medium-low",VLOOKUP('Capital Cont Inputs'!Q16,'Standard Inputs'!$D$72:$E$76,MATCH('Standard Inputs'!$E$52,'Standard Inputs'!$D$52:$E$52,0),0),IF('Project Inputs'!$B$19="Low",VLOOKUP('Capital Cont Inputs'!Q16,'Standard Inputs'!$D$80:$E$84,MATCH('Standard Inputs'!$E$52,'Standard Inputs'!$D$52:$E$52,0),0),"Error")))) -> 3rd true-up | R14: =IF('Project Inputs'!$B$19="High",VLOOKUP('Capital Cont Inputs'!R16,'Standard Inputs'!$D$54:$E$60,MATCH('Standard Inputs'!$E$52,'Standard Inputs'!$D$52:$E$52,0),0),IF('Project Inputs'!$B$19="Medium-high",VLOOKUP('Capital Cont Inputs'!R16,'Standard Inputs'!$D$64:$E$68,MATCH('Standard Inputs'!$E$52,'Standard Inputs'!$D$52:$E$52,0),0),IF('Project Inputs'!$B$19="Medium-low",VLOOKUP('Capital Cont Inputs'!R16,'Standard Inputs'!$D$72:$E$76,MATCH('Standard Inputs'!$E$52,'Standard Inputs'!$D$52:$E$52,0),0),IF('Project Inputs'!$B$19="Low",VLOOKUP('Capital Cont Inputs'!R16,'Standard Inputs'!$D$80:$E$84,MATCH('Standard Inputs'!$E$52,'Standard Inputs'!$D$52:$E$52,0),0),"Error")))) ->  | S14: =IF('Project Inputs'!$B$19="High",VLOOKUP('Capital Cont Inputs'!S16,'Standard Inputs'!$D$54:$E$60,MATCH('Standard Inputs'!$E$52,'Standard Inputs'!$D$52:$E$52,0),0),IF('Project Inputs'!$B$19="Medium-high",VLOOKUP('Capital Cont Inputs'!S16,'Standard Inputs'!$D$64:$E$68,MATCH('Standard Inputs'!$E$52,'Standard Inputs'!$D$52:$E$52,0),0),IF('Project Inputs'!$B$19="Medium-low",VLOOKUP('Capital Cont Inputs'!S16,'Standard Inputs'!$D$72:$E$76,MATCH('Standard Inputs'!$E$52,'Standard Inputs'!$D$52:$E$52,0),0),IF('Project Inputs'!$B$19="Low",VLOOKUP('Capital Cont Inputs'!S16,'Standard Inputs'!$D$80:$E$84,MATCH('Standard Inputs'!$E$52,'Standard Inputs'!$D$52:$E$52,0),0),"Error")))) ->  | T14: =IF('Project Inputs'!$B$19="High",VLOOKUP('Capital Cont Inputs'!T16,'Standard Inputs'!$D$54:$E$60,MATCH('Standard Inputs'!$E$52,'Standard Inputs'!$D$52:$E$52,0),0),IF('Project Inputs'!$B$19="Medium-high",VLOOKUP('Capital Cont Inputs'!T16,'Standard Inputs'!$D$64:$E$68,MATCH('Standard Inputs'!$E$52,'Standard Inputs'!$D$52:$E$52,0),0),IF('Project Inputs'!$B$19="Medium-low",VLOOKUP('Capital Cont Inputs'!T16,'Standard Inputs'!$D$72:$E$76,MATCH('Standard Inputs'!$E$52,'Standard Inputs'!$D$52:$E$52,0),0),IF('Project Inputs'!$B$19="Low",VLOOKUP('Capital Cont Inputs'!T16,'Standard Inputs'!$D$80:$E$84,MATCH('Standard Inputs'!$E$52,'Standard Inputs'!$D$52:$E$52,0),0),"Error")))) ->  | U14: =IF('Project Inputs'!$B$19="High",VLOOKUP('Capital Cont Inputs'!U16,'Standard Inputs'!$D$54:$E$60,MATCH('Standard Inputs'!$E$52,'Standard Inputs'!$D$52:$E$52,0),0),IF('Project Inputs'!$B$19="Medium-high",VLOOKUP('Capital Cont Inputs'!U16,'Standard Inputs'!$D$64:$E$68,MATCH('Standard Inputs'!$E$52,'Standard Inputs'!$D$52:$E$52,0),0),IF('Project Inputs'!$B$19="Medium-low",VLOOKUP('Capital Cont Inputs'!U16,'Standard Inputs'!$D$72:$E$76,MATCH('Standard Inputs'!$E$52,'Standard Inputs'!$D$52:$E$52,0),0),IF('Project Inputs'!$B$19="Low",VLOOKUP('Capital Cont Inputs'!U16,'Standard Inputs'!$D$80:$E$84,MATCH('Standard Inputs'!$E$52,'Standard Inputs'!$D$52:$E$52,0),0),"Error")))) ->  | V14: =IF('Project Inputs'!$B$19="High",VLOOKUP('Capital Cont Inputs'!V16,'Standard Inputs'!$D$54:$E$60,MATCH('Standard Inputs'!$E$52,'Standard Inputs'!$D$52:$E$52,0),0),IF('Project Inputs'!$B$19="Medium-high",VLOOKUP('Capital Cont Inputs'!V16,'Standard Inputs'!$D$64:$E$68,MATCH('Standard Inputs'!$E$52,'Standard Inputs'!$D$52:$E$52,0),0),IF('Project Inputs'!$B$19="Medium-low",VLOOKUP('Capital Cont Inputs'!V16,'Standard Inputs'!$D$72:$E$76,MATCH('Standard Inputs'!$E$52,'Standard Inputs'!$D$52:$E$52,0),0),IF('Project Inputs'!$B$19="Low",VLOOKUP('Capital Cont Inputs'!V16,'Standard Inputs'!$D$80:$E$84,MATCH('Standard Inputs'!$E$52,'Standard Inputs'!$D$52:$E$52,0),0),"Error")))) ->  | W14: =IF('Project Inputs'!$B$19="High",VLOOKUP('Capital Cont Inputs'!W16,'Standard Inputs'!$D$54:$E$60,MATCH('Standard Inputs'!$E$52,'Standard Inputs'!$D$52:$E$52,0),0),IF('Project Inputs'!$B$19="Medium-high",VLOOKUP('Capital Cont Inputs'!W16,'Standard Inputs'!$D$64:$E$68,MATCH('Standard Inputs'!$E$52,'Standard Inputs'!$D$52:$E$52,0),0),IF('Project Inputs'!$B$19="Medium-low",VLOOKUP('Capital Cont Inputs'!W16,'Standard Inputs'!$D$72:$E$76,MATCH('Standard Inputs'!$E$52,'Standard Inputs'!$D$52:$E$52,0),0),IF('Project Inputs'!$B$19="Low",VLOOKUP('Capital Cont Inputs'!W16,'Standard Inputs'!$D$80:$E$84,MATCH('Standard Inputs'!$E$52,'Standard Inputs'!$D$52:$E$52,0),0),"Error")))) ->  | X14: =IF('Project Inputs'!$B$19="High",VLOOKUP('Capital Cont Inputs'!X16,'Standard Inputs'!$D$54:$E$60,MATCH('Standard Inputs'!$E$52,'Standard Inputs'!$D$52:$E$52,0),0),IF('Project Inputs'!$B$19="Medium-high",VLOOKUP('Capital Cont Inputs'!X16,'Standard Inputs'!$D$64:$E$68,MATCH('Standard Inputs'!$E$52,'Standard Inputs'!$D$52:$E$52,0),0),IF('Project Inputs'!$B$19="Medium-low",VLOOKUP('Capital Cont Inputs'!X16,'Standard Inputs'!$D$72:$E$76,MATCH('Standard Inputs'!$E$52,'Standard Inputs'!$D$52:$E$52,0),0),IF('Project Inputs'!$B$19="Low",VLOOKUP('Capital Cont Inputs'!X16,'Standard Inputs'!$D$80:$E$84,MATCH('Standard Inputs'!$E$52,'Standard Inputs'!$D$52:$E$52,0),0),"Error")))) ->  | Y14: =IF('Project Inputs'!$B$19="High",VLOOKUP('Capital Cont Inputs'!Y16,'Standard Inputs'!$D$54:$E$60,MATCH('Standard Inputs'!$E$52,'Standard Inputs'!$D$52:$E$52,0),0),IF('Project Inputs'!$B$19="Medium-high",VLOOKUP('Capital Cont Inputs'!Y16,'Standard Inputs'!$D$64:$E$68,MATCH('Standard Inputs'!$E$52,'Standard Inputs'!$D$52:$E$52,0),0),IF('Project Inputs'!$B$19="Medium-low",VLOOKUP('Capital Cont Inputs'!Y16,'Standard Inputs'!$D$72:$E$76,MATCH('Standard Inputs'!$E$52,'Standard Inputs'!$D$52:$E$52,0),0),IF('Project Inputs'!$B$19="Low",VLOOKUP('Capital Cont Inputs'!Y16,'Standard Inputs'!$D$80:$E$84,MATCH('Standard Inputs'!$E$52,'Standard Inputs'!$D$52:$E$52,0),0),"Error")))) ->  | Z14: =IF('Project Inputs'!$B$19="High",VLOOKUP('Capital Cont Inputs'!Z16,'Standard Inputs'!$D$54:$E$60,MATCH('Standard Inputs'!$E$52,'Standard Inputs'!$D$52:$E$52,0),0),IF('Project Inputs'!$B$19="Medium-high",VLOOKUP('Capital Cont Inputs'!Z16,'Standard Inputs'!$D$64:$E$68,MATCH('Standard Inputs'!$E$52,'Standard Inputs'!$D$52:$E$52,0),0),IF('Project Inputs'!$B$19="Medium-low",VLOOKUP('Capital Cont Inputs'!Z16,'Standard Inputs'!$D$72:$E$76,MATCH('Standard Inputs'!$E$52,'Standard Inputs'!$D$52:$E$52,0),0),IF('Project Inputs'!$B$19="Low",VLOOKUP('Capital Cont Inputs'!Z16,'Standard Inputs'!$D$80:$E$84,MATCH('Standard Inputs'!$E$52,'Standard Inputs'!$D$52:$E$52,0),0),"Error")))) ->  | AA14: =IF('Project Inputs'!$B$19="High",VLOOKUP('Capital Cont Inputs'!AA16,'Standard Inputs'!$D$54:$E$60,MATCH('Standard Inputs'!$E$52,'Standard Inputs'!$D$52:$E$52,0),0),IF('Project Inputs'!$B$19="Medium-high",VLOOKUP('Capital Cont Inputs'!AA16,'Standard Inputs'!$D$64:$E$68,MATCH('Standard Inputs'!$E$52,'Standard Inputs'!$D$52:$E$52,0),0),IF('Project Inputs'!$B$19="Medium-low",VLOOKUP('Capital Cont Inputs'!AA16,'Standard Inputs'!$D$72:$E$76,MATCH('Standard Inputs'!$E$52,'Standard Inputs'!$D$52:$E$52,0),0),IF('Project Inputs'!$B$19="Low",VLOOKUP('Capital Cont Inputs'!AA16,'Standard Inputs'!$D$80:$E$84,MATCH('Standard Inputs'!$E$52,'Standard Inputs'!$D$52:$E$52,0),0),"Error")))) -> 
A15: Years | B15: =B4 -> 2010 | C15: =IF(ISNUMBER(B15),IF(B15+1>$B$10,"",B15+1),"") -> 2011 | D15: 2012 | E15: 2013 | F15: 2014 | G15: 2015 | H15: 2016 | I15: 2017 | J15: 2018 | K15: 2019 | L15: 2020 | M15: 2021 | N15: 2022 | O15: 2023 | P15: 2024 | Q15: 2025 | R15: 2026 | S15: 2027 | T15: 2028 | U15: 2029 | V15: 2030 | W15: 2031 | X15: 2032 | Y15: 2033 | Z15: 2034 | AA15: 2035
A16: Project Year | B16: =IF(ISNUMBER(B15),0,"") -> 0 | C16: =IF(ISNUMBER(C15),B16+1,"") -> 1 | D16: 2 | E16: 3 | F16: 4 | G16: 5 | H16: 6 | I16: 7 | J16: 8 | K16: 9 | L16: 10 | M16: 11 | N16: 12 | O16: 13 | P16: 14 | Q16: 15 | R16: 16 | S16: 17 | T16: 18 | U16: 19 | V16: 20 | W16: 21 | X16: 22 | Y16: 23 | Z16: 24 | AA16: 25 | AC16: Capital Contribution Input Warnings
A17: Actual Contribution Payments made - $k | B17: 9823.70384 | G17: 618.82 | AC17: =B15 -> 2010 | AD17: 2011 | AE17: 2012 | AF17: 2013 | AG17: 2014 | AH17: 2015 | AI17: 2016 | AJ17: 2017 | AK17: 2018 | AL17: 2019 | AM17: 2020 | AN17: 2021 | AO17: 2022 | AP17: 2023 | AQ17: 2024 | AR17: 2025 | AS17: 2026 | AT17: 2027 | AU17: 2028 | AV17: 2029 | AW17: 2030 | AX17: 2031 | AY17: 2032 | AZ17: 2033 | BA17: 2034 | BB17: 2035
A18: Current Contribution Payment - $k | L18: 5659.830312
A19: =IF(ISNA(HLOOKUP("Warning",$AC19:$BB19,1,0)),"Check: ok","Warning, a cap con't has been improperly input beyond the current stage. Remove all con't inputs beyond "&'Capital Cont Inputs'!B8&".") -> Check: ok | AC19: =IF(AND(B15>$B$8,(B17+B18)<>0),"Warning","Check: Ok") -> Check: Ok | AD19: Check: Ok | AE19: Check: Ok | AF19: Check: Ok | AG19: Check: Ok | AH19: Check: Ok | AI19: Check: Ok | AJ19: Check: Ok | AK19: Check: Ok | AL19: Check: Ok | AM19: Check: Ok | AN19: Check: Ok | AO19: Check: Ok | AP19: Check: Ok | AQ19: Check: Ok | AR19: Check: Ok | AS19: Check: Ok | AT19: Check: Ok | AU19: Check: Ok | AV19: Check: Ok | AW19: Check: Ok | AX19: Check: Ok | AY19: Check: Ok | AZ19: Check: Ok | BA19: Check: Ok | BB19: Check: Ok
A20: =IF(ISNA(HLOOKUP("Warning",$AC20:$BB20,1,0)),"Check: ok","Warning, an actual cap con't has been improperly input in the current stage. Remove the actual con't in "&'Capital Cont Inputs'!B8&".") -> Check: ok | AC20: =IF(AND('Project Inputs'!B28="Estimated cost",B17<>0),"Warning","Check: Ok") -> Check: Ok | AD20: =IF(AND(C15=$B$8,C17<>0),"Warning","Check: Ok") -> Check: Ok | AE20: Check: Ok | AF20: Check: Ok | AG20: Check: Ok | AH20: Check: Ok | AI20: Check: Ok | AJ20: Check: Ok | AK20: Check: Ok | AL20: Check: Ok | AM20: Check: Ok | AN20: Check: Ok | AO20: Check: Ok | AP20: Check: Ok | AQ20: Check: Ok | AR20: Check: Ok | AS20: Check: Ok | AT20: Check: Ok | AU20: Check: Ok | AV20: Check: Ok | AW20: Check: Ok | AX20: Check: Ok | AY20: Check: Ok | AZ20: Check: Ok | BA20: Check: Ok | BB20: Check: Ok
A21: =IF(ISNA(HLOOKUP("Warning",$AC21:$BB21,1,0)),"Check: ok","Warning, a cap con't has been improperly input in a non true-up year. Remove all con't inputs in non true-up years.") -> Check: ok | AC21: Check: Ok | AD21: =IF(AND(ISNA(C14),(C18+C17)<>0),"Warning","Check: Ok") -> Check: Ok | AE21: Check: Ok | AF21: Check: Ok | AG21: Check: Ok | AH21: Check: Ok | AI21: Check: Ok | AJ21: Check: Ok | AK21: Check: Ok | AL21: Check: Ok | AM21: Check: Ok | AN21: Check: Ok | AO21: Check: Ok | AP21: Check: Ok | AQ21: Check: Ok | AR21: Check: Ok | AS21: Check: Ok | AT21: Check: Ok | AU21: Check: Ok | AV21: Check: Ok | AW21: Check: Ok | AX21: Check: Ok | AY21: Check: Ok | AZ21: Check: Ok | BA21: Check: Ok | BB21: Check: Ok
A24: CALCULATIONS:
A26: Calculation of initial economic evaluation (IEE) / true-up:
A27: Is the NPV before contributions less than 0? | B27: =IF(ROUND('NPV Calc'!D53,4)<0,"Yes","No") -> Yes
A28: Or
A29: Have contributions been paid (excluding estimated IEE pre-payments)? | B29: =IF(AND(OR(Stage='Standard Inputs'!E55, Stage='Standard Inputs'!E54),B17>0),"N/A",IF(OR(B17<>0,B18<>0,SUM(C17:AA18)<>0),"Yes","No")) -> Yes
A31: Is the model ready to proceed with the true-up calculation? | B31: =IF(AND(OR(B29="Yes",B27="Yes"),B45="Revenue Guarantee"),"Warning",IF(OR(B29="Yes",B27="Yes"),"Yes","No")) -> Yes
A32: =IF(TrueUpFlag="Warning","The model is currently set to a revenue guarantee, which is resulting in a warning. To correct, please run the IEE / True-up Calculation","Check ok") -> Check ok
A37: Calculation of Revenue Guarantee:
A39: Is the model ready to proceed with the Revenue Guarantee calculation? | B39: =IF(B31="No","Yes","No") -> No
A42: Revenue guarantee factor: | B42: 1
A45: Last completed macro calculation: | B45: IEE/True-up
A47: REPORTING / PRINT:
A49: 1. Standard Report:
A50: - Contains a detailed summary of the calculation of capital contributions or revenue requirement
A52: Please select which report you would like to review: | B52: IEE/True-up | D52: =IF(OR((AND(B39="Yes",B45="IEE/True-up")),(AND(B31="Yes",B52="Revenue Guarantee"))),"Warning - the revenue guarantee has not been calculated, please review detail above.","Check: ok") -> Check: ok
A53: Display capital contributions in the standard report? | B53: =IF(B52="Revenue Guarantee","N/A",IF(AND(B52="IEE/True-up",B39="Yes",B29="No"),"No","Yes")) -> Yes
A55: To print this report, please click here:
A57: 2. Secondary Reports: for Decision Support use:
A58: - Report After Cont $k
A59: - True-up Report

Sheet Standard Inputs
A4: REVENUE INPUTS:
A5: Pool | B5: Tariffs ($/kW/Month)
A6: Line | B6: 0.59
A7: Network | B7: 2.31
A8: Transformation | B8: 1.61
A10: DISCOUNT RATE INPUTS:
A12: After-tax discount rate | B12: 0.05681332
A14: TAX INPUTS:
A16: Federal Income Tax Rate | B16: 0.195
A17: Ontario Income Tax Rate | B17: 0.14
A18: Surtax | B18: 0
A19: Income Tax rate | B19: =B16+B17+B18 -> 0.335
A21: Large Corporation Tax Rate (LCT) | B21: 0
A22: Ontario Capital Tax Rate (OCT) | B22: 0.00225
A24: Municipal tax estimated based on gross or net capital? | B24: Net
A25: Municipal (Property) Tax | B25: 0.006251837335
A27: CCA:
B28: Class Number | C28: CCA Rates
A29: Land costs | B29: N/A | C29: N/A | E29: Land does not attract CCA
A30: ="Class "&B30&" costs" -> Class 47 costs | B30: 47 | C30: =IF(B30=47,0.08,0.04) -> 0.08 | E30: Transmission equipment
A31: Decision Support defined costs (1)
A32: Decision Support defined costs (2)
A33: Decision Support defined costs (3)
A36: WORKING CAPITAL INPUTS:
A38: Revenue Lag | B38: 36.96
A39: OM&A Lead | B39: 19.21
A40: Net Lag | B40: =B38-B39 -> 17.75
A41: Net Lag / 365 | B41: =B40/365 -> 0.04863013699
A44: REPORTING INPUTS:
A46: GST | B46: 0.05
A48: Working capital detail (report description): | B48: As per Lead Lag study
A50: ALTERNATE HORIZON INPUTS:
A52: Risk Level | B52: Standard Period | C52: Alternate Period | D52: In-use Period | E52: Stage | F52: Year
A53: High
A54: =$A$53&" - "&E54 -> High - Estimated cost | B54: 0 | D54: =IF(ISNUMBER(C54),C54,B54) -> 0 | E54: Estimated cost | F54: ='Capital Cont Inputs'!B15 -> 2010 | G54: =IF(C54>$D$60,"Warning - you cannot input an alternate horizon that is greater than the standard horizon given the selected risk classification","Check: ok") -> Check: ok
A55: =$A$53&" - "&E55 -> High - Actual cost | B55: 0 | D55: 0 | E55: Actual cost | F55: =$F$54+D55 -> 2010 | G55: =IF(C55>$D$60,"Warning - you cannot input an alternate horizon that is greater than the standard horizon given the selected risk classification","Check: ok") -> Check: ok
A56: =$A$53&" - "&E56 -> High - 1st true-up | B56: =B54+1 -> 1 | D56: 1 | E56: 1st true-up | F56: 2011 | G56: Check: ok
A57: High - 2nd true-up | B57: =B56+1 -> 2 | D57: 2 | E57: 2nd true-up | F57: 2012 | G57: Check: ok
A58: High - 3rd true-up | B58: =B57+1 -> 3 | D58: 3 | E58: 3rd true-up | F58: 2013 | G58: Check: ok
A59: High - 4th true-up | B59: =B58+1 -> 4 | D59: 4 | E59: 4th true-up | F59: 2014 | G59: Check: ok
A60: High - 5th true-up | B60: =B59+1 -> 5 | D60: 5 | E60: 5th true-up | F60: 2015 | G60: Check: ok
A63: Medium-high
A64: =$A$63&" - "&E64 -> Medium-high - Estimated cost | B64: 0 | D64: =IF(ISNUMBER(C64),C64,B64) -> 0 | E64: =E54 -> Estimated cost | F64: ='Capital Cont Inputs'!B15 -> 2010 | G64: =IF(C64>$D$68,"Warning - you cannot input an alternate horizon that is greater than the standard horizon given the selected risk classification","Check: ok") -> Check: ok
A65: =$A$63&" - "&E65 -> Medium-high - Actual cost | B65: 0 | D65: =IF(ISNUMBER(C65),C65,B65) -> 0 | E65: =E55 -> Actual cost | F65: =$F$64+D65 -> 2010 | G65: =IF(C65>$D$68,"Warning - you cannot input an alternate horizon that is greater than the standard horizon given the selected risk classification","Check: ok") -> Check: ok
A66: Medium-high - 1st true-up | B66: =B64+3 -> 3 | D66: =IF(ISNUMBER(C66),C66,B66) -> 3 | E66: =E56 -> 1st true-up | F66: =$F$64+D66 -> 2013 | G66: Check: ok
A67: Medium-high - 2nd true-up | B67: =B66+2 -> 5 | D67: =IF(ISNUMBER(C67),C67,B67) -> 5 | E67: 2nd true-up | F67: =$F$64+D67 -> 2015 | G67: Check: ok
A68: Medium-high - 3rd true-up | B68: =B67+5 -> 10 | D68: =IF(ISNUMBER(C68),C68,B68) -> 10 | E68: 3rd true-up | F68: =$F$64+D68 -> 2020 | G68: Check: ok
A71: Medium-low
A72: =$A$71&" - "&E72 -> Medium-low - Estimated cost | B72: 0 | D72: =IF(ISNUMBER(C72),C72,B72) -> 0 | E72: =E54 -> Estimated cost | F72: ='Capital Cont Inputs'!B15 -> 2010 | G72: =IF(C72>$D$76,"Warning - you cannot input an alternate horizon that is greater than the standard horizon given the selected risk classification","Check: ok") -> Check: ok
A73: =$A$71&" - "&E73 -> Medium-low - Actual cost | B73: 0 | D73: =IF(ISNUMBER(C73),C73,B73) -> 0 | E73: =E55 -> Actual cost | F73: =$F$72+D73 -> 2010 | G73: =IF(C73>$D$76,"Warning - you cannot input an alternate horizon that is greater than the standard horizon given the selected risk classification","Check: ok") -> Check: ok
A74: Medium-low - 1st true-up | B74: =B72+3 -> 3 | D74: =IF(ISNUMBER(C74),C74,B74) -> 3 | E74: =E56 -> 1st true-up | F74: =$F$72+D74 -> 2013 | G74: Check: ok
A75: Medium-low - 2nd true-up | B75: =B74+2 -> 5 | D75: =IF(ISNUMBER(C75),C75,B75) -> 5 | E75: 2nd true-up | F75: =$F$72+D75 -> 2015 | G75: Check: ok
A76: Medium-low - 3rd true-up | B76: =B75+5 -> 10 | D76: =IF(ISNUMBER(C76),C76,B76) -> 10 | E76: 3rd true-up | F76: =$F$72+D76 -> 2020 | G76: Check: ok
A79: Low
A80: =$A$79&" - "&E80 -> Low - Estimated cost | B80: 0 | D80: =IF(ISNUMBER(C80),C80,B80) -> 0 | E80: =E54 -> Estimated cost | F80: ='Capital Cont Inputs'!B15 -> 2010 | G80: =IF(C80>$D$84,"Warning - you cannot input an alternate horizon that is greater than the standard horizon given the selected risk classification","Check: ok") -> Check: ok
A81: =$A$79&" - "&E81 -> Low - Actual cost | B81: 0 | D81: =IF(ISNUMBER(C81),C81,B81) -> 0 | E81: =E55 -> Actual cost | F81: =$F$80+D81 -> 2010 | G81: =IF(C81>$D$84,"Warning - you cannot input an alternate horizon that is greater than the standard horizon given the selected risk classification","Check: ok") -> Check: ok
A82: Low - 1st true-up | B82: =B80+5 -> 5 | D82: =IF(ISNUMBER(C82),C82,B82) -> 5 | E82: =E56 -> 1st true-up | F82: =$F$80+D82 -> 2015 | G82: Check: ok
A83: Low - 2nd true-up | B83: =B82+5 -> 10 | D83: =IF(ISNUMBER(C83),C83,B83) -> 10 | E83: 2nd true-up | F83: =$F$80+D83 -> 2020 | G83: Check: ok
A84: Low - 3rd true-up | B84: =B83+5 -> 15 | D84: =IF(ISNUMBER(C84),C84,B84) -> 15 | E84: 3rd true-up | F84: =$F$80+D84 -> 2025 | G84: Check: ok

Sheet Prelim Calc
C2: Summary of Up-front Costs Before Contributions
E3: ='Capital Cont Inputs'!B15 -> 2010
C5: Up-front capital excluding AFUDC & Overhead - $k | E5: ='Project Inputs'!B34+'Project Inputs'!B38+'Project Inputs'!B49+'Project Inputs'!B55+'Project Inputs'!B61 -> 23871
C6: Overhead - $k | E6: ='Project Inputs'!B39+'Project Inputs'!B50+'Project Inputs'!B56+'Project Inputs'!B62 -> 0
C7: AFUDC - $k | E7: ='Project Inputs'!B40+'Project Inputs'!B51+'Project Inputs'!B57+'Project Inputs'!B63 -> 0
C8: Total up-front capital before capital contributions - $k | E8: =SUM(E5:E7) -> 23871
C10: Up-front removal costs - $k | E10: =SUM('Project Inputs'!B44:B45) -> 0
C12: Total up-front capital including removals - $k | E12: =E8+E10 -> 23871
C16: Calculation of Municipal Tax
C17: Project Year: | F17: ='Capital Cont Inputs'!C16 -> 1 | G17: ='Capital Cont Inputs'!D16 -> 2 | H17: ='Capital Cont Inputs'!E16 -> 3 | I17: ='Capital Cont Inputs'!F16 -> 4 | J17: ='Capital Cont Inputs'!G16 -> 5 | K17: ='Capital Cont Inputs'!H16 -> 6 | L17: ='Capital Cont Inputs'!I16 -> 7 | M17: ='Capital Cont Inputs'!J16 -> 8 | N17: ='Capital Cont Inputs'!K16 -> 9 | O17: ='Capital Cont Inputs'!L16 -> 10 | P17: ='Capital Cont Inputs'!M16 -> 11 | Q17: ='Capital Cont Inputs'!N16 -> 12 | R17: ='Capital Cont Inputs'!O16 -> 13 | S17: ='Capital Cont Inputs'!P16 -> 14 | T17: ='Capital Cont Inputs'!Q16 -> 15 | U17: ='Capital Cont Inputs'!R16 -> 16 | V17: ='Capital Cont Inputs'!S16 -> 17 | W17: ='Capital Cont Inputs'!T16 -> 18 | X17: ='Capital Cont Inputs'!U16 -> 19 | Y17: ='Capital Cont Inputs'!V16 -> 20 | Z17: ='Capital Cont Inputs'!W16 -> 21 | AA17: ='Capital Cont Inputs'!X16 -> 22 | AB17: ='Capital Cont Inputs'!Y16 -> 23 | AC17: ='Capital Cont Inputs'!Z16 -> 24 | AD17: ='Capital Cont Inputs'!AA16 -> 25
C18: Year Ended: | F18: ='Capital Cont Inputs'!C15 -> 2011 | G18: ='Capital Cont Inputs'!D15 -> 2012 | H18: ='Capital Cont Inputs'!E15 -> 2013 | I18: ='Capital Cont Inputs'!F15 -> 2014 | J18: ='Capital Cont Inputs'!G15 -> 2015 | K18: ='Capital Cont Inputs'!H15 -> 2016 | L18: ='Capital Cont Inputs'!I15 -> 2017 | M18: ='Capital Cont Inputs'!J15 -> 2018 | N18: ='Capital Cont Inputs'!K15 -> 2019 | O18: ='Capital Cont Inputs'!L15 -> 2020 | P18: ='Capital Cont Inputs'!M15 -> 2021 | Q18: ='Capital Cont Inputs'!N15 -> 2022 | R18: ='Capital Cont Inputs'!O15 -> 2023 | S18: ='Capital Cont Inputs'!P15 -> 2024 | T18: ='Capital Cont Inputs'!Q15 -> 2025 | U18: ='Capital Cont Inputs'!R15 -> 2026 | V18: ='Capital Cont Inputs'!S15 -> 2027 | W18: ='Capital Cont Inputs'!T15 -> 2028 | X18: ='Capital Cont Inputs'!U15 -> 2029 | Y18: ='Capital Cont Inputs'!V15 -> 2030 | Z18: ='Capital Cont Inputs'!W15 -> 2031 | AA18: ='Capital Cont Inputs'!X15 -> 2032 | AB18: ='Capital Cont Inputs'!Y15 -> 2033 | AC18: ='Capital Cont Inputs'!Z15 -> 2034 | AD18: ='Capital Cont Inputs'!AA15 -> 2035
C20: ='Standard Inputs'!A24 -> Municipal tax estimated based on gross or net capital? | D20: ='Standard Inputs'!B24 -> Net
C22: =IF('Standard Inputs'!$B$24=Menus!$D$45,"Opening Up-front Capital, net of prior contribution payments - $k","Up-front capital - $k") -> Opening Up-front Capital, net of prior contribution payments - $k | F22: =E8 -> 23871 | G22: =IF(ISNUMBER(G$17),IF('Standard Inputs'!$B$24=Menus!$D$46,F22,F25),0) -> 23871 | H22: =IF(ISNUMBER(H$17),IF('Standard Inputs'!$B$24=Menus!$D$46,G22,G25),0) -> 23871 | I22: =IF(ISNUMBER(I$17),IF('Standard Inputs'!$B$24=Menus!$D$46,H22,H25),0) -> 23871 | J22: =IF(ISNUMBER(J$17),IF('Standard Inputs'!$B$24=Menus!$D$46,I22,I25),0) -> 23871 | K22: =IF(ISNUMBER(K$17),IF('Standard Inputs'!$B$24=Menus!$D$46,J22,J25),0) -> 23871 | L22: =IF(ISNUMBER(L$17),IF('Standard Inputs'!$B$24=Menus!$D$46,K22,K25),0) -> 23871 | M22: =IF(ISNUMBER(M$17),IF('Standard Inputs'!$B$24=Menus!$D$46,L22,L25),0) -> 23871 | N22: =IF(ISNUMBER(N$17),IF('Standard Inputs'!$B$24=Menus!$D$46,M22,M25),0) -> 23871 | O22: =IF(ISNUMBER(O$17),IF('Standard Inputs'!$B$24=Menus!$D$46,N22,N25),0) -> 23871 | P22: =IF(ISNUMBER(P$17),IF('Standard Inputs'!$B$24=Menus!$D$46,O22,O25),0) -> 23871 | Q22: =IF(ISNUMBER(Q$17),IF('Standard Inputs'!$B$24=Menus!$D$46,P22,P25),0) -> 23871 | R22: =IF(ISNUMBER(R$17),IF('Standard Inputs'!$B$24=Menus!$D$46,Q22,Q25),0) -> 23871 | S22: =IF(ISNUMBER(S$17),IF('Standard Inputs'!$B$24=Menus!$D$46,R22,R25),0) -> 23871 | T22: =IF(ISNUMBER(T$17),IF('Standard Inputs'!$B$24=Menus!$D$46,S22,S25),0) -> 23871 | U22: =IF(ISNUMBER(U$17),IF('Standard Inputs'!$B$24=Menus!$D$46,T22,T25),0) -> 23871 | V22: =IF(ISNUMBER(V$17),IF('Standard Inputs'!$B$24=Menus!$D$46,U22,U25),0) -> 23871 | W22: =IF(ISNUMBER(W$17),IF('Standard Inputs'!$B$24=Menus!$D$46,V22,V25),0) -> 23871 | X22: =IF(ISNUMBER(X$17),IF('Standard Inputs'!$B$24=Menus!$D$46,W22,W25),0) -> 23871 | Y22: =IF(ISNUMBER(Y$17),IF('Standard Inputs'!$B$24=Menus!$D$46,X22,X25),0) -> 23871 | Z22: =IF(ISNUMBER(Z$17),IF('Standard Inputs'!$B$24=Menus!$D$46,Y22,Y25),0) -> 23871 | AA22: =IF(ISNUMBER(AA$17),IF('Standard Inputs'!$B$24=Menus!$D$46,Z22,Z25),0) -> 23871 | AB22: =IF(ISNUMBER(AB$17),IF('Standard Inputs'!$B$24=Menus!$D$46,AA22,AA25),0) -> 23871 | AC22: =IF(ISNUMBER(AC$17),IF('Standard Inputs'!$B$24=Menus!$D$46,AB22,AB25),0) -> 23871 | AD22: =IF(ISNUMBER(AD$17),IF('Standard Inputs'!$B$24=Menus!$D$46,AC22,AC25),0) -> 23871
C23: Less: Capital contribution payment/(credit) | F23: =IF(AND(ISNUMBER(F17),'NPV Calc'!C2="Yes"),'Capital Cont Inputs'!C17+'Capital Cont Inputs'!C18+'Capital Cont Inputs'!B17+'Capital Cont Inputs'!B18,0) -> 0 | G23: =IF(AND(ISNUMBER(G17),'NPV Calc'!C2="Yes"),'Capital Cont Inputs'!D17+'Capital Cont Inputs'!D18,0) -> 0 | H23: =IF(AND(ISNUMBER(H17),'NPV Calc'!C2="Yes"),'Capital Cont Inputs'!E17+'Capital Cont Inputs'!E18,0) -> 0 | I23: =IF(AND(ISNUMBER(I17),'NPV Calc'!C2="Yes"),'Capital Cont Inputs'!F17+'Capital Cont Inputs'!F18,0) -> 0 | J23: =IF(AND(ISNUMBER(J17),'NPV Calc'!C2="Yes"),'Capital Cont Inputs'!G17+'Capital Cont Inputs'!G18,0) -> 0 | K23: =IF(AND(ISNUMBER(K17),'NPV Calc'!C2="Yes"),'Capital Cont Inputs'!H17+'Capital Cont Inputs'!H18,0) -> 0 | L23: =IF(AND(ISNUMBER(L17),'NPV Calc'!C2="Yes"),'Capital Cont Inputs'!I17+'Capital Cont Inputs'!I18,0) -> 0 | M23: =IF(AND(ISNUMBER(M17),'NPV Calc'!C2="Yes"),'Capital Cont Inputs'!J17+'Capital Cont Inputs'!J18,0) -> 0 | N23: =IF(AND(ISNUMBER(N17),'NPV Calc'!C2="Yes"),'Capital Cont Inputs'!K17+'Capital Cont Inputs'!K18,0) -> 0 | O23: =IF(AND(ISNUMBER(O17),'NPV Calc'!C2="Yes"),'Capital Cont Inputs'!L17+'Capital Cont Inputs'!L18,0) -> 0 | P23: =IF(AND(ISNUMBER(P17),'NPV Calc'!C2="Yes"),'Capital Cont Inputs'!M17+'Capital Cont Inputs'!M18,0) -> 0 | Q23: =IF(AND(ISNUMBER(Q17),'NPV Calc'!C2="Yes"),'Capital Cont Inputs'!N17+'Capital Cont Inputs'!N18,0) -> 0 | R23: =IF(AND(ISNUMBER(R17),'NPV Calc'!C2="Yes"),'Capital Cont Inputs'!O17+'Capital Cont Inputs'!O18,0) -> 0 | S23: =IF(AND(ISNUMBER(S17),'NPV Calc'!C2="Yes"),'Capital Cont Inputs'!P17+'Capital Cont Inputs'!P18,0) -> 0 | T23: =IF(AND(ISNUMBER(T17),'NPV Calc'!C2="Yes"),'Capital Cont Inputs'!Q17+'Capital Cont Inputs'!Q18,0) -> 0 | U23: =IF(AND(ISNUMBER(U17),'NPV Calc'!C2="Yes"),'Capital Cont Inputs'!R17+'Capital Cont Inputs'!R18,0) -> 0 | V23: =IF(AND(ISNUMBER(V17),'NPV Calc'!C2="Yes"),'Capital Cont Inputs'!S17+'Capital Cont Inputs'!S18,0) -> 0 | W23: =IF(AND(ISNUMBER(W17),'NPV Calc'!C2="Yes"),'Capital Cont Inputs'!T17+'Capital Cont Inputs'!T18,0) -> 0 | X23: =IF(AND(ISNUMBER(X17),'NPV Calc'!C2="Yes"),'Capital Cont Inputs'!U17+'Capital Cont Inputs'!U18,0) -> 0 | Y23: =IF(AND(ISNUMBER(Y17),'NPV Calc'!C2="Yes"),'Capital Cont Inputs'!V17+'Capital Cont Inputs'!V18,0) -> 0 | Z23: =IF(AND(ISNUMBER(Z17),'NPV Calc'!C2="Yes"),'Capital Cont Inputs'!W17+'Capital Cont Inputs'!W18,0) -> 0 | AA23: =IF(AND(ISNUMBER(AA17),'NPV Calc'!C2="Yes"),'Capital Cont Inputs'!X17+'Capital Cont Inputs'!X18,0) -> 0 | AB23: =IF(AND(ISNUMBER(AB17),'NPV Calc'!C2="Yes"),'Capital Cont Inputs'!Y17+'Capital Cont Inputs'!Y18,0) -> 0 | AC23: =IF(AND(ISNUMBER(AC17),'NPV Calc'!C2="Yes"),'Capital Cont Inputs'!Z17+'Capital Cont Inputs'!Z18,0) -> 0 | AD23: =IF(AND(ISNUMBER(AD17),'NPV Calc'!C2="Yes"),'Capital Cont Inputs'!AA17+'Capital Cont Inputs'!AA18,0) -> 0
C25: Net capital | F25: =IF(ISNUMBER(F17),IF('NPV Calc'!C2="No",'Prelim Calc'!F22,'Prelim Calc'!F22-'Prelim Calc'!F23),0) -> 23871 | G25: =IF(ISNUMBER(G17),IF('NPV Calc'!C2="No",'Prelim Calc'!G22,'Prelim Calc'!G22-'Prelim Calc'!G23),0) -> 23871 | H25: =IF(ISNUMBER(H17),IF('NPV Calc'!C2="No",'Prelim Calc'!H22,'Prelim Calc'!H22-'Prelim Calc'!H23),0) -> 23871 | I25: =IF(ISNUMBER(I17),IF('NPV Calc'!C2="No",'Prelim Calc'!I22,'Prelim Calc'!I22-'Prelim Calc'!I23),0) -> 23871 | J25: =IF(ISNUMBER(J17),IF('NPV Calc'!C2="No",'Prelim Calc'!J22,'Prelim Calc'!J22-'Prelim Calc'!J23),0) -> 23871 | K25: =IF(ISNUMBER(K17),IF('NPV Calc'!C2="No",'Prelim Calc'!K22,'Prelim Calc'!K22-'Prelim Calc'!K23),0) -> 23871 | L25: =IF(ISNUMBER(L17),IF('NPV Calc'!C2="No",'Prelim Calc'!L22,'Prelim Calc'!L22-'Prelim Calc'!L23),0) -> 23871 | M25: =IF(ISNUMBER(M17),IF('NPV Calc'!C2="No",'Prelim Calc'!M22,'Prelim Calc'!M22-'Prelim Calc'!M23),0) -> 23871 | N25: =IF(ISNUMBER(N17),IF('NPV Calc'!C2="No",'Prelim Calc'!N22,'Prelim Calc'!N22-'Prelim Calc'!N23),0) -> 23871 | O25: =IF(ISNUMBER(O17),IF('NPV Calc'!C2="No",'Prelim Calc'!O22,'Prelim Calc'!O22-'Prelim Calc'!O23),0) -> 23871 | P25: =IF(ISNUMBER(P17),IF('NPV Calc'!C2="No",'Prelim Calc'!P22,'Prelim Calc'!P22-'Prelim Calc'!P23),0) -> 23871 | Q25: =IF(ISNUMBER(Q17),IF('NPV Calc'!C2="No",'Prelim Calc'!Q22,'Prelim Calc'!Q22-'Prelim Calc'!Q23),0) -> 23871 | R25: =IF(ISNUMBER(R17),IF('NPV Calc'!C2="No",'Prelim Calc'!R22,'Prelim Calc'!R22-'Prelim Calc'!R23),0) -> 23871 | S25: =IF(ISNUMBER(S17),IF('NPV Calc'!C2="No",'Prelim Calc'!S22,'Prelim Calc'!S22-'Prelim Calc'!S23),0) -> 23871 | T25: =IF(ISNUMBER(T17),IF('NPV Calc'!C2="No",'Prelim Calc'!T22,'Prelim Calc'!T22-'Prelim Calc'!T23),0) -> 23871 | U25: =IF(ISNUMBER(U17),IF('NPV Calc'!C2="No",'Prelim Calc'!U22,'Prelim Calc'!U22-'Prelim Calc'!U23),0) -> 23871 | V25: =IF(ISNUMBER(V17),IF('NPV Calc'!C2="No",'Prelim Calc'!V22,'Prelim Calc'!V22-'Prelim Calc'!V23),0) -> 23871 | W25: =IF(ISNUMBER(W17),IF('NPV Calc'!C2="No",'Prelim Calc'!W22,'Prelim Calc'!W22-'Prelim Calc'!W23),0) -> 23871 | X25: =IF(ISNUMBER(X17),IF('NPV Calc'!C2="No",'Prelim Calc'!X22,'Prelim Calc'!X22-'Prelim Calc'!X23),0) -> 23871 | Y25: =IF(ISNUMBER(Y17),IF('NPV Calc'!C2="No",'Prelim Calc'!Y22,'Prelim Calc'!Y22-'Prelim Calc'!Y23),0) -> 23871 | Z25: =IF(ISNUMBER(Z17),IF('NPV Calc'!C2="No",'Prelim Calc'!Z22,'Prelim Calc'!Z22-'Prelim Calc'!Z23),0) -> 23871 | AA25: =IF(ISNUMBER(AA17),IF('NPV Calc'!C2="No",'Prelim Calc'!AA22,'Prelim Calc'!AA22-'Prelim Calc'!AA23),0) -> 23871 | AB25: =IF(ISNUMBER(AB17),IF('NPV Calc'!C2="No",'Prelim Calc'!AB22,'Prelim Calc'!AB22-'Prelim Calc'!AB23),0) -> 23871 | AC25: =IF(ISNUMBER(AC17),IF('NPV Calc'!C2="No",'Prelim Calc'!AC22,'Prelim Calc'!AC22-'Prelim Calc'!AC23),0) -> 23871 | AD25: =IF(ISNUMBER(AD17),IF('NPV Calc'!C2="No",'Prelim Calc'!AD22,'Prelim Calc'!AD22-'Prelim Calc'!AD23),0) -> 23871
C27: Municipal tax rate | F27: ='Standard Inputs'!B25 -> 0.006251837335 | G27: =IF(ISNUMBER(G$17),F27,0) -> 0.006251837335 | H27: =IF(ISNUMBER(H$17),G27,0) -> 0.006251837335 | I27: 0.006251837335 | J27: 0.006251837335 | K27: 0.006251837335 | L27: 0.006251837335 | M27: 0.006251837335 | N27: 0.006251837335 | O27: 0.006251837335 | P27: 0.006251837335 | Q27: 0.006251837335 | R27: 0.006251837335 | S27: 0.006251837335 | T27: 0.006251837335 | U27: 0.006251837335 | V27: 0.006251837335 | W27: 0.006251837335 | X27: 0.006251837335 | Y27: 0.006251837335 | Z27: 0.006251837335 | AA27: 0.006251837335 | AB27: 0.006251837335 | AC27: 0.006251837335 | AD27: 0.006251837335
C29: Municipal tax - $k | F29: =IF('Standard Inputs'!$B$24=Menus!$D$45,IF(ISNUMBER(F17),F25*F27,0),IF(ISNUMBER(F17),F22*F27,0)) -> 149.237609 | G29: =IF('Standard Inputs'!$B$24=Menus!$D$45,IF(ISNUMBER(G17),G25*G27,0),IF(ISNUMBER(G17),G22*G27,0)) -> 149.237609 | H29: =IF('Standard Inputs'!$B$24=Menus!$D$45,IF(ISNUMBER(H17),H25*H27,0),IF(ISNUMBER(H17),H22*H27,0)) -> 149.237609 | I29: =IF('Standard Inputs'!$B$24=Menus!$D$45,IF(ISNUMBER(I17),I25*I27,0),IF(ISNUMBER(I17),I22*I27,0)) -> 149.237609 | J29: =IF('Standard Inputs'!$B$24=Menus!$D$45,IF(ISNUMBER(J17),J25*J27,0),IF(ISNUMBER(J17),J22*J27,0)) -> 149.237609 | K29: =IF('Standard Inputs'!$B$24=Menus!$D$45,IF(ISNUMBER(K17),K25*K27,0),IF(ISNUMBER(K17),K22*K27,0)) -> 149.237609 | L29: =IF('Standard Inputs'!$B$24=Menus!$D$45,IF(ISNUMBER(L17),L25*L27,0),IF(ISNUMBER(L17),L22*L27,0)) -> 149.237609 | M29: =IF('Standard Inputs'!$B$24=Menus!$D$45,IF(ISNUMBER(M17),M25*M27,0),IF(ISNUMBER(M17),M22*M27,0)) -> 149.237609 | N29: =IF('Standard Inputs'!$B$24=Menus!$D$45,IF(ISNUMBER(N17),N25*N27,0),IF(ISNUMBER(N17),N22*N27,0)) -> 149.237609 | O29: =IF('Standard Inputs'!$B$24=Menus!$D$45,IF(ISNUMBER(O17),O25*O27,0),IF(ISNUMBER(O17),O22*O27,0)) -> 149.237609 | P29: =IF('Standard Inputs'!$B$24=Menus!$D$45,IF(ISNUMBER(P17),P25*P27,0),IF(ISNUMBER(P17),P22*P27,0)) -> 149.237609 | Q29: =IF('Standard Inputs'!$B$24=Menus!$D$45,IF(ISNUMBER(Q17),Q25*Q27,0),IF(ISNUMBER(Q17),Q22*Q27,0)) -> 149.237609 | R29: =IF('Standard Inputs'!$B$24=Menus!$D$45,IF(ISNUMBER(R17),R25*R27,0),IF(ISNUMBER(R17),R22*R27,0)) -> 149.237609 | S29: =IF('Standard Inputs'!$B$24=Menus!$D$45,IF(ISNUMBER(S17),S25*S27,0),IF(ISNUMBER(S17),S22*S27,0)) -> 149.237609 | T29: =IF('Standard Inputs'!$B$24=Menus!$D$45,IF(ISNUMBER(T17),T25*T27,0),IF(ISNUMBER(T17),T22*T27,0)) -> 149.237609 | U29: =IF('Standard Inputs'!$B$24=Menus!$D$45,IF(ISNUMBER(U17),U25*U27,0),IF(ISNUMBER(U17),U22*U27,0)) -> 149.237609 | V29: =IF('Standard Inputs'!$B$24=Menus!$D$45,IF(ISNUMBER(V17),V25*V27,0),IF(ISNUMBER(V17),V22*V27,0)) -> 149.237609 | W29: =IF('Standard Inputs'!$B$24=Menus!$D$45,IF(ISNUMBER(W17),W25*W27,0),IF(ISNUMBER(W17),W22*W27,0)) -> 149.237609 | X29: =IF('Standard Inputs'!$B$24=Menus!$D$45,IF(ISNUMBER(X17),X25*X27,0),IF(ISNUMBER(X17),X22*X27,0)) -> 149.237609 | Y29: =IF('Standard Inputs'!$B$24=Menus!$D$45,IF(ISNUMBER(Y17),Y25*Y27,0),IF(ISNUMBER(Y17),Y22*Y27,0)) -> 149.237609 | Z29: =IF('Standard Inputs'!$B$24=Menus!$D$45,IF(ISNUMBER(Z17),Z25*Z27,0),IF(ISNUMBER(Z17),Z22*Z27,0)) -> 149.237609 | AA29: =IF('Standard Inputs'!$B$24=Menus!$D$45,IF(ISNUMBER(AA17),AA25*AA27,0),IF(ISNUMBER(AA17),AA22*AA27,0)) -> 149.237609 | AB29: =IF('Standard Inputs'!$B$24=Menus!$D$45,IF(ISNUMBER(AB17),AB25*AB27,0),IF(ISNUMBER(AB17),AB22*AB27,0)) -> 149.237609 | AC29: =IF('Standard Inputs'!$B$24=Menus!$D$45,IF(ISNUMBER(AC17),AC25*AC27,0),IF(ISNUMBER(AC17),AC22*AC27,0)) -> 149.237609 | AD29: =IF('Standard Inputs'!$B$24=Menus!$D$45,IF(ISNUMBER(AD17),AD25*AD27,0),IF(ISNUMBER(AD17),AD22*AD27,0)) -> 149.237609
C33: Calculation of Working Capital
C34: =C17 -> Project Year: | F34: ='Capital Cont Inputs'!C16 -> 1 | G34: ='Capital Cont Inputs'!D16 -> 2 | H34: ='Capital Cont Inputs'!E16 -> 3 | I34: ='Capital Cont Inputs'!F16 -> 4 | J34: ='Capital Cont Inputs'!G16 -> 5 | K34: ='Capital Cont Inputs'!H16 -> 6 | L34: ='Capital Cont Inputs'!I16 -> 7 | M34: ='Capital Cont Inputs'!J16 -> 8 | N34: ='Capital Cont Inputs'!K16 -> 9 | O34: ='Capital Cont Inputs'!L16 -> 10 | P34: ='Capital Cont Inputs'!M16 -> 11 | Q34: ='Capital Cont Inputs'!N16 -> 12 | R34: ='Capital Cont Inputs'!O16 -> 13 | S34: ='Capital Cont Inputs'!P16 -> 14 | T34: ='Capital Cont Inputs'!Q16 -> 15 | U34: ='Capital Cont Inputs'!R16 -> 16 | V34: ='Capital Cont Inputs'!S16 -> 17 | W34: ='Capital Cont Inputs'!T16 -> 18 | X34: ='Capital Cont Inputs'!U16 -> 19 | Y34: ='Capital Cont Inputs'!V16 -> 20 | Z34: ='Capital Cont Inputs'!W16 -> 21 | AA34: ='Capital Cont Inputs'!X16 -> 22 | AB34: ='Capital Cont Inputs'!Y16 -> 23 | AC34: ='Capital Cont Inputs'!Z16 -> 24 | AD34: ='Capital Cont Inputs'!AA16 -> 25
C35: =C18 -> Year Ended: | F35: ='Capital Cont Inputs'!C15 -> 2011 | G35: ='Capital Cont Inputs'!D15 -> 2012 | H35: ='Capital Cont Inputs'!E15 -> 2013 | I35: ='Capital Cont Inputs'!F15 -> 2014 | J35: ='Capital Cont Inputs'!G15 -> 2015 | K35: ='Capital Cont Inputs'!H15 -> 2016 | L35: ='Capital Cont Inputs'!I15 -> 2017 | M35: ='Capital Cont Inputs'!J15 -> 2018 | N35: ='Capital Cont Inputs'!K15 -> 2019 | O35: ='Capital Cont Inputs'!L15 -> 2020 | P35: ='Capital Cont Inputs'!M15 -> 2021 | Q35: ='Capital Cont Inputs'!N15 -> 2022 | R35: ='Capital Cont Inputs'!O15 -> 2023 | S35: ='Capital Cont Inputs'!P15 -> 2024 | T35: ='Capital Cont Inputs'!Q15 -> 2025 | U35: ='Capital Cont Inputs'!R15 -> 2026 | V35: ='Capital Cont Inputs'!S15 -> 2027 | W35: ='Capital Cont Inputs'!T15 -> 2028 | X35: ='Capital Cont Inputs'!U15 -> 2029 | Y35: ='Capital Cont Inputs'!V15 -> 2030 | Z35: ='Capital Cont Inputs'!W15 -> 2031 | AA35: ='Capital Cont Inputs'!X15 -> 2032 | AB35: ='Capital Cont Inputs'!Y15 -> 2033 | AC35: ='Capital Cont Inputs'!Z15 -> 2034 | AD35: ='Capital Cont Inputs'!AA15 -> 2035
C37: Annual OM&A cost - $k | F37: ='Project Inputs'!C70 -> 42 | G37: ='Project Inputs'!D70 -> 42 | H37: ='Project Inputs'!E70 -> 42 | I37: ='Project Inputs'!F70 -> 42 | J37: ='Project Inputs'!G70 -> 42 | K37: ='Project Inputs'!H70 -> 42 | L37: ='Project Inputs'!I70 -> 42 | M37: ='Project Inputs'!J70 -> 42 | N37: ='Project Inputs'!K70 -> 42 | O37: ='Project Inputs'!L70 -> 42 | P37: ='Project Inputs'!M70 -> 42 | Q37: ='Project Inputs'!N70 -> 42 | R37: ='Project Inputs'!O70 -> 42 | S37: ='Project Inputs'!P70 -> 42 | T37: ='Project Inputs'!Q70 -> 42 | U37: ='Project Inputs'!R70 -> 65 | V37: ='Project Inputs'!S70 -> 65 | W37: ='Project Inputs'!T70 -> 65 | X37: ='Project Inputs'!U70 -> 65 | Y37: ='Project Inputs'!V70 -> 65 | Z37: ='Project Inputs'!W70 -> 65 | AA37: ='Project Inputs'!X70 -> 65 | AB37: ='Project Inputs'!Y70 -> 65 | AC37: ='Project Inputs'!Z70 -> 65 | AD37: ='Project Inputs'!AA70 -> 65
C38: Incremental OM&A cost compared with prior year - $k | F38: =F37 -> 42 | G38: =G37-F37 -> 0 | H38: 0 | I38: 0 | J38: 0 | K38: 0 | L38: 0 | M38: 0 | N38: 0 | O38: 0 | P38: 0 | Q38: 0 | R38: 0 | S38: 0 | T38: 0 | U38: 23 | V38: 0 | W38: 0 | X38: 0 | Y38: 0 | Z38: 0 | AA38: 0 | AB38: 0 | AC38: 0 | AD38: 0
C40: Net Lag / 365 | F40: ='Standard Inputs'!$B$41 -> 0.04863013699 | G40: =IF(ISNUMBER(F34),'Standard Inputs'!$B$41,0) -> 0.04863013699 | H40: =IF(ISNUMBER(G34),'Standard Inputs'!$B$41,0) -> 0.04863013699 | I40: =IF(ISNUMBER(H34),'Standard Inputs'!$B$41,0) -> 0.04863013699 | J40: =IF(ISNUMBER(I34),'Standard Inputs'!$B$41,0) -> 0.04863013699 | K40: =IF(ISNUMBER(J34),'Standard Inputs'!$B$41,0) -> 0.04863013699 | L40: =IF(ISNUMBER(K34),'Standard Inputs'!$B$41,0) -> 0.04863013699 | M40: =IF(ISNUMBER(L34),'Standard Inputs'!$B$41,0) -> 0.04863013699 | N40: =IF(ISNUMBER(M34),'Standard Inputs'!$B$41,0) -> 0.04863013699 | O40: =IF(ISNUMBER(N34),'Standard Inputs'!$B$41,0) -> 0.04863013699 | P40: =IF(ISNUMBER(O34),'Standard Inputs'!$B$41,0) -> 0.04863013699 | Q40: =IF(ISNUMBER(P34),'Standard Inputs'!$B$41,0) -> 0.04863013699 | R40: =IF(ISNUMBER(Q34),'Standard Inputs'!$B$41,0) -> 0.04863013699 | S40: =IF(ISNUMBER(R34),'Standard Inputs'!$B$41,0) -> 0.04863013699 | T40: =IF(ISNUMBER(S34),'Standard Inputs'!$B$41,0) -> 0.04863013699 | U40: =IF(ISNUMBER(T34),'Standard Inputs'!$B$41,0) -> 0.04863013699 | V40: =IF(ISNUMBER(U34),'Standard Inputs'!$B$41,0) -> 0.04863013699 | W40: =IF(ISNUMBER(V34),'Standard Inputs'!$B$41,0) -> 0.04863013699 | X40: =IF(ISNUMBER(W34),'Standard Inputs'!$B$41,0) -> 0.04863013699 | Y40: =IF(ISNUMBER(X34),'Standard Inputs'!$B$41,0) -> 0.04863013699 | Z40: =IF(ISNUMBER(Y34),'Standard Inputs'!$B$41,0) -> 0.04863013699 | AA40: =IF(ISNUMBER(Z34),'Standard Inputs'!$B$41,0) -> 0.04863013699 | AB40: =IF(ISNUMBER(AA34),'Standard Inputs'!$B$41,0) -> 0.04863013699 | AC40: =IF(ISNUMBER(AB34),'Standard Inputs'!$B$41,0) -> 0.04863013699 | AD40: =IF(ISNUMBER(AC34),'Standard Inputs'!$B$41,0) -> 0.04863013699
C42: Annual working cash impact - $k | F42: =F38*F40 -> 2.042465753 | G42: =G38*G40 -> 0 | H42: 0 | I42: 0 | J42: 0 | K42: 0 | L42: 0 | M42: 0 | N42: 0 | O42: 0 | P42: 0 | Q42: 0 | R42: 0 | S42: 0 | T42: 0 | U42: 1.118493151 | V42: 0 | W42: 0 | X42: 0 | Y42: 0 | Z42: 0 | AA42: 0 | AB42: 0 | AC42: 0 | AD42: 0
C44: Cumulative working cash impact - $k | F44: =IF(ISNUMBER(F34),F42+D44,0) -> 2.042465753 | G44: =IF(ISNUMBER(G34),G42+F44,0) -> 2.042465753 | H44: 2.042465753 | I44: 2.042465753 | J44: 2.042465753 | K44: 2.042465753 | L44: 2.042465753 | M44: 2.042465753 | N44: 2.042465753 | O44: 2.042465753 | P44: 2.042465753 | Q44: 2.042465753 | R44: 2.042465753 | S44: 2.042465753 | T44: 2.042465753 | U44: 3.160958904 | V44: 3.160958904 | W44: 3.160958904 | X44: 3.160958904 | Y44: 3.160958904 | Z44: 3.160958904 | AA44: 3.160958904 | AB44: 3.160958904 | AC44: 3.160958904 | AD44: 3.160958904
C46: Reversal of cumulative working cash impact - $k | F46: =IF(ISNUMBER(G34),0,-F44) -> 0 | G46: 0 | H46: 0 | I46: 0 | J46: 0 | K46: 0 | L46: 0 | M46: 0 | N46: 0 | O46: 0 | P46: 0 | Q46: 0 | R46: 0 | S46: 0 | T46: 0 | U46: 0 | V46: 0 | W46: 0 | X46: 0 | Y46: 0 | Z46: 0 | AA46: 0 | AB46: 0 | AC46: 0 | AD46: =IF(ISNUMBER(#REF!),0,-AD44) -> -3.160958904
C48: Net annual working cash impact - $k | F48: =IF(ISNUMBER(F35),F42+F46,0) -> 2.042465753 | G48: 0 | H48: 0 | I48: 0 | J48: 0 | K48: 0 | L48: 0 | M48: 0 | N48: 0 | O48: 0 | P48: 0 | Q48: 0 | R48: 0 | S48: 0 | T48: 0 | U48: 1.118493151 | V48: 0 | W48: 0 | X48: 0 | Y48: 0 | Z48: 0 | AA48: 0 | AB48: 0 | AC48: 0 | AD48: -3.160958904
C52: Summary of Load Forecast
C55: Calendar Year Load Forecast Summary | E55: ='Capital Cont Inputs'!B15 -> 2010 | F55: ='Capital Cont Inputs'!C15 -> 2011 | G55: ='Capital Cont Inputs'!D15 -> 2012 | H55: ='Capital Cont Inputs'!E15 -> 2013 | I55: ='Capital Cont Inputs'!F15 -> 2014 | J55: ='Capital Cont Inputs'!G15 -> 2015 | K55: ='Capital Cont Inputs'!H15 -> 2016 | L55: ='Capital Cont Inputs'!I15 -> 2017 | M55: ='Capital Cont Inputs'!J15 -> 2018 | N55: ='Capital Cont Inputs'!K15 -> 2019 | O55: ='Capital Cont Inputs'!L15 -> 2020 | P55: ='Capital Cont Inputs'!M15 -> 2021 | Q55: ='Capital Cont Inputs'!N15 -> 2022 | R55: ='Capital Cont Inputs'!O15 -> 2023 | S55: ='Capital Cont Inputs'!P15 -> 2024 | T55: ='Capital Cont Inputs'!Q15 -> 2025 | U55: ='Capital Cont Inputs'!R15 -> 2026 | V55: ='Capital Cont Inputs'!S15 -> 2027 | W55: ='Capital Cont Inputs'!T15 -> 2028 | X55: ='Capital Cont Inputs'!U15 -> 2029 | Y55: ='Capital Cont Inputs'!V15 -> 2030 | Z55: ='Capital Cont Inputs'!W15 -> 2031 | AA55: ='Capital Cont Inputs'!X15 -> 2032 | AB55: ='Capital Cont Inputs'!Y15 -> 2033 | AC55: ='Capital Cont Inputs'!Z15 -> 2034 | AD55: ='Capital Cont Inputs'!AA15 -> 2035
C56: Load (MW / month) | E56: =IF(ISNUMBER(E55),IF('Project Inputs'!$B$75="Calendar Year",'Project Inputs'!B81,"N/A"),0) -> N/A | F56: =IF(E56="N/A","N/A",IF(ISNUMBER(F55),IF('Project Inputs'!$B$75="Calendar Year",'Project Inputs'!C81,"N/A"),0)) -> N/A | G56: =IF(F56="N/A","N/A",IF(ISNUMBER(G55),IF('Project Inputs'!$B$75="Calendar Year",'Project Inputs'!D81,"N/A"),0)) -> N/A | H56: =IF(G56="N/A","N/A",IF(ISNUMBER(H55),IF('Project Inputs'!$B$75="Calendar Year",'Project Inputs'!E81,"N/A"),0)) -> N/A | I56: =IF(H56="N/A","N/A",IF(ISNUMBER(I55),IF('Project Inputs'!$B$75="Calendar Year",'Project Inputs'!F81,"N/A"),0)) -> N/A | J56: =IF(I56="N/A","N/A",IF(ISNUMBER(J55),IF('Project Inputs'!$B$75="Calendar Year",'Project Inputs'!G81,"N/A"),0)) -> N/A | K56: =IF(J56="N/A","N/A",IF(ISNUMBER(K55),IF('Project Inputs'!$B$75="Calendar Year",'Project Inputs'!H81,"N/A"),0)) -> N/A | L56: =IF(K56="N/A","N/A",IF(ISNUMBER(L55),IF('Project Inputs'!$B$75="Calendar Year",'Project Inputs'!I81,"N/A"),0)) -> N/A | M56: =IF(L56="N/A","N/A",IF(ISNUMBER(M55),IF('Project Inputs'!$B$75="Calendar Year",'Project Inputs'!J81,"N/A"),0)) -> N/A | N56: =IF(M56="N/A","N/A",IF(ISNUMBER(N55),IF('Project Inputs'!$B$75="Calendar Year",'Project Inputs'!K81,"N/A"),0)) -> N/A | O56: =IF(N56="N/A","N/A",IF(ISNUMBER(O55),IF('Project Inputs'!$B$75="Calendar Year",'Project Inputs'!L81,"N/A"),0)) -> N/A | P56: =IF(O56="N/A","N/A",IF(ISNUMBER(P55),IF('Project Inputs'!$B$75="Calendar Year",'Project Inputs'!M81,"N/A"),0)) -> N/A | Q56: =IF(P56="N/A","N/A",IF(ISNUMBER(Q55),IF('Project Inputs'!$B$75="Calendar Year",'Project Inputs'!N81,"N/A"),0)) -> N/A | R56: =IF(Q56="N/A","N/A",IF(ISNUMBER(R55),IF('Project Inputs'!$B$75="Calendar Year",'Project Inputs'!O81,"N/A"),0)) -> N/A | S56: =IF(R56="N/A","N/A",IF(ISNUMBER(S55),IF('Project Inputs'!$B$75="Calendar Year",'Project Inputs'!P81,"N/A"),0)) -> N/A | T56: =IF(S56="N/A","N/A",IF(ISNUMBER(T55),IF('Project Inputs'!$B$75="Calendar Year",'Project Inputs'!Q81,"N/A"),0)) -> N/A | U56: =IF(T56="N/A","N/A",IF(ISNUMBER(U55),IF('Project Inputs'!$B$75="Calendar Year",'Project Inputs'!R81,"N/A"),0)) -> N/A | V56: =IF(U56="N/A","N/A",IF(ISNUMBER(V55),IF('Project Inputs'!$B$75="Calendar Year",'Project Inputs'!S81,"N/A"),0)) -> N/A | W56: =IF(V56="N/A","N/A",IF(ISNUMBER(W55),IF('Project Inputs'!$B$75="Calendar Year",'Project Inputs'!T81,"N/A"),0)) -> N/A | X56: =IF(W56="N/A","N/A",IF(ISNUMBER(X55),IF('Project Inputs'!$B$75="Calendar Year",'Project Inputs'!U81,"N/A"),0)) -> N/A | Y56: =IF(X56="N/A","N/A",IF(ISNUMBER(Y55),IF('Project Inputs'!$B$75="Calendar Year",'Project Inputs'!V81,"N/A"),0)) -> N/A | Z56: =IF(Y56="N/A","N/A",IF(ISNUMBER(Z55),IF('Project Inputs'!$B$75="Calendar Year",'Project Inputs'!W81,"N/A"),0)) -> N/A | AA56: =IF(Z56="N/A","N/A",IF(ISNUMBER(AA55),IF('Project Inputs'!$B$75="Calendar Year",'Project Inputs'!X81,"N/A"),0)) -> N/A | AB56: =IF(AA56="N/A","N/A",IF(ISNUMBER(AB55),IF('Project Inputs'!$B$75="Calendar Year",'Project Inputs'!Y81,"N/A"),0)) -> N/A | AC56: =IF(AB56="N/A","N/A",IF(ISNUMBER(AC55),IF('Project Inputs'!$B$75="Calendar Year",'Project Inputs'!Z81,"N/A"),0)) -> N/A | AD56: =IF(AC56="N/A","N/A",IF(ISNUMBER(AD55),IF('Project Inputs'!$B$75="Calendar Year",'Project Inputs'!AA81,"N/A"),0)) -> N/A
C57: Load adjustments (MW / month) | E57: =IF(ISNUMBER(E55),IF('Project Inputs'!$B$75="Calendar Year",'Project Inputs'!B82,"N/A"),0) -> N/A | F57: =IF(E57="N/A","N/A",IF(ISNUMBER(F55),IF('Project Inputs'!$B$75="Calendar Year",'Project Inputs'!C82,"N/A"),0)) -> N/A | G57: =IF(F57="N/A","N/A",IF(ISNUMBER(G55),IF('Project Inputs'!$B$75="Calendar Year",'Project Inputs'!D82,"N/A"),0)) -> N/A | H57: =IF(G57="N/A","N/A",IF(ISNUMBER(H55),IF('Project Inputs'!$B$75="Calendar Year",'Project Inputs'!E82,"N/A"),0)) -> N/A | I57: =IF(H57="N/A","N/A",IF(ISNUMBER(I55),IF('Project Inputs'!$B$75="Calendar Year",'Project Inputs'!F82,"N/A"),0)) -> N/A | J57: =IF(I57="N/A","N/A",IF(ISNUMBER(J55),IF('Project Inputs'!$B$75="Calendar Year",'Project Inputs'!G82,"N/A"),0)) -> N/A | K57: =IF(J57="N/A","N/A",IF(ISNUMBER(K55),IF('Project Inputs'!$B$75="Calendar Year",'Project Inputs'!H82,"N/A"),0)) -> N/A | L57: =IF(K57="N/A","N/A",IF(ISNUMBER(L55),IF('Project Inputs'!$B$75="Calendar Year",'Project Inputs'!I82,"N/A"),0)) -> N/A | M57: =IF(L57="N/A","N/A",IF(ISNUMBER(M55),IF('Project Inputs'!$B$75="Calendar Year",'Project Inputs'!J82,"N/A"),0)) -> N/A | N57: =IF(M57="N/A","N/A",IF(ISNUMBER(N55),IF('Project Inputs'!$B$75="Calendar Year",'Project Inputs'!K82,"N/A"),0)) -> N/A | O57: =IF(N57="N/A","N/A",IF(ISNUMBER(O55),IF('Project Inputs'!$B$75="Calendar Year",'Project Inputs'!L82,"N/A"),0)) -> N/A | P57: =IF(O57="N/A","N/A",IF(ISNUMBER(P55),IF('Project Inputs'!$B$75="Calendar Year",'Project Inputs'!M82,"N/A"),0)) -> N/A | Q57: =IF(P57="N/A","N/A",IF(ISNUMBER(Q55),IF('Project Inputs'!$B$75="Calendar Year",'Project Inputs'!N82,"N/A"),0)) -> N/A | R57: =IF(Q57="N/A","N/A",IF(ISNUMBER(R55),IF('Project Inputs'!$B$75="Calendar Year",'Project Inputs'!O82,"N/A"),0)) -> N/A | S57: =IF(R57="N/A","N/A",IF(ISNUMBER(S55),IF('Project Inputs'!$B$75="Calendar Year",'Project Inputs'!P82,"N/A"),0)) -> N/A | T57: =IF(S57="N/A","N/A",IF(ISNUMBER(T55),IF('Project Inputs'!$B$75="Calendar Year",'Project Inputs'!Q82,"N/A"),0)) -> N/A | U57: =IF(T57="N/A","N/A",IF(ISNUMBER(U55),IF('Project Inputs'!$B$75="Calendar Year",'Project Inputs'!R82,"N/A"),0)) -> N/A | V57: =IF(U57="N/A","N/A",IF(ISNUMBER(V55),IF('Project Inputs'!$B$75="Calendar Year",'Project Inputs'!S82,"N/A"),0)) -> N/A | W57: =IF(V57="N/A","N/A",IF(ISNUMBER(W55),IF('Project Inputs'!$B$75="Calendar Year",'Project Inputs'!T82,"N/A"),0)) -> N/A | X57: =IF(W57="N/A","N/A",IF(ISNUMBER(X55),IF('Project Inputs'!$B$75="Calendar Year",'Project Inputs'!U82,"N/A"),0)) -> N/A | Y57: =IF(X57="N/A","N/A",IF(ISNUMBER(Y55),IF('Project Inputs'!$B$75="Calendar Year",'Project Inputs'!V82,"N/A"),0)) -> N/A | Z57: =IF(Y57="N/A","N/A",IF(ISNUMBER(Z55),IF('Project Inputs'!$B$75="Calendar Year",'Project Inputs'!W82,"N/A"),0)) -> N/A | AA57: =IF(Z57="N/A","N/A",IF(ISNUMBER(AA55),IF('Project Inputs'!$B$75="Calendar Year",'Project Inputs'!X82,"N/A"),0)) -> N/A | AB57: =IF(AA57="N/A","N/A",IF(ISNUMBER(AB55),IF('Project Inputs'!$B$75="Calendar Year",'Project Inputs'!Y82,"N/A"),0)) -> N/A | AC57: =IF(AB57="N/A","N/A",IF(ISNUMBER(AC55),IF('Project Inputs'!$B$75="Calendar Year",'Project Inputs'!Z82,"N/A"),0)) -> N/A | AD57: =IF(AC57="N/A","N/A",IF(ISNUMBER(AD55),IF('Project Inputs'!$B$75="Calendar Year",'Project Inputs'!AA82,"N/A"),0)) -> N/A
C58: Forecasted load (MW / calendar year) | E58: =SUM(E56:E57) -> 0 | F58: =IF(F57="N/A","N/A",SUM(F56:F57)) -> N/A | G58: =IF(G57="N/A","N/A",SUM(G56:G57)) -> N/A | H58: N/A | I58: N/A | J58: N/A | K58: N/A | L58: N/A | M58: N/A | N58: N/A | O58: N/A | P58: N/A | Q58: N/A | R58: N/A | S58: N/A | T58: N/A | U58: N/A | V58: N/A | W58: N/A | X58: N/A | Y58: N/A | Z58: N/A | AA58: N/A | AB58: N/A | AC58: N/A | AD58: N/A
C60: * In-Service Month | F60: =IF(ISNUMBER(F55),IF('Project Inputs'!$B$75="Calendar Year",IF(DAY('Project Inputs'!B15)<15,MONTH('Project Inputs'!B15)-1,MONTH('Project Inputs'!B15)),"N/A"),0) -> N/A | G60: =IF(F60="N/A","N/A",IF(ISNUMBER(G55),F60,0)) -> N/A | H60: =IF(G60="N/A","N/A",IF(ISNUMBER(H55),G60,0)) -> N/A | I60: N/A | J60: N/A | K60: N/A | L60: N/A | M60: N/A | N60: N/A | O60: N/A | P60: N/A | Q60: N/A | R60: N/A | S60: N/A | T60: N/A | U60: N/A | V60: N/A | W60: N/A | X60: N/A | Y60: N/A | Z60: N/A | AA60: N/A | AB60: N/A | AC60: N/A | AD60: N/A
C61: *if = 0, means In-Service falls between Jan 1- 15
C62: =C34 -> Project Year: | F62: ='Capital Cont Inputs'!C16 -> 1 | G62: ='Capital Cont Inputs'!D16 -> 2 | H62: ='Capital Cont Inputs'!E16 -> 3 | I62: ='Capital Cont Inputs'!F16 -> 4 | J62: ='Capital Cont Inputs'!G16 -> 5 | K62: ='Capital Cont Inputs'!H16 -> 6 | L62: ='Capital Cont Inputs'!I16 -> 7 | M62: ='Capital Cont Inputs'!J16 -> 8 | N62: ='Capital Cont Inputs'!K16 -> 9 | O62: ='Capital Cont Inputs'!L16 -> 10 | P62: ='Capital Cont Inputs'!M16 -> 11 | Q62: ='Capital Cont Inputs'!N16 -> 12 | R62: ='Capital Cont Inputs'!O16 -> 13 | S62: ='Capital Cont Inputs'!P16 -> 14 | T62: ='Capital Cont Inputs'!Q16 -> 15 | U62: ='Capital Cont Inputs'!R16 -> 16 | V62: ='Capital Cont Inputs'!S16 -> 17 | W62: ='Capital Cont Inputs'!T16 -> 18 | X62: ='Capital Cont Inputs'!U16 -> 19 | Y62: ='Capital Cont Inputs'!V16 -> 20 | Z62: ='Capital Cont Inputs'!W16 -> 21 | AA62: ='Capital Cont Inputs'!X16 -> 22 | AB62: ='Capital Cont Inputs'!Y16 -> 23 | AC62: ='Capital Cont Inputs'!Z16 -> 24 | AD62: ='Capital Cont Inputs'!AA16 -> 25
C63: =C35 -> Year Ended: | F63: ='Capital Cont Inputs'!C15 -> 2011 | G63: ='Capital Cont Inputs'!D15 -> 2012 | H63: ='Capital Cont Inputs'!E15 -> 2013 | I63: ='Capital Cont Inputs'!F15 -> 2014 | J63: ='Capital Cont Inputs'!G15 -> 2015 | K63: ='Capital Cont Inputs'!H15 -> 2016 | L63: ='Capital Cont Inputs'!I15 -> 2017 | M63: ='Capital Cont Inputs'!J15 -> 2018 | N63: ='Capital Cont Inputs'!K15 -> 2019 | O63: ='Capital Cont Inputs'!L15 -> 2020 | P63: ='Capital Cont Inputs'!M15 -> 2021 | Q63: ='Capital Cont Inputs'!N15 -> 2022 | R63: ='Capital Cont Inputs'!O15 -> 2023 | S63: ='Capital Cont Inputs'!P15 -> 2024 | T63: ='Capital Cont Inputs'!Q15 -> 2025 | U63: ='Capital Cont Inputs'!R15 -> 2026 | V63: ='Capital Cont Inputs'!S15 -> 2027 | W63: ='Capital Cont Inputs'!T15 -> 2028 | X63: ='Capital Cont Inputs'!U15 -> 2029 | Y63: ='Capital Cont Inputs'!V15 -> 2030 | Z63: ='Capital Cont Inputs'!W15 -> 2031 | AA63: ='Capital Cont Inputs'!X15 -> 2032 | AB63: ='Capital Cont Inputs'!Y15 -> 2033 | AC63: ='Capital Cont Inputs'!Z15 -> 2034 | AD63: ='Capital Cont Inputs'!AA15 -> 2035
C64: Project Year Load Forecast Summary
C65: =C56 -> Load (MW / month) | F65: =IF(ISNUMBER(F55),IF('Project Inputs'!$B$75="Calendar Year",(E56*(12-F$60)+F56*F$60)/12,'Project Inputs'!C81),0) -> 21.26180917 | G65: =IF(ISNUMBER(G55),IF('Project Inputs'!$B$75="Calendar Year",(F56*(12-G$60)+G56*G$60)/12,'Project Inputs'!D81),0) -> 31.35384695 | H65: =IF(ISNUMBER(H55),IF('Project Inputs'!$B$75="Calendar Year",(G56*(12-H$60)+H56*H$60)/12,'Project Inputs'!E81),0) -> 29.59271892 | I65: =IF(ISNUMBER(I55),IF('Project Inputs'!$B$75="Calendar Year",(H56*(12-I$60)+I56*I$60)/12,'Project Inputs'!F81),0) -> 33.16229827 | J65: =IF(ISNUMBER(J55),IF('Project Inputs'!$B$75="Calendar Year",(I56*(12-J$60)+J56*J$60)/12,'Project Inputs'!G81),0) -> 40.47906394 | K65: =IF(ISNUMBER(K55),IF('Project Inputs'!$B$75="Calendar Year",(J56*(12-K$60)+K56*K$60)/12,'Project Inputs'!H81),0) -> 31.83579374 | L65: =IF(ISNUMBER(L55),IF('Project Inputs'!$B$75="Calendar Year",(K56*(12-L$60)+L56*L$60)/12,'Project Inputs'!I81),0) -> 42.63435444 | M65: =IF(ISNUMBER(M55),IF('Project Inputs'!$B$75="Calendar Year",(L56*(12-M$60)+M56*M$60)/12,'Project Inputs'!J81),0) -> 46.6358349 | N65: =IF(ISNUMBER(N55),IF('Project Inputs'!$B$75="Calendar Year",(M56*(12-N$60)+N56*N$60)/12,'Project Inputs'!K81),0) -> 47.73436657 | O65: =IF(ISNUMBER(O55),IF('Project Inputs'!$B$75="Calendar Year",(N56*(12-O$60)+O56*O$60)/12,'Project Inputs'!L81),0) -> 49.31130905 | P65: =IF(ISNUMBER(P55),IF('Project Inputs'!$B$75="Calendar Year",(O56*(12-P$60)+P56*P$60)/12,'Project Inputs'!M81),0) -> 54.09559515 | Q65: =IF(ISNUMBER(Q55),IF('Project Inputs'!$B$75="Calendar Year",(P56*(12-Q$60)+Q56*Q$60)/12,'Project Inputs'!N81),0) -> 58.31781849 | R65: =IF(ISNUMBER(R55),IF('Project Inputs'!$B$75="Calendar Year",(Q56*(12-R$60)+R56*R$60)/12,'Project Inputs'!O81),0) -> 62.37168764 | S65: =IF(ISNUMBER(S55),IF('Project Inputs'!$B$75="Calendar Year",(R56*(12-S$60)+S56*S$60)/12,'Project Inputs'!P81),0) -> 65.9458361 | T65: =IF(ISNUMBER(T55),IF('Project Inputs'!$B$75="Calendar Year",(S56*(12-T$60)+T56*T$60)/12,'Project Inputs'!Q81),0) -> 69.911763 | U65: =IF(ISNUMBER(U55),IF('Project Inputs'!$B$75="Calendar Year",(T56*(12-U$60)+U56*U$60)/12,'Project Inputs'!R81),0) -> 74.41029933 | V65: =IF(ISNUMBER(V55),IF('Project Inputs'!$B$75="Calendar Year",(U56*(12-V$60)+V56*V$60)/12,'Project Inputs'!S81),0) -> 78.79436044 | W65: =IF(ISNUMBER(W55),IF('Project Inputs'!$B$75="Calendar Year",(V56*(12-W$60)+W56*W$60)/12,'Project Inputs'!T81),0) -> 82.93702224 | X65: =IF(ISNUMBER(X55),IF('Project Inputs'!$B$75="Calendar Year",(W56*(12-X$60)+X56*X$60)/12,'Project Inputs'!U81),0) -> 87.53642255 | Y65: =IF(ISNUMBER(Y55),IF('Project Inputs'!$B$75="Calendar Year",(X56*(12-Y$60)+Y56*Y$60)/12,'Project Inputs'!V81),0) -> 92.1605076 | Z65: =IF(ISNUMBER(Z55),IF('Project Inputs'!$B$75="Calendar Year",(Y56*(12-Z$60)+Z56*Z$60)/12,'Project Inputs'!W81),0) -> 95.82298243 | AA65: =IF(ISNUMBER(AA55),IF('Project Inputs'!$B$75="Calendar Year",(Z56*(12-AA$60)+AA56*AA$60)/12,'Project Inputs'!X81),0) -> 99.71285479 | AB65: =IF(ISNUMBER(AB55),IF('Project Inputs'!$B$75="Calendar Year",(AA56*(12-AB$60)+AB56*AB$60)/12,'Project Inputs'!Y81),0) -> 103.5145354 | AC65: =IF(ISNUMBER(AC55),IF('Project Inputs'!$B$75="Calendar Year",(AB56*(12-AC$60)+AC56*AC$60)/12,'Project Inputs'!Z81),0) -> 106.89774 | AD65: =IF(ISNUMBER(AD55),IF('Project Inputs'!$B$75="Calendar Year",(AC56*(12-AD$60)+AD56*AD$60)/12,'Project Inputs'!AA81),0) -> 110.7333098
C66: =C57 -> Load adjustments (MW / month) | F66: =IF(ISNUMBER(F55),IF('Project Inputs'!$B$75="Calendar Year",((E57*(12-F$60)+F57*F$60)/12),'Project Inputs'!C82),0) -> 0 | G66: =IF(ISNUMBER(G55),IF('Project Inputs'!$B$75="Calendar Year",((F57*(12-G$60)+G57*G$60)/12),'Project Inputs'!D82),0) -> 0 | H66: =IF(ISNUMBER(H55),IF('Project Inputs'!$B$75="Calendar Year",((G57*(12-H$60)+H57*H$60)/12),'Project Inputs'!E82),0) -> 0 | I66: =IF(ISNUMBER(I55),IF('Project Inputs'!$B$75="Calendar Year",((H57*(12-I$60)+I57*I$60)/12),'Project Inputs'!F82),0) -> 0 | J66: =IF(ISNUMBER(J55),IF('Project Inputs'!$B$75="Calendar Year",((I57*(12-J$60)+J57*J$60)/12),'Project Inputs'!G82),0) -> 0 | K66: =IF(ISNUMBER(K55),IF('Project Inputs'!$B$75="Calendar Year",((J57*(12-K$60)+K57*K$60)/12),'Project Inputs'!H82),0) -> 0 | L66: =IF(ISNUMBER(L55),IF('Project Inputs'!$B$75="Calendar Year",((K57*(12-L$60)+L57*L$60)/12),'Project Inputs'!I82),0) -> 0 | M66: =IF(ISNUMBER(M55),IF('Project Inputs'!$B$75="Calendar Year",((L57*(12-M$60)+M57*M$60)/12),'Project Inputs'!J82),0) -> 0 | N66: =IF(ISNUMBER(N55),IF('Project Inputs'!$B$75="Calendar Year",((M57*(12-N$60)+N57*N$60)/12),'Project Inputs'!K82),0) -> 0 | O66: =IF(ISNUMBER(O55),IF('Project Inputs'!$B$75="Calendar Year",((N57*(12-O$60)+O57*O$60)/12),'Project Inputs'!L82),0) -> 0 | P66: =IF(ISNUMBER(P55),IF('Project Inputs'!$B$75="Calendar Year",((O57*(12-P$60)+P57*P$60)/12),'Project Inputs'!M82),0) -> 0 | Q66: =IF(ISNUMBER(Q55),IF('Project Inputs'!$B$75="Calendar Year",((P57*(12-Q$60)+Q57*Q$60)/12),'Project Inputs'!N82),0) -> 0 | R66: =IF(ISNUMBER(R55),IF('Project Inputs'!$B$75="Calendar Year",((Q57*(12-R$60)+R57*R$60)/12),'Project Inputs'!O82),0) -> 0 | S66: =IF(ISNUMBER(S55),IF('Project Inputs'!$B$75="Calendar Year",((R57*(12-S$60)+S57*S$60)/12),'Project Inputs'!P82),0) -> 0 | T66: =IF(ISNUMBER(T55),IF('Project Inputs'!$B$75="Calendar Year",((S57*(12-T$60)+T57*T$60)/12),'Project Inputs'!Q82),0) -> 0 | U66: =IF(ISNUMBER(U55),IF('Project Inputs'!$B$75="Calendar Year",((T57*(12-U$60)+U57*U$60)/12),'Project Inputs'!R82),0) -> 0 | V66: =IF(ISNUMBER(V55),IF('Project Inputs'!$B$75="Calendar Year",((U57*(12-V$60)+V57*V$60)/12),'Project Inputs'!S82),0) -> 0 | W66: =IF(ISNUMBER(W55),IF('Project Inputs'!$B$75="Calendar Year",((V57*(12-W$60)+W57*W$60)/12),'Project Inputs'!T82),0) -> 0 | X66: =IF(ISNUMBER(X55),IF('Project Inputs'!$B$75="Calendar Year",((W57*(12-X$60)+X57*X$60)/12),'Project Inputs'!U82),0) -> 0 | Y66: =IF(ISNUMBER(Y55),IF('Project Inputs'!$B$75="Calendar Year",((X57*(12-Y$60)+Y57*Y$60)/12),'Project Inputs'!V82),0) -> 0 | Z66: =IF(ISNUMBER(Z55),IF('Project Inputs'!$B$75="Calendar Year",((Y57*(12-Z$60)+Z57*Z$60)/12),'Project Inputs'!W82),0) -> 0 | AA66: =IF(ISNUMBER(AA55),IF('Project Inputs'!$B$75="Calendar Year",((Z57*(12-AA$60)+AA57*AA$60)/12),'Project Inputs'!X82),0) -> 0 | AB66: =IF(ISNUMBER(AB55),IF('Project Inputs'!$B$75="Calendar Year",((AA57*(12-AB$60)+AB57*AB$60)/12),'Project Inputs'!Y82),0) -> 0 | AC66: =IF(ISNUMBER(AC55),IF('Project Inputs'!$B$75="Calendar Year",((AB57*(12-AC$60)+AC57*AC$60)/12),'Project Inputs'!Z82),0) -> 0 | AD66: =IF(ISNUMBER(AD55),IF('Project Inputs'!$B$75="Calendar Year",((AC57*(12-AD$60)+AD57*AD$60)/12),'Project Inputs'!AA82),0) -> 0
C67: Forecasted load (MW / project year) | F67: =SUM(F65:F66) -> 21.26180917 | G67: =SUM(G65:G66) -> 31.35384695 | H67: 29.59271892 | I67: 33.16229827 | J67: 40.47906394 | K67: 31.83579374 | L67: 42.63435444 | M67: 46.6358349 | N67: 47.73436657 | O67: 49.31130905 | P67: 54.09559515 | Q67: 58.31781849 | R67: 62.37168764 | S67: 65.9458361 | T67: 69.911763 | U67: 74.41029933 | V67: 78.79436044 | W67: 82.93702224 | X67: 87.53642255 | Y67: 92.1605076 | Z67: 95.82298243 | AA67: 99.71285479 | AB67: 103.5145354 | AC67: 106.89774 | AD67: 110.7333098
C70: Load Factor Adjustments
C71: PLI adjustment | D71: =IF('Project Inputs'!$B$76="Yes","N/A",IF(ISBLANK('Project Inputs'!$D$76),1,'Project Inputs'!$D$76)) -> N/A
C72: =C65 -> Load (MW / month) | F72: =IF('Project Inputs'!$B$76="No",F65*$D$71,'Prelim Calc'!F65) -> 21.26180917 | G72: =IF('Project Inputs'!$B$76="No",G65*$D$71,'Prelim Calc'!G65) -> 31.35384695 | H72: =IF('Project Inputs'!$B$76="No",H65*$D$71,'Prelim Calc'!H65) -> 29.59271892 | I72: =IF('Project Inputs'!$B$76="No",I65*$D$71,'Prelim Calc'!I65) -> 33.16229827 | J72: =IF('Project Inputs'!$B$76="No",J65*$D$71,'Prelim Calc'!J65) -> 40.47906394 | K72: =IF('Project Inputs'!$B$76="No",K65*$D$71,'Prelim Calc'!K65) -> 31.83579374 | L72: =IF('Project Inputs'!$B$76="No",L65*$D$71,'Prelim Calc'!L65) -> 42.63435444 | M72: =IF('Project Inputs'!$B$76="No",M65*$D$71,'Prelim Calc'!M65) -> 46.6358349 | N72: =IF('Project Inputs'!$B$76="No",N65*$D$71,'Prelim Calc'!N65) -> 47.73436657 | O72: =IF('Project Inputs'!$B$76="No",O65*$D$71,'Prelim Calc'!O65) -> 49.31130905 | P72: =IF('Project Inputs'!$B$76="No",P65*$D$71,'Prelim Calc'!P65) -> 54.09559515 | Q72: =IF('Project Inputs'!$B$76="No",Q65*$D$71,'Prelim Calc'!Q65) -> 58.31781849 | R72: =IF('Project Inputs'!$B$76="No",R65*$D$71,'Prelim Calc'!R65) -> 62.37168764 | S72: =IF('Project Inputs'!$B$76="No",S65*$D$71,'Prelim Calc'!S65) -> 65.9458361 | T72: =IF('Project Inputs'!$B$76="No",T65*$D$71,'Prelim Calc'!T65) -> 69.911763 | U72: =IF('Project Inputs'!$B$76="No",U65*$D$71,'Prelim Calc'!U65) -> 74.41029933 | V72: =IF('Project Inputs'!$B$76="No",V65*$D$71,'Prelim Calc'!V65) -> 78.79436044 | W72: =IF('Project Inputs'!$B$76="No",W65*$D$71,'Prelim Calc'!W65) -> 82.93702224 | X72: =IF('Project Inputs'!$B$76="No",X65*$D$71,'Prelim Calc'!X65) -> 87.53642255 | Y72: =IF('Project Inputs'!$B$76="No",Y65*$D$71,'Prelim Calc'!Y65) -> 92.1605076 | Z72: =IF('Project Inputs'!$B$76="No",Z65*$D$71,'Prelim Calc'!Z65) -> 95.82298243 | AA72: =IF('Project Inputs'!$B$76="No",AA65*$D$71,'Prelim Calc'!AA65) -> 99.71285479 | AB72: =IF('Project Inputs'!$B$76="No",AB65*$D$71,'Prelim Calc'!AB65) -> 103.5145354 | AC72: =IF('Project Inputs'!$B$76="No",AC65*$D$71,'Prelim Calc'!AC65) -> 106.89774 | AD72: =IF('Project Inputs'!$B$76="No",AD65*$D$71,'Prelim Calc'!AD65) -> 110.7333098
C73: =C66 -> Load adjustments (MW / month) | F73: =IF('Project Inputs'!$B$76="No",F66*$D$71,'Prelim Calc'!F66) -> 0 | G73: =IF('Project Inputs'!$B$76="No",G66*$D$71,'Prelim Calc'!G66) -> 0 | H73: =IF('Project Inputs'!$B$76="No",H66*$D$71,'Prelim Calc'!H66) -> 0 | I73: =IF('Project Inputs'!$B$76="No",I66*$D$71,'Prelim Calc'!I66) -> 0 | J73: =IF('Project Inputs'!$B$76="No",J66*$D$71,'Prelim Calc'!J66) -> 0 | K73: =IF('Project Inputs'!$B$76="No",K66*$D$71,'Prelim Calc'!K66) -> 0 | L73: =IF('Project Inputs'!$B$76="No",L66*$D$71,'Prelim Calc'!L66) -> 0 | M73: =IF('Project Inputs'!$B$76="No",M66*$D$71,'Prelim Calc'!M66) -> 0 | N73: =IF('Project Inputs'!$B$76="No",N66*$D$71,'Prelim Calc'!N66) -> 0 | O73: =IF('Project Inputs'!$B$76="No",O66*$D$71,'Prelim Calc'!O66) -> 0 | P73: =IF('Project Inputs'!$B$76="No",P66*$D$71,'Prelim Calc'!P66) -> 0 | Q73: =IF('Project Inputs'!$B$76="No",Q66*$D$71,'Prelim Calc'!Q66) -> 0 | R73: =IF('Project Inputs'!$B$76="No",R66*$D$71,'Prelim Calc'!R66) -> 0 | S73: =IF('Project Inputs'!$B$76="No",S66*$D$71,'Prelim Calc'!S66) -> 0 | T73: =IF('Project Inputs'!$B$76="No",T66*$D$71,'Prelim Calc'!T66) -> 0 | U73: =IF('Project Inputs'!$B$76="No",U66*$D$71,'Prelim Calc'!U66) -> 0 | V73: =IF('Project Inputs'!$B$76="No",V66*$D$71,'Prelim Calc'!V66) -> 0 | W73: =IF('Project Inputs'!$B$76="No",W66*$D$71,'Prelim Calc'!W66) -> 0 | X73: =IF('Project Inputs'!$B$76="No",X66*$D$71,'Prelim Calc'!X66) -> 0 | Y73: =IF('Project Inputs'!$B$76="No",Y66*$D$71,'Prelim Calc'!Y66) -> 0 | Z73: =IF('Project Inputs'!$B$76="No",Z66*$D$71,'Prelim Calc'!Z66) -> 0 | AA73: =IF('Project Inputs'!$B$76="No",AA66*$D$71,'Prelim Calc'!AA66) -> 0 | AB73: =IF('Project Inputs'!$B$76="No",AB66*$D$71,'Prelim Calc'!AB66) -> 0 | AC73: =IF('Project Inputs'!$B$76="No",AC66*$D$71,'Prelim Calc'!AC66) -> 0 | AD73: =IF('Project Inputs'!$B$76="No",AD66*$D$71,'Prelim Calc'!AD66) -> 0
C74: Load factor adjusted forecasted load (MW / project year) | F74: =F72+F73 -> 21.26180917 | G74: 31.35384695 | H74: 29.59271892 | I74: 33.16229827 | J74: 40.47906394 | K74: 31.83579374 | L74: 42.63435444 | M74: 46.6358349 | N74: 47.73436657 | O74: 49.31130905 | P74: 54.09559515 | Q74: 58.31781849 | R74: 62.37168764 | S74: 65.9458361 | T74: 69.911763 | U74: 74.41029933 | V74: 78.79436044 | W74: 82.93702224 | X74: 87.53642255 | Y74: 92.1605076 | Z74: 95.82298243 | AA74: 99.71285479 | AB74: 103.5145354 | AC74: 106.89774 | AD74: 110.7333098
C77: Load Used in Model
C78: Forecast or revenue guarantee load to be used in model? | D78: =IF(RevenueGuaranteeCalc="IEE/True-up","Forecast",RevenueGuaranteeCalc) -> Forecast
C80: Revenue guarantee factor | D80: =IF(D78="Forecast","N/A",RevenueGuarantee) -> N/A
C81: Load (MW / month) | F81: =IF(OR('Project Inputs'!C$80="Actual",'Capital Cont Inputs'!$B$52="IEE/True-up"),F72,$D$80*F72) -> 21.26180917 | G81: =IF(OR('Project Inputs'!D$80="Actual",'Capital Cont Inputs'!$B$52="IEE/True-up"),G72,$D$80*G72) -> 31.35384695 | H81: =IF(OR('Project Inputs'!E$80="Actual",'Capital Cont Inputs'!$B$52="IEE/True-up"),H72,$D$80*H72) -> 29.59271892 | I81: =IF(OR('Project Inputs'!F$80="Actual",'Capital Cont Inputs'!$B$52="IEE/True-up"),I72,$D$80*I72) -> 33.16229827 | J81: =IF(OR('Project Inputs'!G$80="Actual",'Capital Cont Inputs'!$B$52="IEE/True-up"),J72,$D$80*J72) -> 40.47906394 | K81: =IF(OR('Project Inputs'!H$80="Actual",'Capital Cont Inputs'!$B$52="IEE/True-up"),K72,$D$80*K72) -> 31.83579374 | L81: =IF(OR('Project Inputs'!I$80="Actual",'Capital Cont Inputs'!$B$52="IEE/True-up"),L72,$D$80*L72) -> 42.63435444 | M81: =IF(OR('Project Inputs'!J$80="Actual",'Capital Cont Inputs'!$B$52="IEE/True-up"),M72,$D$80*M72) -> 46.6358349 | N81: =IF(OR('Project Inputs'!K$80="Actual",'Capital Cont Inputs'!$B$52="IEE/True-up"),N72,$D$80*N72) -> 47.73436657 | O81: =IF(OR('Project Inputs'!L$80="Actual",'Capital Cont Inputs'!$B$52="IEE/True-up"),O72,$D$80*O72) -> 49.31130905 | P81: =IF(OR('Project Inputs'!M$80="Actual",'Capital Cont Inputs'!$B$52="IEE/True-up"),P72,$D$80*P72) -> 54.09559515 | Q81: =IF(OR('Project Inputs'!N$80="Actual",'Capital Cont Inputs'!$B$52="IEE/True-up"),Q72,$D$80*Q72) -> 58.31781849 | R81: =IF(OR('Project Inputs'!O$80="Actual",'Capital Cont Inputs'!$B$52="IEE/True-up"),R72,$D$80*R72) -> 62.37168764 | S81: =IF(OR('Project Inputs'!P$80="Actual",'Capital Cont Inputs'!$B$52="IEE/True-up"),S72,$D$80*S72) -> 65.9458361 | T81: =IF(OR('Project Inputs'!Q$80="Actual",'Capital Cont Inputs'!$B$52="IEE/True-up"),T72,$D$80*T72) -> 69.911763 | U81: =IF(OR('Project Inputs'!R$80="Actual",'Capital Cont Inputs'!$B$52="IEE/True-up"),U72,$D$80*U72) -> 74.41029933 | V81: =IF(OR('Project Inputs'!S$80="Actual",'Capital Cont Inputs'!$B$52="IEE/True-up"),V72,$D$80*V72) -> 78.79436044 | W81: =IF(OR('Project Inputs'!T$80="Actual",'Capital Cont Inputs'!$B$52="IEE/True-up"),W72,$D$80*W72) -> 82.93702224 | X81: =IF(OR('Project Inputs'!U$80="Actual",'Capital Cont Inputs'!$B$52="IEE/True-up"),X72,$D$80*X72) -> 87.53642255 | Y81: =IF(OR('Project Inputs'!V$80="Actual",'Capital Cont Inputs'!$B$52="IEE/True-up"),Y72,$D$80*Y72) -> 92.1605076 | Z81: =IF(OR('Project Inputs'!W$80="Actual",'Capital Cont Inputs'!$B$52="IEE/True-up"),Z72,$D$80*Z72) -> 95.82298243 | AA81: =IF(OR('Project Inputs'!X$80="Actual",'Capital Cont Inputs'!$B$52="IEE/True-up"),AA72,$D$80*AA72) -> 99.71285479 | AB81: =IF(OR('Project Inputs'!Y$80="Actual",'Capital Cont Inputs'!$B$52="IEE/True-up"),AB72,$D$80*AB72) -> 103.5145354 | AC81: =IF(OR('Project Inputs'!Z$80="Actual",'Capital Cont Inputs'!$B$52="IEE/True-up"),AC72,$D$80*AC72) -> 106.89774 | AD81: =IF(OR('Project Inputs'!AA$80="Actual",'Capital Cont Inputs'!$B$52="IEE/True-up"),AD72,$D$80*AD72) -> 110.7333098
C82: Load adjustments (MW / month) | F82: =F73 -> 0 | G82: =G73 -> 0 | H82: 0 | I82: 0 | J82: 0 | K82: 0 | L82: 0 | M82: 0 | N82: 0 | O82: 0 | P82: 0 | Q82: 0 | R82: 0 | S82: 0 | T82: 0 | U82: 0 | V82: 0 | W82: 0 | X82: 0 | Y82: 0 | Z82: 0 | AA82: 0 | AB82: 0 | AC82: 0 | AD82: 0
C83: Total load (MW / project year) | F83: =SUM(F81:F82) -> 21.26180917 | G83: =SUM(G81:G82) -> 31.35384695 | H83: 29.59271892 | I83: 33.16229827 | J83: 40.47906394 | K83: 31.83579374 | L83: 42.63435444 | M83: 46.6358349 | N83: 47.73436657 | O83: 49.31130905 | P83: 54.09559515 | Q83: 58.31781849 | R83: 62.37168764 | S83: 65.9458361 | T83: 69.911763 | U83: 74.41029933 | V83: 78.79436044 | W83: 82.93702224 | X83: 87.53642255 | Y83: 92.1605076 | Z83: 95.82298243 | AA83: 99.71285479 | AB83: 103.5145354 | AC83: 106.89774 | AD83: 110.7333098

Sheet NPV Calc
B2: Capital Contribution flag (select Yes to include in calculation of NPV): | C2: No
D4: Project Year: | E4: ='Capital Cont Inputs'!B16 -> 0 | F4: ='Capital Cont Inputs'!C16 -> 1 | G4: ='Capital Cont Inputs'!D16 -> 2 | H4: ='Capital Cont Inputs'!E16 -> 3 | I4: ='Capital Cont Inputs'!F16 -> 4 | J4: ='Capital Cont Inputs'!G16 -> 5 | K4: ='Capital Cont Inputs'!H16 -> 6 | L4: ='Capital Cont Inputs'!I16 -> 7 | M4: ='Capital Cont Inputs'!J16 -> 8 | N4: ='Capital Cont Inputs'!K16 -> 9 | O4: ='Capital Cont Inputs'!L16 -> 10 | P4: ='Capital Cont Inputs'!M16 -> 11 | Q4: ='Capital Cont Inputs'!N16 -> 12 | R4: ='Capital Cont Inputs'!O16 -> 13 | S4: ='Capital Cont Inputs'!P16 -> 14 | T4: ='Capital Cont Inputs'!Q16 -> 15 | U4: ='Capital Cont Inputs'!R16 -> 16 | V4: ='Capital Cont Inputs'!S16 -> 17 | W4: ='Capital Cont Inputs'!T16 -> 18 | X4: ='Capital Cont Inputs'!U16 -> 19 | Y4: ='Capital Cont Inputs'!V16 -> 20 | Z4: ='Capital Cont Inputs'!W16 -> 21 | AA4: ='Capital Cont Inputs'!X16 -> 22 | AB4: ='Capital Cont Inputs'!Y16 -> 23 | AC4: ='Capital Cont Inputs'!Z16 -> 24 | AD4: ='Capital Cont Inputs'!AA16 -> 25
D5: Year Ended: | E5: ='Capital Cont Inputs'!B15 -> 2010 | F5: ='Capital Cont Inputs'!C15 -> 2011 | G5: ='Capital Cont Inputs'!D15 -> 2012 | H5: ='Capital Cont Inputs'!E15 -> 2013 | I5: ='Capital Cont Inputs'!F15 -> 2014 | J5: ='Capital Cont Inputs'!G15 -> 2015 | K5: ='Capital Cont Inputs'!H15 -> 2016 | L5: ='Capital Cont Inputs'!I15 -> 2017 | M5: ='Capital Cont Inputs'!J15 -> 2018 | N5: ='Capital Cont Inputs'!K15 -> 2019 | O5: ='Capital Cont Inputs'!L15 -> 2020 | P5: ='Capital Cont Inputs'!M15 -> 2021 | Q5: ='Capital Cont Inputs'!N15 -> 2022 | R5: ='Capital Cont Inputs'!O15 -> 2023 | S5: ='Capital Cont Inputs'!P15 -> 2024 | T5: ='Capital Cont Inputs'!Q15 -> 2025 | U5: ='Capital Cont Inputs'!R15 -> 2026 | V5: ='Capital Cont Inputs'!S15 -> 2027 | W5: ='Capital Cont Inputs'!T15 -> 2028 | X5: ='Capital Cont Inputs'!U15 -> 2029 | Y5: ='Capital Cont Inputs'!V15 -> 2030 | Z5: ='Capital Cont Inputs'!W15 -> 2031 | AA5: ='Capital Cont Inputs'!X15 -> 2032 | AB5: ='Capital Cont Inputs'!Y15 -> 2033 | AC5: ='Capital Cont Inputs'!Z15 -> 2034 | AD5: ='Capital Cont Inputs'!AA15 -> 2035
A7: Discount | B7: Calculation of Net Present Value: | C7: Undiscounted | D7: Cum. NPV at
A8: Method | C8: Cash Flow | D8: IS Date
B9: Incremental revenues:
B10: =CONCATENATE('Project Inputs'!B28," - ","Load Forecast (MW)") -> 2nd true-up - Load Forecast (MW) | F10: ='Prelim Calc'!F81 -> 21.26180917 | G10: ='Prelim Calc'!G81 -> 31.35384695 | H10: ='Prelim Calc'!H81 -> 29.59271892 | I10: ='Prelim Calc'!I81 -> 33.16229827 | J10: ='Prelim Calc'!J81 -> 40.47906394 | K10: ='Prelim Calc'!K81 -> 31.83579374 | L10: ='Prelim Calc'!L81 -> 42.63435444 | M10: ='Prelim Calc'!M81 -> 46.6358349 | N10: ='Prelim Calc'!N81 -> 47.73436657 | O10: ='Prelim Calc'!O81 -> 49.31130905 | P10: ='Prelim Calc'!P81 -> 54.09559515 | Q10: ='Prelim Calc'!Q81 -> 58.31781849 | R10: ='Prelim Calc'!R81 -> 62.37168764 | S10: ='Prelim Calc'!S81 -> 65.9458361 | T10: ='Prelim Calc'!T81 -> 69.911763 | U10: ='Prelim Calc'!U81 -> 74.41029933 | V10: ='Prelim Calc'!V81 -> 78.79436044 | W10: ='Prelim Calc'!W81 -> 82.93702224 | X10: ='Prelim Calc'!X81 -> 87.53642255 | Y10: ='Prelim Calc'!Y81 -> 92.1605076 | Z10: ='Prelim Calc'!Z81 -> 95.82298243 | AA10: ='Prelim Calc'!AA81 -> 99.71285479 | AB10: ='Prelim Calc'!AB81 -> 103.5145354 | AC10: ='Prelim Calc'!AC81 -> 106.89774 | AD10: ='Prelim Calc'!AD81 -> 110.7333098
B11: Load adjustments (MW) | F11: ='Prelim Calc'!F82 -> 0 | G11: ='Prelim Calc'!G82 -> 0 | H11: ='Prelim Calc'!H82 -> 0 | I11: ='Prelim Calc'!I82 -> 0 | J11: ='Prelim Calc'!J82 -> 0 | K11: ='Prelim Calc'!K82 -> 0 | L11: ='Prelim Calc'!L82 -> 0 | M11: ='Prelim Calc'!M82 -> 0 | N11: ='Prelim Calc'!N82 -> 0 | O11: ='Prelim Calc'!O82 -> 0 | P11: ='Prelim Calc'!P82 -> 0 | Q11: ='Prelim Calc'!Q82 -> 0 | R11: ='Prelim Calc'!R82 -> 0 | S11: ='Prelim Calc'!S82 -> 0 | T11: ='Prelim Calc'!T82 -> 0 | U11: ='Prelim Calc'!U82 -> 0 | V11: ='Prelim Calc'!V82 -> 0 | W11: ='Prelim Calc'!W82 -> 0 | X11: ='Prelim Calc'!X82 -> 0 | Y11: ='Prelim Calc'!Y82 -> 0 | Z11: ='Prelim Calc'!Z82 -> 0 | AA11: ='Prelim Calc'!AA82 -> 0 | AB11: ='Prelim Calc'!AB82 -> 0 | AC11: ='Prelim Calc'!AC82 -> 0 | AD11: ='Prelim Calc'!AD82 -> 0
B12: Total load (MW) | F12: =SUM(F10:F11) -> 21.26180917 | G12: =SUM(G10:G11) -> 31.35384695 | H12: 29.59271892 | I12: 33.16229827 | J12: 40.47906394 | K12: 31.83579374 | L12: 42.63435444 | M12: 46.6358349 | N12: 47.73436657 | O12: 49.31130905 | P12: 54.09559515 | Q12: 58.31781849 | R12: 62.37168764 | S12: 65.9458361 | T12: 69.911763 | U12: 74.41029933 | V12: 78.79436044 | W12: 82.93702224 | X12: 87.53642255 | Y12: 92.1605076 | Z12: 95.82298243 | AA12: 99.71285479 | AB12: 103.5145354 | AC12: 106.89774 | AD12: 110.7333098
B14: =CONCATENATE("Tariff Applied"," - ",'Project Inputs'!B17, " $/kW/Month") -> Tariff Applied - Transformation $/kW/Month | F14: =IF('Project Inputs'!B17="Line",'Standard Inputs'!B6,IF('Project Inputs'!B17="Network",'Standard Inputs'!B7,'Standard Inputs'!B8)) -> 1.61 | G14: =IF(ISNUMBER(G5),F14,0) -> 1.61 | H14: 1.61 | I14: 1.61 | J14: 1.61 | K14: 1.61 | L14: 1.61 | M14: 1.61 | N14: 1.61 | O14: 1.61 | P14: 1.61 | Q14: 1.61 | R14: 1.61 | S14: 1.61 | T14: 1.61 | U14: 1.61 | V14: 1.61 | W14: 1.61 | X14: 1.61 | Y14: 1.61 | Z14: 1.61 | AA14: 1.61 | AB14: 1.61 | AC14: 1.61 | AD14: 1.61
B15: Total incremental revenue (monthly) | F15: =(F12)*F14 -> 34.23151277 | G15: =(G12)*G14 -> 50.47969359 | H15: 47.64427746 | I15: 53.39130022 | J15: 65.17129294 | K15: 51.25562793 | L15: 68.64131066 | M15: 75.0836942 | N15: 76.85233018 | O15: 79.39120758 | P15: 87.09390819 | Q15: 93.89168777 | R15: 100.4184171 | S15: 106.1727961 | T15: 112.5579384 | U15: 119.8005819 | V15: 126.8589203 | W15: 133.5286058 | X15: 140.9336403 | Y15: 148.3784172 | Z15: 154.2750017 | AA15: 160.5376962 | AB15: 166.658402 | AC15: 172.1053614 | AD15: 178.2806288
A17: M | B17: Total incremental revenue - $k | C17: =SUM(E17:AD17) -> 31243.61101 | D17: =SUMPRODUCT(E17:AD17,$E$50:$AD$50) -> 14276.30632 | F17: =F15*12 -> 410.7781532 | G17: 605.7563231 | H17: 571.7313296 | I17: 640.6956027 | J17: 782.0555153 | K17: 615.0675352 | L17: 823.6957279 | M17: 901.0043304 | N17: 922.2279621 | O17: 952.6944909 | P17: 1045.126898 | Q17: 1126.700253 | R17: 1205.021005 | S17: 1274.073554 | T17: 1350.695261 | U17: 1437.606983 | V17: 1522.307044 | W17: 1602.34327 | X17: 1691.203684 | Y17: 1780.541007 | Z17: 1851.30002 | AA17: 1926.452354 | AB17: 1999.900824 | AC17: 2065.264336 | AD17: 2139.367545
B19: Incremental costs:
A20: M | B20: Removal costs | C20: =SUM(E20:AD20) -> 0 | D20: =SUMPRODUCT(E20:AD20,$E$50:$AD$50) -> 0 | E20: =-'Prelim Calc'!E10 -> 0
A21: M | B21: OM&A costs | C21: =SUM(E21:AD21) -> -1280 | D21: =SUMPRODUCT(E21:AD21,$E$50:$AD$50) -> -646.1867526 | F21: =IF(ISNUMBER(F5),-'Project Inputs'!C70,0) -> -42 | G21: =IF(ISNUMBER(G5),-'Project Inputs'!D70,0) -> -42 | H21: =IF(ISNUMBER(H5),-'Project Inputs'!E70,0) -> -42 | I21: =IF(ISNUMBER(I5),-'Project Inputs'!F70,0) -> -42 | J21: =IF(ISNUMBER(J5),-'Project Inputs'!G70,0) -> -42 | K21: =IF(ISNUMBER(K5),-'Project Inputs'!H70,0) -> -42 | L21: =IF(ISNUMBER(L5),-'Project Inputs'!I70,0) -> -42 | M21: =IF(ISNUMBER(M5),-'Project Inputs'!J70,0) -> -42 | N21: =IF(ISNUMBER(N5),-'Project Inputs'!K70,0) -> -42 | O21: =IF(ISNUMBER(O5),-'Project Inputs'!L70,0) -> -42 | P21: =IF(ISNUMBER(P5),-'Project Inputs'!M70,0) -> -42 | Q21: =IF(ISNUMBER(Q5),-'Project Inputs'!N70,0) -> -42 | R21: =IF(ISNUMBER(R5),-'Project Inputs'!O70,0) -> -42 | S21: =IF(ISNUMBER(S5),-'Project Inputs'!P70,0) -> -42 | T21: =IF(ISNUMBER(T5),-'Project Inputs'!Q70,0) -> -42 | U21: =IF(ISNUMBER(U5),-'Project Inputs'!R70,0) -> -65 | V21: =IF(ISNUMBER(V5),-'Project Inputs'!S70,0) -> -65 | W21: =IF(ISNUMBER(W5),-'Project Inputs'!T70,0) -> -65 | X21: =IF(ISNUMBER(X5),-'Project Inputs'!U70,0) -> -65 | Y21: =IF(ISNUMBER(Y5),-'Project Inputs'!V70,0) -> -65 | Z21: =IF(ISNUMBER(Z5),-'Project Inputs'!W70,0) -> -65 | AA21: =IF(ISNUMBER(AA5),-'Project Inputs'!X70,0) -> -65 | AB21: =IF(ISNUMBER(AB5),-'Project Inputs'!Y70,0) -> -65 | AC21: =IF(ISNUMBER(AC5),-'Project Inputs'!Z70,0) -> -65 | AD21: =IF(ISNUMBER(AD5),-'Project Inputs'!AA70,0) -> -65
A22: M | B22: Ontario capital tax | C22: =SUM(E22:AD22) -> -564.362103 | D22: =SUMPRODUCT(E22:AD22,$E$50:$AD$50) -> -375.3275351 | F22: =-F181 -> -51.56136 | G22: =-G181 -> -47.4364512 | H22: -43.6415351 | I22: -40.1502123 | J22: -36.93819531 | K22: -33.98313969 | L22: -31.26448851 | M22: -28.76332943 | N22: -26.46226308 | O22: -24.34528203 | P22: -22.39765947 | Q22: -20.60584671 | R22: -18.95737897 | S22: -17.44078866 | T22: -16.04552556 | U22: -14.76188352 | V22: -13.58093284 | W22: -12.49445821 | X22: -11.49490155 | Y22: -10.57530943 | Z22: -9.729284675 | AA22: -8.950941901 | AB22: -8.234866549 | AC22: -7.576077225 | AD22: -6.969991047
A23: M | B23: Municipal tax | C23: -3730.940225 | D23: =SUMPRODUCT(E23:AD23,$E$50:$AD$50) -> -2022.019023 | F23: =-'Prelim Calc'!F29 -> -149.237609 | G23: =-'Prelim Calc'!G29 -> -149.237609 | H23: =-'Prelim Calc'!H29 -> -149.237609 | I23: =-'Prelim Calc'!I29 -> -149.237609 | J23: =-'Prelim Calc'!J29 -> -149.237609 | K23: =-'Prelim Calc'!K29 -> -149.237609 | L23: =-'Prelim Calc'!L29 -> -149.237609 | M23: =-'Prelim Calc'!M29 -> -149.237609 | N23: =-'Prelim Calc'!N29 -> -149.237609 | O23: =-'Prelim Calc'!O29 -> -149.237609 | P23: =-'Prelim Calc'!P29 -> -149.237609 | Q23: =-'Prelim Calc'!Q29 -> -149.237609 | R23: =-'Prelim Calc'!R29 -> -149.237609 | S23: =-'Prelim Calc'!S29 -> -149.237609 | T23: =-'Prelim Calc'!T29 -> -149.237609 | U23: =-'Prelim Calc'!U29 -> -149.237609 | V23: =-'Prelim Calc'!V29 -> -149.237609 | W23: =-'Prelim Calc'!W29 -> -149.237609 | X23: =-'Prelim Calc'!X29 -> -149.237609 | Y23: =-'Prelim Calc'!Y29 -> -149.237609 | Z23: =-'Prelim Calc'!Z29 -> -149.237609 | AA23: =-'Prelim Calc'!AA29 -> -149.237609 | AB23: =-'Prelim Calc'!AB29 -> -149.237609 | AC23: =-'Prelim Calc'!AC29 -> -149.237609 | AD23: =-'Prelim Calc'!AD29 -> -149.237609
B24: Total incremental removal costs, OM&A costs, and municpal taxes - $k | C24: =SUM(E24:AD24) -> -5575.302328 | D24: =SUM(D20:D23) -> -3043.533311 | E24: =SUM(E20:E23) -> 0 | F24: -242.798969 | G24: -238.6740602 | H24: -234.8791441 | I24: -231.3878213 | J24: -228.1758043 | K24: -225.2207487 | L24: -222.5020975 | M24: -220.0009384 | N24: -217.6998721 | O24: -215.582891 | P24: -213.6352685 | Q24: -211.8434557 | R24: -210.194988 | S24: -208.6783977 | T24: -207.2831346 | U24: -228.9994925 | V24: -227.8185419 | W24: -226.7320672 | X24: -225.7325106 | Y24: -224.8129184 | Z24: -223.9668937 | AA24: -223.1885509 | AB24: -222.4724756 | AC24: -221.8136862 | AD24: -221.2076001
B26: Taxes:
A27: M | B27: Income tax provision | C27: =SUM(E27:AD27) -> -1639.85263 | D27: =SUMPRODUCT(E27:AD27,$E$50:$AD$50) -> 758.1224994 | E27: =-'NPV Calc'!E96 -> 0 | F27: =-'NPV Calc'!F96 -> 263.5983733 | G27: =-'NPV Calc'!G96 -> 491.1805299 | H27: =-'NPV Calc'!H96 -> 452.1753588 | I27: =-'NPV Calc'!I96 -> 382.7010669 | J27: =-'NPV Calc'!J96 -> 292.6839366 | K27: =-'NPV Calc'!K96 -> 309.3762751 | L27: =-'NPV Calc'!L96 -> 203.3770866 | M27: =-'NPV Calc'!M96 -> 144.2586602 | N27: =-'NPV Calc'!N96 -> 106.5863026 | O27: =-'NPV Calc'!O96 -> 68.2625698 | P27: =-'NPV Calc'!P96 -> 11.4296633 | Q27: =-'NPV Calc'!Q96 -> -39.69601661 | R27: =-'NPV Calc'!R96 -> -87.82818604 | S27: =-'NPV Calc'!S96 -> -131.1039299 | T27: =-'NPV Calc'!T96 -> -175.3038908 | U27: =-'NPV Calc'!U96 -> -213.7634715 | V27: =-'NPV Calc'!V96 -> -257.8232133 | W27: =-'NPV Calc'!W96 -> -299.0657528 | X27: =-'NPV Calc'!X96 -> -342.109963 | Y27: =-'NPV Calc'!Y96 -> -384.25186 | Z27: =-'NPV Calc'!Z96 -> -419.1929118 | AA27: =-'NPV Calc'!AA96 -> -454.7067834 | AB27: =-'NPV Calc'!AB96 -> -488.8228332 | AC27: =-'NPV Calc'!AC96 -> -519.4695573 | AD27: =-'NPV Calc'!AD96 -> -552.344084
A28: M | B28: CCA recapture | C28: 0 | D28: =SUMPRODUCT(E28:AD28,$E$50:$AD$50) -> 0 | E28: ='NPV Calc'!E75 -> 0 | F28: ='NPV Calc'!F75 -> 0 | G28: ='NPV Calc'!G75 -> 0 | H28: ='NPV Calc'!H75 -> 0 | I28: ='NPV Calc'!I75 -> 0 | J28: ='NPV Calc'!J75 -> 0 | K28: ='NPV Calc'!K75 -> 0 | L28: ='NPV Calc'!L75 -> 0 | M28: ='NPV Calc'!M75 -> 0 | N28: ='NPV Calc'!N75 -> 0 | O28: ='NPV Calc'!O75 -> 0 | P28: ='NPV Calc'!P75 -> 0 | Q28: ='NPV Calc'!Q75 -> 0 | R28: ='NPV Calc'!R75 -> 0 | S28: ='NPV Calc'!S75 -> 0 | T28: ='NPV Calc'!T75 -> 0 | U28: ='NPV Calc'!U75 -> 0 | V28: ='NPV Calc'!V75 -> 0 | W28: ='NPV Calc'!W75 -> 0 | X28: ='NPV Calc'!X75 -> 0 | Y28: ='NPV Calc'!Y75 -> 0 | Z28: ='NPV Calc'!Z75 -> 0 | AA28: ='NPV Calc'!AA75 -> 0 | AB28: ='NPV Calc'!AB75 -> 0 | AC28: ='NPV Calc'!AC75 -> 0 | AD28: ='NPV Calc'!AD75 -> 0
A29: F | B29: CCA tax shield adjustment | C29: 606.8147297 | D29: =SUMPRODUCT(E29:AD29,$E$51:$AD$51) -> 152.4400747 | E29: =E112 -> 0 | F29: 0 | G29: 0 | H29: 0 | I29: 0 | J29: 0 | K29: 0 | L29: 0 | M29: 0 | N29: 0 | O29: 0 | P29: 0 | Q29: 0 | R29: 0 | S29: 0 | T29: 0 | U29: 0 | V29: 0 | W29: 0 | X29: 0 | Y29: 0 | Z29: 0 | AA29: 0 | AB29: 0 | AC29: 0 | AD29: 606.8147297
B30: Total incremental taxes - $k | C30: =SUM(E30:AD30) -> -1033.037901 | D30: =SUM(D27:D29) -> 910.5625741 | E30: 0 | F30: 263.5983733 | G30: 491.1805299 | H30: 452.1753588 | I30: 382.7010669 | J30: 292.6839366 | K30: 309.3762751 | L30: 203.3770866 | M30: 144.2586602 | N30: 106.5863026 | O30: 68.2625698 | P30: 11.4296633 | Q30: -39.69601661 | R30: -87.82818604 | S30: -131.1039299 | T30: -175.3038908 | U30: -213.7634715 | V30: -257.8232133 | W30: -299.0657528 | X30: -342.109963 | Y30: -384.25186 | Z30: -419.1929118 | AA30: -454.7067834 | AB30: -488.8228332 | AC30: -519.4695573 | AD30: 54.47064576
B32: Capital expenditures:
A33: F | B33: Capital before overheads & AFUDC | C33: =SUM(E33:AD33) -> -23871 | D33: =SUMPRODUCT(E33:AD33,$E$51:$AD$51) -> -23871 | E33: =-('Project Inputs'!B34+'Project Inputs'!B38+'Project Inputs'!B49+'Project Inputs'!B55+'Project Inputs'!B61) -> -23871
A34: F | B34: Up-front overheads | C34: 0 | D34: =SUMPRODUCT(E34:AD34,$E$51:$AD$51) -> 0 | E34: =-('Project Inputs'!B39+'Project Inputs'!B50+'Project Inputs'!B56+'Project Inputs'!B62) -> 0
A35: F | B35: Up-front AFUDC | C35: 0 | D35: =SUMPRODUCT(E35:AD35,$E$51:$AD$51) -> 0 | E35: =-('Project Inputs'!B40+'Project Inputs'!B51+'Project Inputs'!B57+'Project Inputs'!B63) -> 0
B36: Total up-front capital expenditures - $k | C36: =SUM(E36:AD36) -> -23871 | D36: =SUM(D33:D35) -> -23871 | E36: =SUM(E33:E35) -> -23871 | F36: 0 | G36: 0 | H36: 0 | I36: 0 | J36: 0 | K36: 0 | L36: 0 | M36: 0 | N36: 0 | O36: 0 | P36: 0 | Q36: 0 | R36: 0 | S36: 0 | T36: 0 | U36: 0 | V36: 0 | W36: 0 | X36: 0 | Y36: 0 | Z36: 0 | AA36: 0 | AB36: 0 | AC36: 0 | AD36: 0
A38: M | B38: Ongoing capital expenditures | C38: =SUM(E38:AD38) -> 0 | D38: =SUMPRODUCT(E38:AD38,$E$50:$AD$50) -> 0
B39: Total ongoing capital expenditures - $k | C39: 0 | D39: =SUM(D38:D38) -> 0 | E39: =SUM(E38:E38) -> 0 | F39: =SUM(F38:F38) -> 0 | G39: 0 | H39: 0 | I39: 0 | J39: 0 | K39: 0 | L39: 0 | M39: 0 | N39: 0 | O39: 0 | P39: 0 | Q39: 0 | R39: 0 | S39: 0 | T39: 0 | U39: 0 | V39: 0 | W39: 0 | X39: 0 | Y39: 0 | Z39: 0 | AA39: 0 | AB39: 0 | AC39: 0 | AD39: 0
A41: F | B41: Previous capital contribution/(credit) | C41: =SUM(E41:AD41) -> 0 | D41: =SUMPRODUCT(E41:AD41,$E$51:$AD$51) -> 0 | E41: =IF($C$2="Yes",IF(Stage='Standard Inputs'!E54,"",'Capital Cont Inputs'!B17),0) -> 0 | F41: =IF($C$2="Yes",'Capital Cont Inputs'!C17,0) -> 0 | G41: =IF($C$2="Yes",'Capital Cont Inputs'!D17,0) -> 0 | H41: =IF($C$2="Yes",'Capital Cont Inputs'!E17,0) -> 0 | I41: =IF($C$2="Yes",'Capital Cont Inputs'!F17,0) -> 0 | J41: =IF($C$2="Yes",'Capital Cont Inputs'!G17,0) -> 0 | K41: =IF($C$2="Yes",'Capital Cont Inputs'!H17,0) -> 0 | L41: =IF($C$2="Yes",'Capital Cont Inputs'!I17,0) -> 0 | M41: =IF($C$2="Yes",'Capital Cont Inputs'!J17,0) -> 0 | N41: =IF($C$2="Yes",'Capital Cont Inputs'!K17,0) -> 0 | O41: =IF($C$2="Yes",'Capital Cont Inputs'!L17,0) -> 0 | P41: =IF($C$2="Yes",'Capital Cont Inputs'!M17,0) -> 0 | Q41: =IF($C$2="Yes",'Capital Cont Inputs'!N17,0) -> 0 | R41: =IF($C$2="Yes",'Capital Cont Inputs'!O17,0) -> 0 | S41: =IF($C$2="Yes",'Capital Cont Inputs'!P17,0) -> 0 | T41: =IF($C$2="Yes",'Capital Cont Inputs'!Q17,0) -> 0 | U41: =IF($C$2="Yes",'Capital Cont Inputs'!R17,0) -> 0 | V41: =IF($C$2="Yes",'Capital Cont Inputs'!S17,0) -> 0 | W41: =IF($C$2="Yes",'Capital Cont Inputs'!T17,0) -> 0 | X41: =IF($C$2="Yes",'Capital Cont Inputs'!U17,0) -> 0 | Y41: =IF($C$2="Yes",'Capital Cont Inputs'!V17,0) -> 0 | Z41: =IF($C$2="Yes",'Capital Cont Inputs'!W17,0) -> 0 | AA41: =IF($C$2="Yes",'Capital Cont Inputs'!X17,0) -> 0 | AB41: =IF($C$2="Yes",'Capital Cont Inputs'!Y17,0) -> 0 | AC41: =IF($C$2="Yes",'Capital Cont Inputs'!Z17,0) -> 0 | AD41: =IF($C$2="Yes",'Capital Cont Inputs'!AA17,0) -> 0
A42: F | B42: Current capital contribution/(credit) | C42: =SUM(E42:AD42) -> 0 | D42: =SUMPRODUCT(E42:AD42,$E$51:$AD$51) -> 0 | E42: =IF($C$2="Yes",'Capital Cont Inputs'!B18,0) -> 0 | F42: =IF($C$2="Yes",'Capital Cont Inputs'!C18,0) -> 0 | G42: =IF($C$2="Yes",'Capital Cont Inputs'!D18,0) -> 0 | H42: =IF($C$2="Yes",'Capital Cont Inputs'!E18,0) -> 0 | I42: =IF($C$2="Yes",'Capital Cont Inputs'!F18,0) -> 0 | J42: =IF($C$2="Yes",'Capital Cont Inputs'!G18,0) -> 0 | K42: =IF($C$2="Yes",'Capital Cont Inputs'!H18,0) -> 0 | L42: =IF($C$2="Yes",'Capital Cont Inputs'!I18,0) -> 0 | M42: =IF($C$2="Yes",'Capital Cont Inputs'!J18,0) -> 0 | N42: =IF($C$2="Yes",'Capital Cont Inputs'!K18,0) -> 0 | O42: =IF($C$2="Yes",'Capital Cont Inputs'!L18,0) -> 0 | P42: =IF($C$2="Yes",'Capital Cont Inputs'!M18,0) -> 0 | Q42: =IF($C$2="Yes",'Capital Cont Inputs'!N18,0) -> 0 | R42: =IF($C$2="Yes",'Capital Cont Inputs'!O18,0) -> 0 | S42: =IF($C$2="Yes",'Capital Cont Inputs'!P18,0) -> 0 | T42: =IF($C$2="Yes",'Capital Cont Inputs'!Q18,0) -> 0 | U42: =IF($C$2="Yes",'Capital Cont Inputs'!R18,0) -> 0 | V42: =IF($C$2="Yes",'Capital Cont Inputs'!S18,0) -> 0 | W42: =IF($C$2="Yes",'Capital Cont Inputs'!T18,0) -> 0 | X42: =IF($C$2="Yes",'Capital Cont Inputs'!U18,0) -> 0 | Y42: =IF($C$2="Yes",'Capital Cont Inputs'!V18,0) -> 0 | Z42: =IF($C$2="Yes",'Capital Cont Inputs'!W18,0) -> 0 | AA42: =IF($C$2="Yes",'Capital Cont Inputs'!X18,0) -> 0 | AB42: =IF($C$2="Yes",'Capital Cont Inputs'!Y18,0) -> 0 | AC42: =IF($C$2="Yes",'Capital Cont Inputs'!Z18,0) -> 0 | AD42: =IF($C$2="Yes",'Capital Cont Inputs'!AA18,0) -> 0
B43: Total capital contributions - $k | C43: =SUM(E43:AD43) -> 0 | D43: =SUM(D41:D42) -> 0 | E43: =SUM(E41:E42) -> 0 | F43: =SUM(F41:F42) -> 0 | G43: 0 | H43: 0 | I43: 0 | J43: 0 | K43: 0 | L43: 0 | M43: 0 | N43: 0 | O43: 0 | P43: 0 | Q43: 0 | R43: 0 | S43: 0 | T43: 0 | U43: 0 | V43: 0 | W43: 0 | X43: 0 | Y43: 0 | Z43: 0 | AA43: 0 | AB43: 0 | AC43: 0 | AD43: 0
A45: F | B45: Change in working capital- $k | C45: =SUM(E45:AD45) -> 0 | D45: =SUMPRODUCT(E45:AD45,$E$51:$AD$51) -> -1.600609095 | E45: =-'Prelim Calc'!D48 -> 0 | F45: =-'Prelim Calc'!F48 -> -2.042465753 | G45: =-'Prelim Calc'!G48 -> 0 | H45: =-'Prelim Calc'!H48 -> 0 | I45: =-'Prelim Calc'!I48 -> 0 | J45: =-'Prelim Calc'!J48 -> 0 | K45: =-'Prelim Calc'!K48 -> 0 | L45: =-'Prelim Calc'!L48 -> 0 | M45: =-'Prelim Calc'!M48 -> 0 | N45: =-'Prelim Calc'!N48 -> 0 | O45: =-'Prelim Calc'!O48 -> 0 | P45: =-'Prelim Calc'!P48 -> 0 | Q45: =-'Prelim Calc'!Q48 -> 0 | R45: =-'Prelim Calc'!R48 -> 0 | S45: =-'Prelim Calc'!S48 -> 0 | T45: =-'Prelim Calc'!T48 -> 0 | U45: =-'Prelim Calc'!U48 -> -1.118493151 | V45: =-'Prelim Calc'!V48 -> 0 | W45: =-'Prelim Calc'!W48 -> 0 | X45: =-'Prelim Calc'!X48 -> 0 | Y45: =-'Prelim Calc'!Y48 -> 0 | Z45: =-'Prelim Calc'!Z48 -> 0 | AA45: =-'Prelim Calc'!AA48 -> 0 | AB45: =-'Prelim Calc'!AB48 -> 0 | AC45: =-'Prelim Calc'!AC48 -> 0 | AD45: =-'Prelim Calc'!AD48 -> 3.160958904
A46: M | B46: Proceeds: sale of depreciable property (less CCA recapture) - $k | C46: 0 | D46: =SUMPRODUCT(E46:AD46,$E$50:$AD$50) -> 0 | E46: ='NPV Calc'!E127+'NPV Calc'!E141+'NPV Calc'!E155+'NPV Calc'!E169-'NPV Calc'!E75 -> 0 | F46: ='NPV Calc'!F127+'NPV Calc'!F141+'NPV Calc'!F155+'NPV Calc'!F169-'NPV Calc'!F75 -> 0 | G46: ='NPV Calc'!G127+'NPV Calc'!G141+'NPV Calc'!G155+'NPV Calc'!G169-'NPV Calc'!G75 -> 0 | H46: ='NPV Calc'!H127+'NPV Calc'!H141+'NPV Calc'!H155+'NPV Calc'!H169-'NPV Calc'!H75 -> 0 | I46: ='NPV Calc'!I127+'NPV Calc'!I141+'NPV Calc'!I155+'NPV Calc'!I169-'NPV Calc'!I75 -> 0 | J46: ='NPV Calc'!J127+'NPV Calc'!J141+'NPV Calc'!J155+'NPV Calc'!J169-'NPV Calc'!J75 -> 0 | K46: ='NPV Calc'!K127+'NPV Calc'!K141+'NPV Calc'!K155+'NPV Calc'!K169-'NPV Calc'!K75 -> 0 | L46: ='NPV Calc'!L127+'NPV Calc'!L141+'NPV Calc'!L155+'NPV Calc'!L169-'NPV Calc'!L75 -> 0 | M46: ='NPV Calc'!M127+'NPV Calc'!M141+'NPV Calc'!M155+'NPV Calc'!M169-'NPV Calc'!M75 -> 0 | N46: ='NPV Calc'!N127+'NPV Calc'!N141+'NPV Calc'!N155+'NPV Calc'!N169-'NPV Calc'!N75 -> 0 | O46: ='NPV Calc'!O127+'NPV Calc'!O141+'NPV Calc'!O155+'NPV Calc'!O169-'NPV Calc'!O75 -> 0 | P46: ='NPV Calc'!P127+'NPV Calc'!P141+'NPV Calc'!P155+'NPV Calc'!P169-'NPV Calc'!P75 -> 0 | Q46: ='NPV Calc'!Q127+'NPV Calc'!Q141+'NPV Calc'!Q155+'NPV Calc'!Q169-'NPV Calc'!Q75 -> 0 | R46: ='NPV Calc'!R127+'NPV Calc'!R141+'NPV Calc'!R155+'NPV Calc'!R169-'NPV Calc'!R75 -> 0 | S46: ='NPV Calc'!S127+'NPV Calc'!S141+'NPV Calc'!S155+'NPV Calc'!S169-'NPV Calc'!S75 -> 0 | T46: ='NPV Calc'!T127+'NPV Calc'!T141+'NPV Calc'!T155+'NPV Calc'!T169-'NPV Calc'!T75 -> 0 | U46: ='NPV Calc'!U127+'NPV Calc'!U141+'NPV Calc'!U155+'NPV Calc'!U169-'NPV Calc'!U75 -> 0 | V46: ='NPV Calc'!V127+'NPV Calc'!V141+'NPV Calc'!V155+'NPV Calc'!V169-'NPV Calc'!V75 -> 0 | W46: ='NPV Calc'!W127+'NPV Calc'!W141+'NPV Calc'!W155+'NPV Calc'!W169-'NPV Calc'!W75 -> 0 | X46: ='NPV Calc'!X127+'NPV Calc'!X141+'NPV Calc'!X155+'NPV Calc'!X169-'NPV Calc'!X75 -> 0 | Y46: ='NPV Calc'!Y127+'NPV Calc'!Y141+'NPV Calc'!Y155+'NPV Calc'!Y169-'NPV Calc'!Y75 -> 0 | Z46: ='NPV Calc'!Z127+'NPV Calc'!Z141+'NPV Calc'!Z155+'NPV Calc'!Z169-'NPV Calc'!Z75 -> 0 | AA46: ='NPV Calc'!AA127+'NPV Calc'!AA141+'NPV Calc'!AA155+'NPV Calc'!AA169-'NPV Calc'!AA75 -> 0 | AB46: ='NPV Calc'!AB127+'NPV Calc'!AB141+'NPV Calc'!AB155+'NPV Calc'!AB169-'NPV Calc'!AB75 -> 0 | AC46: ='NPV Calc'!AC127+'NPV Calc'!AC141+'NPV Calc'!AC155+'NPV Calc'!AC169-'NPV Calc'!AC75 -> 0 | AD46: ='NPV Calc'!AD127+'NPV Calc'!AD141+'NPV Calc'!AD155+'NPV Calc'!AD169-'NPV Calc'!AD75 -> 0
A47: M | B47: Proceeds: sale of non-depreciable property (less taxable portion of cap gain) - $k | C47: 0 | D47: =SUMPRODUCT(E47:AD47,$E$50:$AD$50) -> 0 | E47: ='NPV Calc'!E118-'NPV Calc'!E76 -> 0 | F47: ='NPV Calc'!F118-'NPV Calc'!F76 -> 0 | G47: ='NPV Calc'!G118-'NPV Calc'!G76 -> 0 | H47: ='NPV Calc'!H118-'NPV Calc'!H76 -> 0 | I47: ='NPV Calc'!I118-'NPV Calc'!I76 -> 0 | J47: ='NPV Calc'!J118-'NPV Calc'!J76 -> 0 | K47: ='NPV Calc'!K118-'NPV Calc'!K76 -> 0 | L47: ='NPV Calc'!L118-'NPV Calc'!L76 -> 0 | M47: ='NPV Calc'!M118-'NPV Calc'!M76 -> 0 | N47: ='NPV Calc'!N118-'NPV Calc'!N76 -> 0 | O47: ='NPV Calc'!O118-'NPV Calc'!O76 -> 0 | P47: ='NPV Calc'!P118-'NPV Calc'!P76 -> 0 | Q47: ='NPV Calc'!Q118-'NPV Calc'!Q76 -> 0 | R47: ='NPV Calc'!R118-'NPV Calc'!R76 -> 0 | S47: ='NPV Calc'!S118-'NPV Calc'!S76 -> 0 | T47: ='NPV Calc'!T118-'NPV Calc'!T76 -> 0 | U47: ='NPV Calc'!U118-'NPV Calc'!U76 -> 0 | V47: ='NPV Calc'!V118-'NPV Calc'!V76 -> 0 | W47: ='NPV Calc'!W118-'NPV Calc'!W76 -> 0 | X47: ='NPV Calc'!X118-'NPV Calc'!X76 -> 0 | Y47: ='NPV Calc'!Y118-'NPV Calc'!Y76 -> 0 | Z47: ='NPV Calc'!Z118-'NPV Calc'!Z76 -> 0 | AA47: ='NPV Calc'!AA118-'NPV Calc'!AA76 -> 0 | AB47: ='NPV Calc'!AB118-'NPV Calc'!AB76 -> 0 | AC47: ='NPV Calc'!AC118-'NPV Calc'!AC76 -> 0 | AD47: ='NPV Calc'!AD118-'NPV Calc'!AD76 -> 0
B49: ="Present value factor for discounting: "&ROUND('Standard Inputs'!B12*100,2)&"%" -> Present value factor for discounting: 5.68%
B50: Present value factor - mid-year | E50: =IF(E4=0,1,IF(E4=1,B50/(1+'Standard Inputs'!$B$12)^0.5,B50/(1+'Standard Inputs'!$B$12))) -> 1 | F50: =IF(F4=0,1,IF(F4=1,E50/(1+'Standard Inputs'!$B$12)^0.5,E50/(1+'Standard Inputs'!$B$12))) -> 0.9727491518 | G50: =IF(G4=0,1,IF(G4=1,F50/(1+'Standard Inputs'!$B$12)^0.5,F50/(1+'Standard Inputs'!$B$12))) -> 0.9204550448 | H50: =IF(H4=0,1,IF(H4=1,G50/(1+'Standard Inputs'!$B$12)^0.5,G50/(1+'Standard Inputs'!$B$12))) -> 0.8709722212 | I50: =IF(I4=0,1,IF(I4=1,H50/(1+'Standard Inputs'!$B$12)^0.5,H50/(1+'Standard Inputs'!$B$12))) -> 0.8241495492 | J50: =IF(J4=0,1,IF(J4=1,I50/(1+'Standard Inputs'!$B$12)^0.5,I50/(1+'Standard Inputs'!$B$12))) -> 0.7798440212 | K50: =IF(K4=0,1,IF(K4=1,J50/(1+'Standard Inputs'!$B$12)^0.5,J50/(1+'Standard Inputs'!$B$12))) -> 0.7379203181 | L50: =IF(L4=0,1,IF(L4=1,K50/(1+'Standard Inputs'!$B$12)^0.5,K50/(1+'Standard Inputs'!$B$12))) -> 0.698250395 | M50: =IF(M4=0,1,IF(M4=1,L50/(1+'Standard Inputs'!$B$12)^0.5,L50/(1+'Standard Inputs'!$B$12))) -> 0.6607130907 | N50: =IF(N4=0,1,IF(N4=1,M50/(1+'Standard Inputs'!$B$12)^0.5,M50/(1+'Standard Inputs'!$B$12))) -> 0.6251937577 | O50: =IF(O4=0,1,IF(O4=1,N50/(1+'Standard Inputs'!$B$12)^0.5,N50/(1+'Standard Inputs'!$B$12))) -> 0.5915839116 | P50: =IF(P4=0,1,IF(P4=1,O50/(1+'Standard Inputs'!$B$12)^0.5,O50/(1+'Standard Inputs'!$B$12))) -> 0.5597809002 | Q50: =IF(Q4=0,1,IF(Q4=1,P50/(1+'Standard Inputs'!$B$12)^0.5,P50/(1+'Standard Inputs'!$B$12))) -> 0.5296875897 | R50: =IF(R4=0,1,IF(R4=1,Q50/(1+'Standard Inputs'!$B$12)^0.5,Q50/(1+'Standard Inputs'!$B$12))) -> 0.5012120681 | S50: =IF(S4=0,1,IF(S4=1,R50/(1+'Standard Inputs'!$B$12)^0.5,R50/(1+'Standard Inputs'!$B$12))) -> 0.4742673645 | T50: =IF(T4=0,1,IF(T4=1,S50/(1+'Standard Inputs'!$B$12)^0.5,S50/(1+'Standard Inputs'!$B$12))) -> 0.4487711836 | U50: =IF(U4=0,1,IF(U4=1,T50/(1+'Standard Inputs'!$B$12)^0.5,T50/(1+'Standard Inputs'!$B$12))) -> 0.4246456542 | V50: =IF(V4=0,1,IF(V4=1,U50/(1+'Standard Inputs'!$B$12)^0.5,U50/(1+'Standard Inputs'!$B$12))) -> 0.4018170912 | W50: =IF(W4=0,1,IF(W4=1,V50/(1+'Standard Inputs'!$B$12)^0.5,V50/(1+'Standard Inputs'!$B$12))) -> 0.380215771 | X50: =IF(X4=0,1,IF(X4=1,W50/(1+'Standard Inputs'!$B$12)^0.5,W50/(1+'Standard Inputs'!$B$12))) -> 0.359775718 | Y50: =IF(Y4=0,1,IF(Y4=1,X50/(1+'Standard Inputs'!$B$12)^0.5,X50/(1+'Standard Inputs'!$B$12))) -> 0.3404345036 | Z50: =IF(Z4=0,1,IF(Z4=1,Y50/(1+'Standard Inputs'!$B$12)^0.5,Y50/(1+'Standard Inputs'!$B$12))) -> 0.3221330552 | AA50: =IF(AA4=0,1,IF(AA4=1,Z50/(1+'Standard Inputs'!$B$12)^0.5,Z50/(1+'Standard Inputs'!$B$12))) -> 0.304815476 | AB50: =IF(AB4=0,1,IF(AB4=1,AA50/(1+'Standard Inputs'!$B$12)^0.5,AA50/(1+'Standard Inputs'!$B$12))) -> 0.2884288741 | AC50: =IF(AC4=0,1,IF(AC4=1,AB50/(1+'Standard Inputs'!$B$12)^0.5,AB50/(1+'Standard Inputs'!$B$12))) -> 0.272923201 | AD50: =IF(AD4=0,1,IF(AD4=1,AC50/(1+'Standard Inputs'!$B$12)^0.5,AC50/(1+'Standard Inputs'!$B$12))) -> 0.2582510987
B51: Present value factor - full-year | E51: =IF(E4=0,1,B51/(1+'Standard Inputs'!$B$12)) -> 1 | F51: =IF(F4=0,1,E51/(1+'Standard Inputs'!$B$12)) -> 0.9462409123 | G51: =IF(G4=0,1,F51/(1+'Standard Inputs'!$B$12)) -> 0.895371864 | H51: =IF(H4=0,1,G51/(1+'Standard Inputs'!$B$12)) -> 0.8472374894 | I51: =IF(I4=0,1,H51/(1+'Standard Inputs'!$B$12)) -> 0.8016907749 | J51: =IF(J4=0,1,I51/(1+'Standard Inputs'!$B$12)) -> 0.7585926102 | K51: =IF(K4=0,1,J51/(1+'Standard Inputs'!$B$12)) -> 0.7178113635 | L51: =IF(L4=0,1,K51/(1+'Standard Inputs'!$B$12)) -> 0.6792224794 | M51: =IF(M4=0,1,L51/(1+'Standard Inputs'!$B$12)) -> 0.6427080985 | N51: =IF(N4=0,1,M51/(1+'Standard Inputs'!$B$12)) -> 0.6081566975 | O51: =IF(O4=0,1,N51/(1+'Standard Inputs'!$B$12)) -> 0.5754627482 | P51: =IF(P4=0,1,O51/(1+'Standard Inputs'!$B$12)) -> 0.5445263958 | Q51: =IF(Q4=0,1,P51/(1+'Standard Inputs'!$B$12)) -> 0.5152531535 | R51: =IF(R4=0,1,Q51/(1+'Standard Inputs'!$B$12)) -> 0.4875536141 | S51: =IF(S4=0,1,R51/(1+'Standard Inputs'!$B$12)) -> 0.4613431765 | T51: =IF(T4=0,1,S51/(1+'Standard Inputs'!$B$12)) -> 0.4365417882 | U51: =IF(U4=0,1,T51/(1+'Standard Inputs'!$B$12)) -> 0.4130736999 | V51: =IF(V4=0,1,U51/(1+'Standard Inputs'!$B$12)) -> 0.3908672346 | W51: =IF(W4=0,1,V51/(1+'Standard Inputs'!$B$12)) -> 0.3698545687 | X51: =IF(X4=0,1,W51/(1+'Standard Inputs'!$B$12)) -> 0.3499715245 | Y51: =IF(Y4=0,1,X51/(1+'Standard Inputs'!$B$12)) -> 0.3311573746 | Z51: =IF(Z4=0,1,Y51/(1+'Standard Inputs'!$B$12)) -> 0.3133546562 | AA51: =IF(AA4=0,1,Z51/(1+'Standard Inputs'!$B$12)) -> 0.2965089958 | AB51: =IF(AB4=0,1,AA51/(1+'Standard Inputs'!$B$12)) -> 0.2805689426 | AC51: =IF(AC4=0,1,AB51/(1+'Standard Inputs'!$B$12)) -> 0.2654858122 | AD51: =IF(AD4=0,1,AC51/(1+'Standard Inputs'!$B$12)) -> 0.2512135372
B53: Accumulated Net Present Value - $k | D53: =D17+D24+D30+D36+D39+SUM(D45:D47)+D43 -> -11729.26503
B55: Present value of capital contributions (for reporting) - $k | E55: =E43*E51 -> 0 | F55: 0 | G55: 0 | H55: 0 | I55: 0 | J55: 0 | K55: 0 | L55: 0 | M55: 0 | N55: 0 | O55: 0 | P55: 0 | Q55: 0 | R55: 0 | S55: 0 | T55: 0 | U55: 0 | V55: 0 | W55: 0 | X55: 0 | Y55: 0 | Z55: 0 | AA55: 0 | AB55: 0 | AC55: 0 | AD55: 0
B57: Calculation of Income Taxes | D57: =D4 -> Project Year: | E57: ='Capital Cont Inputs'!B16 -> 0 | F57: ='Capital Cont Inputs'!C16 -> 1 | G57: ='Capital Cont Inputs'!D16 -> 2 | H57: ='Capital Cont Inputs'!E16 -> 3 | I57: ='Capital Cont Inputs'!F16 -> 4 | J57: ='Capital Cont Inputs'!G16 -> 5 | K57: ='Capital Cont Inputs'!H16 -> 6 | L57: ='Capital Cont Inputs'!I16 -> 7 | M57: ='Capital Cont Inputs'!J16 -> 8 | N57: ='Capital Cont Inputs'!K16 -> 9 | O57: ='Capital Cont Inputs'!L16 -> 10 | P57: ='Capital Cont Inputs'!M16 -> 11 | Q57: ='Capital Cont Inputs'!N16 -> 12 | R57: ='Capital Cont Inputs'!O16 -> 13 | S57: ='Capital Cont Inputs'!P16 -> 14 | T57: ='Capital Cont Inputs'!Q16 -> 15 | U57: ='Capital Cont Inputs'!R16 -> 16 | V57: ='Capital Cont Inputs'!S16 -> 17 | W57: ='Capital Cont Inputs'!T16 -> 18 | X57: ='Capital Cont Inputs'!U16 -> 19 | Y57: ='Capital Cont Inputs'!V16 -> 20 | Z57: ='Capital Cont Inputs'!W16 -> 21 | AA57: ='Capital Cont Inputs'!X16 -> 22 | AB57: ='Capital Cont Inputs'!Y16 -> 23 | AC57: ='Capital Cont Inputs'!Z16 -> 24 | AD57: ='Capital Cont Inputs'!AA16 -> 25
D58: =D5 -> Year Ended: | E58: ='Capital Cont Inputs'!B15 -> 2010 | F58: ='Capital Cont Inputs'!C15 -> 2011 | G58: ='Capital Cont Inputs'!D15 -> 2012 | H58: ='Capital Cont Inputs'!E15 -> 2013 | I58: ='Capital Cont Inputs'!F15 -> 2014 | J58: ='Capital Cont Inputs'!G15 -> 2015 | K58: ='Capital Cont Inputs'!H15 -> 2016 | L58: ='Capital Cont Inputs'!I15 -> 2017 | M58: ='Capital Cont Inputs'!J15 -> 2018 | N58: ='Capital Cont Inputs'!K15 -> 2019 | O58: ='Capital Cont Inputs'!L15 -> 2020 | P58: ='Capital Cont Inputs'!M15 -> 2021 | Q58: ='Capital Cont Inputs'!N15 -> 2022 | R58: ='Capital Cont Inputs'!O15 -> 2023 | S58: ='Capital Cont Inputs'!P15 -> 2024 | T58: ='Capital Cont Inputs'!Q15 -> 2025 | U58: ='Capital Cont Inputs'!R15 -> 2026 | V58: ='Capital Cont Inputs'!S15 -> 2027 | W58: ='Capital Cont Inputs'!T15 -> 2028 | X58: ='Capital Cont Inputs'!U15 -> 2029 | Y58: ='Capital Cont Inputs'!V15 -> 2030 | Z58: ='Capital Cont Inputs'!W15 -> 2031 | AA58: ='Capital Cont Inputs'!X15 -> 2032 | AB58: ='Capital Cont Inputs'!Y15 -> 2033 | AC58: ='Capital Cont Inputs'!Z15 -> 2034 | AD58: ='Capital Cont Inputs'!AA15 -> 2035
B59: Class Allocation of Initial Capital Contributions: | C59: % Split
B60: ='Project Inputs'!A33 -> Land costs | C60: ='Project Inputs'!B34/SUM('Project Inputs'!B34+'Project Inputs'!B38+'Project Inputs'!B39+'Project Inputs'!B40+'Project Inputs'!B49+'Project Inputs'!B50+'Project Inputs'!B51+'Project Inputs'!B55+'Project Inputs'!B56+'Project Inputs'!B57+'Project Inputs'!B61+'Project Inputs'!B62+'Project Inputs'!B63) -> 0
B61: ='Project Inputs'!A37 -> Class 47 costs | C61: =SUM('Project Inputs'!B38:B40)/SUM('Project Inputs'!B34+'Project Inputs'!B38+'Project Inputs'!B39+'Project Inputs'!B40+'Project Inputs'!B49+'Project Inputs'!B50+'Project Inputs'!B51+'Project Inputs'!B55+'Project Inputs'!B56+'Project Inputs'!B57+'Project Inputs'!B61+'Project Inputs'!B62+'Project Inputs'!B63) -> 1
B62: ='Project Inputs'!A48 -> Decision Support defined costs (1) | C62: =SUM('Project Inputs'!B49:B51)/SUM('Project Inputs'!B34+'Project Inputs'!B38+'Project Inputs'!B39+'Project Inputs'!B40+'Project Inputs'!B49+'Project Inputs'!B50+'Project Inputs'!B51+'Project Inputs'!B55+'Project Inputs'!B56+'Project Inputs'!B57+'Project Inputs'!B61+'Project Inputs'!B62+'Project Inputs'!B63) -> 0
B63: ='Project Inputs'!A54 -> Decision Support defined costs (2) | C63: =SUM('Project Inputs'!B55:B57)/SUM('Project Inputs'!B34+'Project Inputs'!B38+'Project Inputs'!B39+'Project Inputs'!B40+'Project Inputs'!B49+'Project Inputs'!B50+'Project Inputs'!B51+'Project Inputs'!B55+'Project Inputs'!B56+'Project Inputs'!B57+'Project Inputs'!B61+'Project Inputs'!B62+'Project Inputs'!B63) -> 0
B64: ='Project Inputs'!A60 -> Decision Support defined costs (3) | C64: =SUM('Project Inputs'!B61:B63)/SUM('Project Inputs'!B34+'Project Inputs'!B38+'Project Inputs'!B39+'Project Inputs'!B40+'Project Inputs'!B49+'Project Inputs'!B50+'Project Inputs'!B51+'Project Inputs'!B55+'Project Inputs'!B56+'Project Inputs'!B57+'Project Inputs'!B61+'Project Inputs'!B62+'Project Inputs'!B63) -> 0
B65: Total up-front capital before capital contributions | C65: =SUM(C60:C64) -> 1
B67: ="Class "&'Standard Inputs'!B30&" Allocation of True-up Capital Contributions:" -> Class 47 Allocation of True-up Capital Contributions: | C67: 1
B69: Calculation income tax provision - $k:
B70: Total incremental revenue | E70: =E17 -> 0 | F70: 410.7781532 | G70: 605.7563231 | H70: 571.7313296 | I70: 640.6956027 | J70: 782.0555153 | K70: 615.0675352 | L70: 823.6957279 | M70: 901.0043304 | N70: 922.2279621 | O70: 952.6944909 | P70: 1045.126898 | Q70: 1126.700253 | R70: 1205.021005 | S70: 1274.073554 | T70: 1350.695261 | U70: 1437.606983 | V70: 1522.307044 | W70: 1602.34327 | X70: 1691.203684 | Y70: 1780.541007 | Z70: 1851.30002 | AA70: 1926.452354 | AB70: 1999.900824 | AC70: 2065.264336 | AD70: 2139.367545
B71: Total incremental costs | E71: =E24 -> 0 | F71: -242.798969 | G71: -238.6740602 | H71: -234.8791441 | I71: -231.3878213 | J71: -228.1758043 | K71: -225.2207487 | L71: -222.5020975 | M71: -220.0009384 | N71: -217.6998721 | O71: -215.582891 | P71: -213.6352685 | Q71: -211.8434557 | R71: -210.194988 | S71: -208.6783977 | T71: -207.2831346 | U71: -228.9994925 | V71: -227.8185419 | W71: -226.7320672 | X71: -225.7325106 | Y71: -224.8129184 | Z71: -223.9668937 | AA71: -223.1885509 | AB71: -222.4724756 | AC71: -221.8136862 | AD71: -221.2076001
B72: Net income before CCA | E72: =E70+E71 -> 0 | F72: =F70+F71 -> 167.9791842 | G72: 367.0822629 | H72: 336.8521854 | I72: 409.3077813 | J72: 553.8797109 | K72: 389.8467864 | L72: 601.1936303 | M72: 681.0033919 | N72: 704.52809 | O72: 737.1115999 | P72: 831.4916299 | Q72: 914.8567975 | R72: 994.8260172 | S72: 1065.395156 | T72: 1143.412127 | U72: 1208.60749 | V72: 1294.488502 | W72: 1375.611202 | X72: 1465.471173 | Y72: 1555.728088 | Z72: 1627.333127 | AA72: 1703.263804 | AB72: 1777.428348 | AC72: 1843.45065 | AD72: 1918.159945
B74: CCA claim | E74: =E109 -> 0 | F74: =F109 -> 954.84 | G74: 1833.2928 | H74: 1686.629376 | I74: 1551.699026 | J74: 1427.563104 | K74: 1313.358056 | L74: 1208.289411 | M74: 1111.626258 | N74: 1022.696158 | O74: 940.8804649 | P74: 865.6100278 | Q74: 796.3612255 | R74: 732.6523275 | S74: 674.0401413 | T74: 620.11693 | U74: 570.5075756 | V74: 524.8669695 | W74: 482.877612 | X74: 444.247403 | Y74: 408.7076108 | Z74: 376.0110019 | AA74: 345.9301218 | AB74: 318.255712 | AC74: 292.7952551 | AD74: 269.3716347
B75: CCA recapture | E75: =IF((E125+E126-E127)<0,-(E125+E126-E127),0)+IF((E139+E140-E141)<0,-(E139+E140-E141),0)+IF((E153+E154-E155)<0,-(E153+E154-E155),0)+IF((E167+E168-E169)<0,-(E167+E168-E169),0) -> 0 | F75: =IF((F125+F126-F127)<0,-(F125+F126-F127),0)+IF((F139+F140-F141)<0,-(F139+F140-F141),0)+IF((F153+F154-F155)<0,-(F153+F154-F155),0)+IF((F167+F168-F169)<0,-(F167+F168-F169),0) -> 0 | G75: 0 | H75: =IF((H125+H126-H127)<0,-(H125+H126-H127),0)+IF((H139+H140-H141)<0,-(H139+H140-H141),0)+IF((H153+H154-H155)<0,-(H153+H154-H155),0)+IF((H167+H168-H169)<0,-(H167+H168-H169),0) -> 0 | I75: 0 | J75: 0 | K75: =IF((K125+K126-K127)<0,-(K125+K126-K127),0)+IF((K139+K140-K141)<0,-(K139+K140-K141),0)+IF((K153+K154-K155)<0,-(K153+K154-K155),0)+IF((K167+K168-K169)<0,-(K167+K168-K169),0) -> 0 | L75: 0 | M75: 0 | N75: 0 | O75: 0 | P75: 0 | Q75: 0 | R75: 0 | S75: 0 | T75: 0 | U75: 0 | V75: 0 | W75: 0 | X75: 0 | Y75: 0 | Z75: 0 | AA75: 0 | AB75: 0 | AC75: 0 | AD75: 0
B76: Taxable portion of capital gain: 1/2 of (proceeds - ACB) | E76: =IF(E118-E116<=0,0,E118-E116)*1/2 -> 0 | F76: 0 | G76: 0 | H76: 0 | I76: 0 | J76: 0 | K76: 0 | L76: 0 | M76: 0 | N76: 0 | O76: 0 | P76: 0 | Q76: 0 | R76: 0 | S76: 0 | T76: 0 | U76: 0 | V76: 0 | W76: 0 | X76: 0 | Y76: 0 | Z76: 0 | AA76: 0 | AB76: 0 | AC76: 0 | AD76: 0
B78: Taxable income / (loss) before income tax | E78: =E72-E74+E75+E76 -> 0 | F78: -786.8608158 | G78: -1466.210537 | H78: -1349.777191 | I78: -1142.391245 | J78: -873.6833929 | K78: -923.5112691 | L78: -607.0957808 | M78: -430.6228663 | N78: -318.1680675 | O78: -203.7688651 | P78: -34.1183979 | Q78: 118.495572 | R78: 262.1736897 | S78: 391.3550146 | T78: 523.2951965 | U78: 638.0999149 | V78: 769.6215322 | W78: 892.7335904 | X78: 1021.22377 | Y78: 1147.020478 | Z78: 1251.322125 | AA78: 1357.333682 | AB78: 1459.172636 | AC78: 1550.655395 | AD78: 1648.78831
B80: Income tax rate | E80: ='Standard Inputs'!B19 -> 0.335 | F80: =E80 -> 0.335 | G80: 0.335 | H80: 0.335 | I80: 0.335 | J80: 0.335 | K80: 0.335 | L80: 0.335 | M80: 0.335 | N80: 0.335 | O80: 0.335 | P80: 0.335 | Q80: 0.335 | R80: 0.335 | S80: 0.335 | T80: 0.335 | U80: 0.335 | V80: 0.335 | W80: 0.335 | X80: 0.335 | Y80: 0.335 | Z80: 0.335 | AA80: 0.335 | AB80: 0.335 | AC80: 0.335 | AD80: 0.335
B82: Income tax provision, before Large Corporation Tax (LCT) | E82: =IF(ISNUMBER(E57),E78*E80,0) -> 0 | F82: -263.5983733 | G82: -491.1805299 | H82: -452.1753588 | I82: -382.7010669 | J82: -292.6839366 | K82: -309.3762751 | L82: -203.3770866 | M82: -144.2586602 | N82: -106.5863026 | O82: -68.2625698 | P82: -11.4296633 | Q82: 39.69601661 | R82: 87.82818604 | S82: 131.1039299 | T82: 175.3038908 | U82: 213.7634715 | V82: 257.8232133 | W82: 299.0657528 | X82: 342.109963 | Y82: 384.25186 | Z82: 419.1929118 | AA82: 454.7067834 | AB82: 488.8228332 | AC82: 519.4695573 | AD82: 552.344084
B84: Total Taxable Capital at end of year - Based on UCC, end of year | E84: =E110 -> 0 | F84: =F110 -> 22916.16 | G84: 21082.8672 | H84: 19396.23782 | I84: 17844.5388 | J84: 16416.97569 | K84: 15103.61764 | L84: 13895.32823 | M84: 12783.70197 | N84: 11761.00581 | O84: 10820.12535 | P84: 9954.515319 | Q84: 9158.154094 | R84: 8425.501766 | S84: 7751.461625 | T84: 7131.344695 | U84: 6560.837119 | V84: 6035.97015 | W84: 5553.092538 | X84: 5108.845135 | Y84: 4700.137524 | Z84: 4324.126522 | AA84: 3978.1964 | AB84: 3659.940688 | AC84: 3367.145433 | AD84: 3097.773799
B86: LCT rate | E86: ='Standard Inputs'!$B$21 -> 0 | F86: ='Standard Inputs'!$B$21 -> 0 | G86: ='Standard Inputs'!$B$21 -> 0 | H86: ='Standard Inputs'!$B$21 -> 0 | I86: ='Standard Inputs'!$B$21 -> 0 | J86: ='Standard Inputs'!$B$21 -> 0 | K86: ='Standard Inputs'!$B$21 -> 0 | L86: ='Standard Inputs'!$B$21 -> 0 | M86: ='Standard Inputs'!$B$21 -> 0 | N86: ='Standard Inputs'!$B$21 -> 0 | O86: ='Standard Inputs'!$B$21 -> 0 | P86: ='Standard Inputs'!$B$21 -> 0 | Q86: ='Standard Inputs'!$B$21 -> 0 | R86: ='Standard Inputs'!$B$21 -> 0 | S86: ='Standard Inputs'!$B$21 -> 0 | T86: ='Standard Inputs'!$B$21 -> 0 | U86: ='Standard Inputs'!$B$21 -> 0 | V86: ='Standard Inputs'!$B$21 -> 0 | W86: ='Standard Inputs'!$B$21 -> 0 | X86: ='Standard Inputs'!$B$21 -> 0 | Y86: ='Standard Inputs'!$B$21 -> 0 | Z86: ='Standard Inputs'!$B$21 -> 0 | AA86: ='Standard Inputs'!$B$21 -> 0 | AB86: ='Standard Inputs'!$B$21 -> 0 | AC86: ='Standard Inputs'!$B$21 -> 0 | AD86: ='Standard Inputs'!$B$21 -> 0
B88: Federal LCT | E88: =-E84*E86 -> 0 | F88: =-F84*F86 -> 0 | G88: 0 | H88: 0 | I88: 0 | J88: 0 | K88: 0 | L88: 0 | M88: 0 | N88: 0 | O88: 0 | P88: 0 | Q88: 0 | R88: 0 | S88: 0 | T88: 0 | U88: 0 | V88: 0 | W88: 0 | X88: 0 | Y88: 0 | Z88: 0 | AA88: 0 | AB88: 0 | AC88: 0 | AD88: 0
B90: Surtax | E90: ='Standard Inputs'!$B$18 -> 0 | F90: ='Standard Inputs'!$B$18 -> 0 | G90: ='Standard Inputs'!$B$18 -> 0 | H90: ='Standard Inputs'!$B$18 -> 0 | I90: ='Standard Inputs'!$B$18 -> 0 | J90: ='Standard Inputs'!$B$18 -> 0 | K90: ='Standard Inputs'!$B$18 -> 0 | L90: ='Standard Inputs'!$B$18 -> 0 | M90: ='Standard Inputs'!$B$18 -> 0 | N90: ='Standard Inputs'!$B$18 -> 0 | O90: ='Standard Inputs'!$B$18 -> 0 | P90: ='Standard Inputs'!$B$18 -> 0 | Q90: ='Standard Inputs'!$B$18 -> 0 | R90: ='Standard Inputs'!$B$18 -> 0 | S90: ='Standard Inputs'!$B$18 -> 0 | T90: ='Standard Inputs'!$B$18 -> 0 | U90: ='Standard Inputs'!$B$18 -> 0 | V90: ='Standard Inputs'!$B$18 -> 0 | W90: ='Standard Inputs'!$B$18 -> 0 | X90: ='Standard Inputs'!$B$18 -> 0 | Y90: ='Standard Inputs'!$B$18 -> 0 | Z90: ='Standard Inputs'!$B$18 -> 0 | AA90: ='Standard Inputs'!$B$18 -> 0 | AB90: ='Standard Inputs'!$B$18 -> 0 | AC90: ='Standard Inputs'!$B$18 -> 0 | AD90: ='Standard Inputs'!$B$18 -> 0
B92: Less: Surtax portion of income tax payable | E92: =-(E90*E78) -> 0 | F92: =-(F90*F78) -> 0 | G92: 0 | H92: 0 | I92: 0 | J92: 0 | K92: 0 | L92: 0 | M92: 0 | N92: 0 | O92: 0 | P92: 0 | Q92: 0 | R92: 0 | S92: 0 | T92: 0 | U92: 0 | V92: 0 | W92: 0 | X92: 0 | Y92: 0 | Z92: 0 | AA92: 0 | AB92: 0 | AC92: 0 | AD92: 0
B94: Net LCT | E94: =IF(E92>=0,E88,IF(E88<=E92,E88-E92,0)) -> 0 | F94: =IF(F92>=0,F88,IF(F88<=F92,F88-F92,0)) -> 0 | G94: 0 | H94: 0 | I94: 0 | J94: 0 | K94: 0 | L94: 0 | M94: 0 | N94: 0 | O94: 0 | P94: 0 | Q94: 0 | R94: 0 | S94: 0 | T94: 0 | U94: 0 | V94: 0 | W94: 0 | X94: 0 | Y94: 0 | Z94: 0 | AA94: 0 | AB94: 0 | AC94: 0 | AD94: 0
B96: Total income tax provision | E96: =E82-E94 -> 0 | F96: =F82-F94 -> -263.5983733 | G96: -491.1805299 | H96: -452.1753588 | I96: -382.7010669 | J96: -292.6839366 | K96: -309.3762751 | L96: -203.3770866 | M96: -144.2586602 | N96: -106.5863026 | O96: -68.2625698 | P96: -11.4296633 | Q96: 39.69601661 | R96: 87.82818604 | S96: 131.1039299 | T96: 175.3038908 | U96: 213.7634715 | V96: 257.8232133 | W96: 299.0657528 | X96: 342.109963 | Y96: 384.25186 | Z96: 419.1929118 | AA96: 454.7067834 | AB96: 488.8228332 | AC96: 519.4695573 | AD96: 552.344084
B98: PV of CCA claim | E98: =E74*E50 -> 0 | F98: 928.8198001 | G98: 1687.463606 | H98: 1469.007334 | I98: 1278.832053 | J98: 1113.276551 | K98: 969.1535941 | L98: 843.6885585 | M98: 734.4660208 | N98: 639.3832537 | O98: 556.6097458 | P98: 484.5519606 | Q98: 421.8226581 | R98: 367.2141882 | S98: 319.6752414 | T98: 278.2906087 | U98: 242.2635627 | V98: 210.900519 | W98: 183.5976835 | X98: 159.8294284 | Y98: 139.1381726 | Z98: 121.1255728 | AA98: 105.4448547 | AB98: 91.7941367 | AC98: 79.91061824 | AD98: 69.5655206
B100: UCC Continuity - $k:
B102: Total:
B103: Opening UCC | E103: =E116+E125+E139+E153+E167 -> 0 | F103: =F116+F125+F139+F153+F167 -> 0 | G103: 22916.16 | H103: 21082.8672 | I103: 19396.23782 | J103: 17844.5388 | K103: 16416.97569 | L103: 15103.61764 | M103: 13895.32823 | N103: 12783.70197 | O103: 11761.00581 | P103: 10820.12535 | Q103: 9954.515319 | R103: 9158.154094 | S103: 8425.501766 | T103: 7751.461625 | U103: 7131.344695 | V103: 6560.837119 | W103: 6035.97015 | X103: 5553.092538 | Y103: 5108.845135 | Z103: 4700.137524 | AA103: 4324.126522 | AB103: 3978.1964 | AC103: 3659.940688 | AD103: 3367.145433
B104: Additions | E104: =E117+E126+E140+E154+E168 -> 0 | F104: =F117+F126+F140+F154+F168 -> 23871 | G104: 0 | H104: 0 | I104: 0 | J104: 0 | K104: 0 | L104: 0 | M104: 0 | N104: 0 | O104: 0 | P104: 0 | Q104: 0 | R104: 0 | S104: 0 | T104: 0 | U104: 0 | V104: 0 | W104: 0 | X104: 0 | Y104: 0 | Z104: 0 | AA104: 0 | AB104: 0 | AC104: 0 | AD104: 0
B105: Procceeds from disposal | E105: =E118+E127+E141+E155+E169 -> 0 | F105: =F118+F127+F141+F155+F169 -> 0 | G105: 0 | H105: 0 | I105: 0 | J105: 0 | K105: 0 | L105: 0 | M105: 0 | N105: 0 | O105: 0 | P105: 0 | Q105: 0 | R105: 0 | S105: 0 | T105: 0 | U105: 0 | V105: 0 | W105: 0 | X105: 0 | Y105: 0 | Z105: 0 | AA105: 0 | AB105: 0 | AC105: 0 | AD105: 0
B107: UCC for CCA | E107: =E120+E129+E143+E157+E171 -> 0 | F107: =F120+F129+F143+F157+F171 -> 11935.5 | G107: 22916.16 | H107: 21082.8672 | I107: 19396.23782 | J107: 17844.5388 | K107: 16416.97569 | L107: 15103.61764 | M107: 13895.32823 | N107: 12783.70197 | O107: 11761.00581 | P107: 10820.12535 | Q107: 9954.515319 | R107: 9158.154094 | S107: 8425.501766 | T107: 7751.461625 | U107: 7131.344695 | V107: 6560.837119 | W107: 6035.97015 | X107: 5553.092538 | Y107: 5108.845135 | Z107: 4700.137524 | AA107: 4324.126522 | AB107: 3978.1964 | AC107: 3659.940688 | AD107: 3367.145433
B109: CCA claim | E109: =E131+E145+E159+E173 -> 0 | F109: =F131+F145+F159+F173 -> 954.84 | G109: 1833.2928 | H109: 1686.629376 | I109: 1551.699026 | J109: 1427.563104 | K109: 1313.358056 | L109: 1208.289411 | M109: 1111.626258 | N109: 1022.696158 | O109: 940.8804649 | P109: 865.6100278 | Q109: 796.3612255 | R109: 732.6523275 | S109: 674.0401413 | T109: 620.11693 | U109: 570.5075756 | V109: 524.8669695 | W109: 482.877612 | X109: 444.247403 | Y109: 408.7076108 | Z109: 376.0110019 | AA109: 345.9301218 | AB109: 318.255712 | AC109: 292.7952551 | AD109: 269.3716347
B110: Ending UCC | E110: =E120+E132+E146+E160+E174 -> 0 | F110: =F120+F132+F146+F160+F174 -> 22916.16 | G110: 21082.8672 | H110: 19396.23782 | I110: 17844.5388 | J110: 16416.97569 | K110: 15103.61764 | L110: 13895.32823 | M110: 12783.70197 | N110: 11761.00581 | O110: 10820.12535 | P110: 9954.515319 | Q110: 9158.154094 | R110: 8425.501766 | S110: 7751.461625 | T110: 7131.344695 | U110: 6560.837119 | V110: 6035.97015 | W110: 5553.092538 | X110: 5108.845135 | Y110: 4700.137524 | Z110: 4324.126522 | AA110: 3978.1964 | AB110: 3659.940688 | AC110: 3367.145433 | AD110: 3097.773799
B112: CCA tax shield adjustment | E112: =E134+E148+E162+E176 -> 0 | F112: =F134+F148+F162+F176 -> 0 | G112: 0 | H112: 0 | I112: 0 | J112: 0 | K112: 0 | L112: 0 | M112: 0 | N112: 0 | O112: 0 | P112: 0 | Q112: 0 | R112: 0 | S112: 0 | T112: 0 | U112: 0 | V112: 0 | W112: 0 | X112: 0 | Y112: 0 | Z112: 0 | AA112: 0 | AB112: 0 | AC112: 0 | AD112: 606.8147297
B114: Detail by Class of Asset:
B115: ='Project Inputs'!A33&" - $k:" -> Land costs - $k:
B116: Opening UCC | E116: 0 | F116: =IF(ISNUMBER(F$57),E120,0) -> 0 | G116: 0 | H116: 0 | I116: 0 | J116: 0 | K116: 0 | L116: 0 | M116: 0 | N116: 0 | O116: 0 | P116: 0 | Q116: 0 | R116: 0 | S116: 0 | T116: 0 | U116: 0 | V116: 0 | W116: 0 | X116: 0 | Y116: 0 | Z116: 0 | AA116: 0 | AB116: 0 | AC116: 0 | AD116: 0
B117: Additions | F117: =-(F$43*'NPV Calc'!$C$60)-((E43)*'NPV Calc'!$C$60)+'Project Inputs'!$B$34 -> 0
B118: Procceeds from disposal
B120: Ending UCC | E120: =IF(E116+E117-E118<0,0,E116+E117-E118) -> 0 | F120: 0 | G120: 0 | H120: 0 | I120: 0 | J120: 0 | K120: 0 | L120: 0 | M120: 0 | N120: 0 | O120: 0 | P120: 0 | Q120: 0 | R120: 0 | S120: 0 | T120: 0 | U120: 0 | V120: 0 | W120: 0 | X120: 0 | Y120: 0 | Z120: 0 | AA120: 0 | AB120: 0 | AC120: 0 | AD120: 0
B122: ='Project Inputs'!A37&" - $k:" -> Class 47 costs - $k:
B123: CCA rate | E123: ='Standard Inputs'!$C$30 -> 0.08 | F123: =E123 -> 0.08 | G123: 0.08 | H123: 0.08 | I123: 0.08 | J123: 0.08 | K123: 0.08 | L123: 0.08 | M123: 0.08 | N123: 0.08 | O123: 0.08 | P123: 0.08 | Q123: 0.08 | R123: 0.08 | S123: 0.08 | T123: 0.08 | U123: 0.08 | V123: 0.08 | W123: 0.08 | X123: 0.08 | Y123: 0.08 | Z123: 0.08 | AA123: 0.08 | AB123: 0.08 | AC123: 0.08 | AD123: 0.08
B125: Opening UCC | E125: 0 | F125: =IF(ISNUMBER(F$57),E132,0) -> 0 | G125: 22916.16 | H125: 21082.8672 | I125: 19396.23782 | J125: 17844.5388 | K125: 16416.97569 | L125: 15103.61764 | M125: 13895.32823 | N125: 12783.70197 | O125: 11761.00581 | P125: 10820.12535 | Q125: 9954.515319 | R125: 9158.154094 | S125: 8425.501766 | T125: 7751.461625 | U125: 7131.344695 | V125: 6560.837119 | W125: 6035.97015 | X125: 5553.092538 | Y125: 5108.845135 | Z125: 4700.137524 | AA125: 4324.126522 | AB125: 3978.1964 | AC125: 3659.940688 | AD125: 3367.145433
B126: Additions | F126: ='Project Inputs'!$B$38+'Project Inputs'!$B$39+'Project Inputs'!$B$40-((E43)*'NPV Calc'!$C$61)-(F$43*'NPV Calc'!$C$61)-F39 -> 23871 | G126: =IF(ISNUMBER(G5),-(G$43*'NPV Calc'!$C$67)-G39,0) -> 0 | H126: =IF(ISNUMBER(H5),-(H$43*'NPV Calc'!$C$67)-H39,0) -> 0 | I126: =IF(ISNUMBER(I5),-(I$43*'NPV Calc'!$C$67)-I39,0) -> 0 | J126: =IF(ISNUMBER(J5),-(J$43*'NPV Calc'!$C$67)-J39,0) -> 0 | K126: =IF(ISNUMBER(K5),-(K$43*'NPV Calc'!$C$67)-K39,0) -> 0 | L126: =IF(ISNUMBER(L5),-(L$43*'NPV Calc'!$C$67)-L39,0) -> 0 | M126: =IF(ISNUMBER(M5),-(M$43*'NPV Calc'!$C$67)-M39,0) -> 0 | N126: =IF(ISNUMBER(N5),-(N$43*'NPV Calc'!$C$67)-N39,0) -> 0 | O126: =IF(ISNUMBER(O5),-(O$43*'NPV Calc'!$C$67)-O39,0) -> 0 | P126: =IF(ISNUMBER(P5),-(P$43*'NPV Calc'!$C$67)-P39,0) -> 0 | Q126: =IF(ISNUMBER(Q5),-(Q$43*'NPV Calc'!$C$67)-Q39,0) -> 0 | R126: =IF(ISNUMBER(R5),-(R$43*'NPV Calc'!$C$67)-R39,0) -> 0 | S126: =IF(ISNUMBER(S5),-(S$43*'NPV Calc'!$C$67)-S39,0) -> 0 | T126: =IF(ISNUMBER(T5),-(T$43*'NPV Calc'!$C$67)-T39,0) -> 0 | U126: =IF(ISNUMBER(U5),-(U$43*'NPV Calc'!$C$67)-U39,0) -> 0 | V126: =IF(ISNUMBER(V5),-(V$43*'NPV Calc'!$C$67)-V39,0) -> 0 | W126: =IF(ISNUMBER(W5),-(W$43*'NPV Calc'!$C$67)-W39,0) -> 0 | X126: =IF(ISNUMBER(X5),-(X$43*'NPV Calc'!$C$67)-X39,0) -> 0 | Y126: =IF(ISNUMBER(Y5),-(Y$43*'NPV Calc'!$C$67)-Y39,0) -> 0 | Z126: =IF(ISNUMBER(Z5),-(Z$43*'NPV Calc'!$C$67)-Z39,0) -> 0 | AA126: =IF(ISNUMBER(AA5),-(AA$43*'NPV Calc'!$C$67)-AA39,0) -> 0 | AB126: =IF(ISNUMBER(AB5),-(AB$43*'NPV Calc'!$C$67)-AB39,0) -> 0 | AC126: =IF(ISNUMBER(AC5),-(AC$43*'NPV Calc'!$C$67)-AC39,0) -> 0 | AD126: =IF(ISNUMBER(AD5),-(AD$43*'NPV Calc'!$C$67)-AD39,0) -> 0
B127: Procceeds from disposal
B129: UCC for CCA | E129: =IF(E125+E126<0,0,E125+(E126)*0.5) -> 0 | F129: =IF(F125+F126<0,0,F125+(F126)*0.5) -> 11935.5 | G129: 22916.16 | H129: 21082.8672 | I129: 19396.23782 | J129: 17844.5388 | K129: 16416.97569 | L129: 15103.61764 | M129: 13895.32823 | N129: 12783.70197 | O129: 11761.00581 | P129: 10820.12535 | Q129: 9954.515319 | R129: 9158.154094 | S129: 8425.501766 | T129: 7751.461625 | U129: 7131.344695 | V129: 6560.837119 | W129: 6035.97015 | X129: 5553.092538 | Y129: 5108.845135 | Z129: 4700.137524 | AA129: 4324.126522 | AB129: 3978.1964 | AC129: 3659.940688 | AD129: 3367.145433
B131: CCA claim | E131: =IF(E129<0,0,E129*E123) -> 0 | F131: 954.84 | G131: 1833.2928 | H131: 1686.629376 | I131: 1551.699026 | J131: 1427.563104 | K131: 1313.358056 | L131: 1208.289411 | M131: 1111.626258 | N131: 1022.696158 | O131: 940.8804649 | P131: 865.6100278 | Q131: 796.3612255 | R131: 732.6523275 | S131: 674.0401413 | T131: 620.11693 | U131: 570.5075756 | V131: 524.8669695 | W131: 482.877612 | X131: 444.247403 | Y131: 408.7076108 | Z131: 376.0110019 | AA131: 345.9301218 | AB131: 318.255712 | AC131: 292.7952551 | AD131: 269.3716347
B132: Ending UCC | E132: =IF((E125+E126-E127-E131)<0,0,E125+E126-E127-E131) -> 0 | F132: 22916.16 | G132: 21082.8672 | H132: 19396.23782 | I132: 17844.5388 | J132: 16416.97569 | K132: 15103.61764 | L132: 13895.32823 | M132: 12783.70197 | N132: 11761.00581 | O132: 10820.12535 | P132: 9954.515319 | Q132: 9158.154094 | R132: 8425.501766 | S132: 7751.461625 | T132: 7131.344695 | U132: 6560.837119 | V132: 6035.97015 | W132: 5553.092538 | X132: 5108.845135 | Y132: 4700.137524 | Z132: 4324.126522 | AA132: 3978.1964 | AB132: 3659.940688 | AC132: 3367.145433 | AD132: 3097.773799
B134: CCA tax shield adjustment | E134: =IF(E$58='Capital Cont Inputs'!$B$10,E132*E$80*E123/('Standard Inputs'!$B$12+'NPV Calc'!E123),0) -> 0 | F134: =IF(F$58='Capital Cont Inputs'!$B$10,F132*F$80*F123/('Standard Inputs'!$B$12+'NPV Calc'!F123),0) -> 0 | G134: =IF(G$58='Capital Cont Inputs'!$B$10,G132*G$80*G123/('Standard Inputs'!$B$12+'NPV Calc'!G123),0) -> 0 | H134: =IF(H$58='Capital Cont Inputs'!$B$10,H132*H$80*H123/('Standard Inputs'!$B$12+'NPV Calc'!H123),0) -> 0 | I134: =IF(I$58='Capital Cont Inputs'!$B$10,I132*I$80*I123/('Standard Inputs'!$B$12+'NPV Calc'!I123),0) -> 0 | J134: =IF(J$58='Capital Cont Inputs'!$B$10,J132*J$80*J123/('Standard Inputs'!$B$12+'NPV Calc'!J123),0) -> 0 | K134: =IF(K$58='Capital Cont Inputs'!$B$10,K132*K$80*K123/('Standard Inputs'!$B$12+'NPV Calc'!K123),0) -> 0 | L134: =IF(L$58='Capital Cont Inputs'!$B$10,L132*L$80*L123/('Standard Inputs'!$B$12+'NPV Calc'!L123),0) -> 0 | M134: =IF(M$58='Capital Cont Inputs'!$B$10,M132*M$80*M123/('Standard Inputs'!$B$12+'NPV Calc'!M123),0) -> 0 | N134: =IF(N$58='Capital Cont Inputs'!$B$10,N132*N$80*N123/('Standard Inputs'!$B$12+'NPV Calc'!N123),0) -> 0 | O134: =IF(O$58='Capital Cont Inputs'!$B$10,O132*O$80*O123/('Standard Inputs'!$B$12+'NPV Calc'!O123),0) -> 0 | P134: =IF(P$58='Capital Cont Inputs'!$B$10,P132*P$80*P123/('Standard Inputs'!$B$12+'NPV Calc'!P123),0) -> 0 | Q134: =IF(Q$58='Capital Cont Inputs'!$B$10,Q132*Q$80*Q123/('Standard Inputs'!$B$12+'NPV Calc'!Q123),0) -> 0 | R134: =IF(R$58='Capital Cont Inputs'!$B$10,R132*R$80*R123/('Standard Inputs'!$B$12+'NPV Calc'!R123),0) -> 0 | S134: =IF(S$58='Capital Cont Inputs'!$B$10,S132*S$80*S123/('Standard Inputs'!$B$12+'NPV Calc'!S123),0) -> 0 | T134: =IF(T$58='Capital Cont Inputs'!$B$10,T132*T$80*T123/('Standard Inputs'!$B$12+'NPV Calc'!T123),0) -> 0 | U134: =IF(U$58='Capital Cont Inputs'!$B$10,U132*U$80*U123/('Standard Inputs'!$B$12+'NPV Calc'!U123),0) -> 0 | V134: =IF(V$58='Capital Cont Inputs'!$B$10,V132*V$80*V123/('Standard Inputs'!$B$12+'NPV Calc'!V123),0) -> 0 | W134: =IF(W$58='Capital Cont Inputs'!$B$10,W132*W$80*W123/('Standard Inputs'!$B$12+'NPV Calc'!W123),0) -> 0 | X134: =IF(X$58='Capital Cont Inputs'!$B$10,X132*X$80*X123/('Standard Inputs'!$B$12+'NPV Calc'!X123),0) -> 0 | Y134: =IF(Y$58='Capital Cont Inputs'!$B$10,Y132*Y$80*Y123/('Standard Inputs'!$B$12+'NPV Calc'!Y123),0) -> 0 | Z134: =IF(Z$58='Capital Cont Inputs'!$B$10,Z132*Z$80*Z123/('Standard Inputs'!$B$12+'NPV Calc'!Z123),0) -> 0 | AA134: =IF(AA$58='Capital Cont Inputs'!$B$10,AA132*AA$80*AA123/('Standard Inputs'!$B$12+'NPV Calc'!AA123),0) -> 0 | AB134: =IF(AB$58='Capital Cont Inputs'!$B$10,AB132*AB$80*AB123/('Standard Inputs'!$B$12+'NPV Calc'!AB123),0) -> 0 | AC134: =IF(AC$58='Capital Cont Inputs'!$B$10,AC132*AC$80*AC123/('Standard Inputs'!$B$12+'NPV Calc'!AC123),0) -> 0 | AD134: =IF(AD$58='Capital Cont Inputs'!$B$10,AD132*AD$80*AD123/('Standard Inputs'!$B$12+'NPV Calc'!AD123),0) -> 606.8147297
B136: ='Project Inputs'!A48&" - $k:" -> Decision Support defined costs (1) - $k:
B137: CCA rate | E137: ='Standard Inputs'!C31 -> 0 | F137: =E137 -> 0 | G137: 0 | H137: 0 | I137: 0 | J137: 0 | K137: 0 | L137: 0 | M137: 0 | N137: 0 | O137: 0 | P137: 0 | Q137: 0 | R137: 0 | S137: 0 | T137: 0 | U137: 0 | V137: 0 | W137: 0 | X137: 0 | Y137: 0 | Z137: 0 | AA137: 0 | AB137: 0 | AC137: 0 | AD137: 0
B139: Opening UCC | E139: 0 | F139: =IF(ISNUMBER(F$57),E146,0) -> 0 | G139: 0 | H139: 0 | I139: 0 | J139: 0 | K139: 0 | L139: 0 | M139: 0 | N139: 0 | O139: 0 | P139: 0 | Q139: 0 | R139: 0 | S139: 0 | T139: 0 | U139: 0 | V139: 0 | W139: 0 | X139: 0 | Y139: 0 | Z139: 0 | AA139: 0 | AB139: 0 | AC139: 0 | AD139: 0
B140: Additions | F140: =SUM('Project Inputs'!$B$49:$B$51)-((E43)*'NPV Calc'!$C$62)-(F$43*'NPV Calc'!$C$62) -> 0
B141: Procceeds from disposal
B143: UCC for CCA | E143: =IF(E139+E140<0,0,E139+(E140)*0.5) -> 0 | F143: =IF(F139+F140<0,0,F139+(F140)*0.5) -> 0 | G143: 0 | H143: 0 | I143: 0 | J143: 0 | K143: 0 | L143: 0 | M143: 0 | N143: 0 | O143: 0 | P143: 0 | Q143: 0 | R143: 0 | S143: 0 | T143: 0 | U143: 0 | V143: 0 | W143: 0 | X143: 0 | Y143: 0 | Z143: 0 | AA143: 0 | AB143: 0 | AC143: 0 | AD143: 0
B145: CCA claim | E145: =IF(E143<0,0,E143*E137) -> 0 | F145: 0 | G145: 0 | H145: 0 | I145: 0 | J145: 0 | K145: 0 | L145: 0 | M145: 0 | N145: 0 | O145: 0 | P145: 0 | Q145: 0 | R145: 0 | S145: 0 | T145: 0 | U145: 0 | V145: 0 | W145: 0 | X145: 0 | Y145: 0 | Z145: 0 | AA145: 0 | AB145: 0 | AC145: 0 | AD145: 0
B146: Ending UCC | E146: =IF((E139+E140-E141-E145)<0,0,E139+E140-E141-E145) -> 0 | F146: 0 | G146: 0 | H146: 0 | I146: 0 | J146: 0 | K146: 0 | L146: 0 | M146: 0 | N146: 0 | O146: 0 | P146: 0 | Q146: 0 | R146: 0 | S146: 0 | T146: 0 | U146: 0 | V146: 0 | W146: 0 | X146: 0 | Y146: 0 | Z146: 0 | AA146: 0 | AB146: 0 | AC146: 0 | AD146: 0
B148: CCA tax shield adjustment | E148: =IF(E$58='Capital Cont Inputs'!$B$10,E146*E$80*E137/('Standard Inputs'!$B$12+'NPV Calc'!E137),0) -> 0 | F148: =IF(F$58='Capital Cont Inputs'!$B$10,F146*F$80*F137/('Standard Inputs'!$B$12+'NPV Calc'!F137),0) -> 0 | G148: =IF(G$58='Capital Cont Inputs'!$B$10,G146*G$80*G137/('Standard Inputs'!$B$12+'NPV Calc'!G137),0) -> 0 | H148: =IF(H$58='Capital Cont Inputs'!$B$10,H146*H$80*H137/('Standard Inputs'!$B$12+'NPV Calc'!H137),0) -> 0 | I148: =IF(I$58='Capital Cont Inputs'!$B$10,I146*I$80*I137/('Standard Inputs'!$B$12+'NPV Calc'!I137),0) -> 0 | J148: =IF(J$58='Capital Cont Inputs'!$B$10,J146*J$80*J137/('Standard Inputs'!$B$12+'NPV Calc'!J137),0) -> 0 | K148: =IF(K$58='Capital Cont Inputs'!$B$10,K146*K$80*K137/('Standard Inputs'!$B$12+'NPV Calc'!K137),0) -> 0 | L148: =IF(L$58='Capital Cont Inputs'!$B$10,L146*L$80*L137/('Standard Inputs'!$B$12+'NPV Calc'!L137),0) -> 0 | M148: =IF(M$58='Capital Cont Inputs'!$B$10,M146*M$80*M137/('Standard Inputs'!$B$12+'NPV Calc'!M137),0) -> 0 | N148: =IF(N$58='Capital Cont Inputs'!$B$10,N146*N$80*N137/('Standard Inputs'!$B$12+'NPV Calc'!N137),0) -> 0 | O148: =IF(O$58='Capital Cont Inputs'!$B$10,O146*O$80*O137/('Standard Inputs'!$B$12+'NPV Calc'!O137),0) -> 0 | P148: =IF(P$58='Capital Cont Inputs'!$B$10,P146*P$80*P137/('Standard Inputs'!$B$12+'NPV Calc'!P137),0) -> 0 | Q148: =IF(Q$58='Capital Cont Inputs'!$B$10,Q146*Q$80*Q137/('Standard Inputs'!$B$12+'NPV Calc'!Q137),0) -> 0 | R148: =IF(R$58='Capital Cont Inputs'!$B$10,R146*R$80*R137/('Standard Inputs'!$B$12+'NPV Calc'!R137),0) -> 0 | S148: =IF(S$58='Capital Cont Inputs'!$B$10,S146*S$80*S137/('Standard Inputs'!$B$12+'NPV Calc'!S137),0) -> 0 | T148: =IF(T$58='Capital Cont Inputs'!$B$10,T146*T$80*T137/('Standard Inputs'!$B$12+'NPV Calc'!T137),0) -> 0 | U148: =IF(U$58='Capital Cont Inputs'!$B$10,U146*U$80*U137/('Standard Inputs'!$B$12+'NPV Calc'!U137),0) -> 0 | V148: =IF(V$58='Capital Cont Inputs'!$B$10,V146*V$80*V137/('Standard Inputs'!$B$12+'NPV Calc'!V137),0) -> 0 | W148: =IF(W$58='Capital Cont Inputs'!$B$10,W146*W$80*W137/('Standard Inputs'!$B$12+'NPV Calc'!W137),0) -> 0 | X148: =IF(X$58='Capital Cont Inputs'!$B$10,X146*X$80*X137/('Standard Inputs'!$B$12+'NPV Calc'!X137),0) -> 0 | Y148: =IF(Y$58='Capital Cont Inputs'!$B$10,Y146*Y$80*Y137/('Standard Inputs'!$B$12+'NPV Calc'!Y137),0) -> 0 | Z148: =IF(Z$58='Capital Cont Inputs'!$B$10,Z146*Z$80*Z137/('Standard Inputs'!$B$12+'NPV Calc'!Z137),0) -> 0 | AA148: =IF(AA$58='Capital Cont Inputs'!$B$10,AA146*AA$80*AA137/('Standard Inputs'!$B$12+'NPV Calc'!AA137),0) -> 0 | AB148: =IF(AB$58='Capital Cont Inputs'!$B$10,AB146*AB$80*AB137/('Standard Inputs'!$B$12+'NPV Calc'!AB137),0) -> 0 | AC148: =IF(AC$58='Capital Cont Inputs'!$B$10,AC146*AC$80*AC137/('Standard Inputs'!$B$12+'NPV Calc'!AC137),0) -> 0 | AD148: =IF(AD$58='Capital Cont Inputs'!$B$10,AD146*AD$80*AD137/('Standard Inputs'!$B$12+'NPV Calc'!AD137),0) -> 0
B150: ='Project Inputs'!A54&" - $k:" -> Decision Support defined costs (2) - $k:
B151: CCA rate | E151: ='Standard Inputs'!C32 -> 0 | F151: =E151 -> 0 | G151: 0 | H151: 0 | I151: 0 | J151: 0 | K151: 0 | L151: 0 | M151: 0 | N151: 0 | O151: 0 | P151: 0 | Q151: 0 | R151: 0 | S151: 0 | T151: 0 | U151: 0 | V151: 0 | W151: 0 | X151: 0 | Y151: 0 | Z151: 0 | AA151: 0 | AB151: 0 | AC151: 0 | AD151: 0
B153: Opening UCC | E153: 0 | F153: =IF(ISNUMBER(F$57),E160,0) -> 0 | G153: 0 | H153: 0 | I153: 0 | J153: 0 | K153: 0 | L153: 0 | M153: 0 | N153: 0 | O153: 0 | P153: 0 | Q153: 0 | R153: 0 | S153: 0 | T153: 0 | U153: 0 | V153: 0 | W153: 0 | X153: 0 | Y153: 0 | Z153: 0 | AA153: 0 | AB153: 0 | AC153: 0 | AD153: 0
B154: Additions | F154: =SUM('Project Inputs'!$B$55:$B$57)-((E43)*'NPV Calc'!$C$63)-(F$43*'NPV Calc'!$C$63) -> 0
B155: Procceeds from disposal
B157: UCC for CCA | E157: =IF(E153+E154<0,0,E153+(E154)*0.5) -> 0 | F157: =IF(F153+F154<0,0,F153+(F154)*0.5) -> 0 | G157: 0 | H157: 0 | I157: 0 | J157: 0 | K157: 0 | L157: 0 | M157: 0 | N157: 0 | O157: 0 | P157: 0 | Q157: 0 | R157: 0 | S157: 0 | T157: 0 | U157: 0 | V157: 0 | W157: 0 | X157: 0 | Y157: 0 | Z157: 0 | AA157: 0 | AB157: 0 | AC157: 0 | AD157: 0
B159: CCA claim | E159: =IF(E157<0,0,E157*E151) -> 0 | F159: 0 | G159: 0 | H159: 0 | I159: 0 | J159: 0 | K159: 0 | L159: 0 | M159: 0 | N159: 0 | O159: 0 | P159: 0 | Q159: 0 | R159: 0 | S159: 0 | T159: 0 | U159: 0 | V159: 0 | W159: 0 | X159: 0 | Y159: 0 | Z159: 0 | AA159: 0 | AB159: 0 | AC159: 0 | AD159: 0
B160: Ending UCC | E160: =IF((E153+E154-E155-E159)<0,0,E153+E154-E155-E159) -> 0 | F160: 0 | G160: 0 | H160: 0 | I160: 0 | J160: 0 | K160: 0 | L160: 0 | M160: 0 | N160: 0 | O160: 0 | P160: 0 | Q160: 0 | R160: 0 | S160: 0 | T160: 0 | U160: 0 | V160: 0 | W160: 0 | X160: 0 | Y160: 0 | Z160: 0 | AA160: 0 | AB160: 0 | AC160: 0 | AD160: 0
B162: CCA tax shield adjustment | E162: =IF(E$58='Capital Cont Inputs'!$B$10,E160*E$80*E151/('Standard Inputs'!$B$12+'NPV Calc'!E151),0) -> 0 | F162: =IF(F$58='Capital Cont Inputs'!$B$10,F160*F$80*F151/('Standard Inputs'!$B$12+'NPV Calc'!F151),0) -> 0 | G162: =IF(G$58='Capital Cont Inputs'!$B$10,G160*G$80*G151/('Standard Inputs'!$B$12+'NPV Calc'!G151),0) -> 0 | H162: =IF(H$58='Capital Cont Inputs'!$B$10,H160*H$80*H151/('Standard Inputs'!$B$12+'NPV Calc'!H151),0) -> 0 | I162: =IF(I$58='Capital Cont Inputs'!$B$10,I160*I$80*I151/('Standard Inputs'!$B$12+'NPV Calc'!I151),0) -> 0 | J162: =IF(J$58='Capital Cont Inputs'!$B$10,J160*J$80*J151/('Standard Inputs'!$B$12+'NPV Calc'!J151),0) -> 0 | K162: =IF(K$58='Capital Cont Inputs'!$B$10,K160*K$80*K151/('Standard Inputs'!$B$12+'NPV Calc'!K151),0) -> 0 | L162: =IF(L$58='Capital Cont Inputs'!$B$10,L160*L$80*L151/('Standard Inputs'!$B$12+'NPV Calc'!L151),0) -> 0 | M162: =IF(M$58='Capital Cont Inputs'!$B$10,M160*M$80*M151/('Standard Inputs'!$B$12+'NPV Calc'!M151),0) -> 0 | N162: =IF(N$58='Capital Cont Inputs'!$B$10,N160*N$80*N151/('Standard Inputs'!$B$12+'NPV Calc'!N151),0) -> 0 | O162: =IF(O$58='Capital Cont Inputs'!$B$10,O160*O$80*O151/('Standard Inputs'!$B$12+'NPV Calc'!O151),0) -> 0 | P162: =IF(P$58='Capital Cont Inputs'!$B$10,P160*P$80*P151/('Standard Inputs'!$B$12+'NPV Calc'!P151),0) -> 0 | Q162: =IF(Q$58='Capital Cont Inputs'!$B$10,Q160*Q$80*Q151/('Standard Inputs'!$B$12+'NPV Calc'!Q151),0) -> 0 | R162: =IF(R$58='Capital Cont Inputs'!$B$10,R160*R$80*R151/('Standard Inputs'!$B$12+'NPV Calc'!R151),0) -> 0 | S162: =IF(S$58='Capital Cont Inputs'!$B$10,S160*S$80*S151/('Standard Inputs'!$B$12+'NPV Calc'!S151),0) -> 0 | T162: =IF(T$58='Capital Cont Inputs'!$B$10,T160*T$80*T151/('Standard Inputs'!$B$12+'NPV Calc'!T151),0) -> 0 | U162: =IF(U$58='Capital Cont Inputs'!$B$10,U160*U$80*U151/('Standard Inputs'!$B$12+'NPV Calc'!U151),0) -> 0 | V162: =IF(V$58='Capital Cont Inputs'!$B$10,V160*V$80*V151/('Standard Inputs'!$B$12+'NPV Calc'!V151),0) -> 0 | W162: =IF(W$58='Capital Cont Inputs'!$B$10,W160*W$80*W151/('Standard Inputs'!$B$12+'NPV Calc'!W151),0) -> 0 | X162: =IF(X$58='Capital Cont Inputs'!$B$10,X160*X$80*X151/('Standard Inputs'!$B$12+'NPV Calc'!X151),0) -> 0 | Y162: =IF(Y$58='Capital Cont Inputs'!$B$10,Y160*Y$80*Y151/('Standard Inputs'!$B$12+'NPV Calc'!Y151),0) -> 0 | Z162: =IF(Z$58='Capital Cont Inputs'!$B$10,Z160*Z$80*Z151/('Standard Inputs'!$B$12+'NPV Calc'!Z151),0) -> 0 | AA162: =IF(AA$58='Capital Cont Inputs'!$B$10,AA160*AA$80*AA151/('Standard Inputs'!$B$12+'NPV Calc'!AA151),0) -> 0 | AB162: =IF(AB$58='Capital Cont Inputs'!$B$10,AB160*AB$80*AB151/('Standard Inputs'!$B$12+'NPV Calc'!AB151),0) -> 0 | AC162: =IF(AC$58='Capital Cont Inputs'!$B$10,AC160*AC$80*AC151/('Standard Inputs'!$B$12+'NPV Calc'!AC151),0) -> 0 | AD162: =IF(AD$58='Capital Cont Inputs'!$B$10,AD160*AD$80*AD151/('Standard Inputs'!$B$12+'NPV Calc'!AD151),0) -> 0
B164: ='Project Inputs'!A60&" - $k:" -> Decision Support defined costs (3) - $k:
B165: CCA rate | E165: ='Standard Inputs'!C33 -> 0 | F165: =E165 -> 0 | G165: 0 | H165: 0 | I165: 0 | J165: 0 | K165: 0 | L165: 0 | M165: 0 | N165: 0 | O165: 0 | P165: 0 | Q165: 0 | R165: 0 | S165: 0 | T165: 0 | U165: 0 | V165: 0 | W165: 0 | X165: 0 | Y165: 0 | Z165: 0 | AA165: 0 | AB165: 0 | AC165: 0 | AD165: 0
B167: Opening UCC | E167: 0 | F167: =IF(ISNUMBER(F$57),E174,0) -> 0 | G167: 0 | H167: 0 | I167: 0 | J167: 0 | K167: 0 | L167: 0 | M167: 0 | N167: 0 | O167: 0 | P167: 0 | Q167: 0 | R167: 0 | S167: 0 | T167: 0 | U167: 0 | V167: 0 | W167: 0 | X167: 0 | Y167: 0 | Z167: 0 | AA167: 0 | AB167: 0 | AC167: 0 | AD167: 0
B168: Additions | F168: =SUM('Project Inputs'!$B$61:$B$63)-((E43)*'NPV Calc'!$C$64)-(F$43*'NPV Calc'!$C$64) -> 0
B169: Procceeds from disposal
B171: UCC for CCA | E171: =IF(E167+E168<0,0,E167+(E168)*0.5) -> 0 | F171: =IF(F167+F168<0,0,F167+(F168)*0.5) -> 0 | G171: 0 | H171: 0 | I171: 0 | J171: 0 | K171: 0 | L171: 0 | M171: 0 | N171: 0 | O171: 0 | P171: 0 | Q171: 0 | R171: 0 | S171: 0 | T171: 0 | U171: 0 | V171: 0 | W171: 0 | X171: 0 | Y171: 0 | Z171: 0 | AA171: 0 | AB171: 0 | AC171: 0 | AD171: 0
B173: CCA claim | E173: =IF(E171<0,0,E171*E165) -> 0 | F173: 0 | G173: 0 | H173: 0 | I173: 0 | J173: 0 | K173: 0 | L173: 0 | M173: 0 | N173: 0 | O173: 0 | P173: 0 | Q173: 0 | R173: 0 | S173: 0 | T173: 0 | U173: 0 | V173: 0 | W173: 0 | X173: 0 | Y173: 0 | Z173: 0 | AA173: 0 | AB173: 0 | AC173: 0 | AD173: 0
B174: Ending UCC | E174: =IF((E167+E168-E169-E173)<0,0,E167+E168-E169-E173) -> 0 | F174: 0 | G174: 0 | H174: 0 | I174: 0 | J174: 0 | K174: 0 | L174: 0 | M174: 0 | N174: 0 | O174: 0 | P174: 0 | Q174: 0 | R174: 0 | S174: 0 | T174: 0 | U174: 0 | V174: 0 | W174: 0 | X174: 0 | Y174: 0 | Z174: 0 | AA174: 0 | AB174: 0 | AC174: 0 | AD174: 0
B176: CCA tax shield adjustment | E176: =IF(E$58='Capital Cont Inputs'!$B$10,E174*E$80*E165/('Standard Inputs'!$B$12+'NPV Calc'!E165),0) -> 0 | F176: =IF(F$58='Capital Cont Inputs'!$B$10,F174*F$80*F165/('Standard Inputs'!$B$12+'NPV Calc'!F165),0) -> 0 | G176: =IF(G$58='Capital Cont Inputs'!$B$10,G174*G$80*G165/('Standard Inputs'!$B$12+'NPV Calc'!G165),0) -> 0 | H176: =IF(H$58='Capital Cont Inputs'!$B$10,H174*H$80*H165/('Standard Inputs'!$B$12+'NPV Calc'!H165),0) -> 0 | I176: =IF(I$58='Capital Cont Inputs'!$B$10,I174*I$80*I165/('Standard Inputs'!$B$12+'NPV Calc'!I165),0) -> 0 | J176: =IF(J$58='Capital Cont Inputs'!$B$10,J174*J$80*J165/('Standard Inputs'!$B$12+'NPV Calc'!J165),0) -> 0 | K176: =IF(K$58='Capital Cont Inputs'!$B$10,K174*K$80*K165/('Standard Inputs'!$B$12+'NPV Calc'!K165),0) -> 0 | L176: =IF(L$58='Capital Cont Inputs'!$B$10,L174*L$80*L165/('Standard Inputs'!$B$12+'NPV Calc'!L165),0) -> 0 | M176: =IF(M$58='Capital Cont Inputs'!$B$10,M174*M$80*M165/('Standard Inputs'!$B$12+'NPV Calc'!M165),0) -> 0 | N176: =IF(N$58='Capital Cont Inputs'!$B$10,N174*N$80*N165/('Standard Inputs'!$B$12+'NPV Calc'!N165),0) -> 0 | O176: =IF(O$58='Capital Cont Inputs'!$B$10,O174*O$80*O165/('Standard Inputs'!$B$12+'NPV Calc'!O165),0) -> 0 | P176: =IF(P$58='Capital Cont Inputs'!$B$10,P174*P$80*P165/('Standard Inputs'!$B$12+'NPV Calc'!P165),0) -> 0 | Q176: =IF(Q$58='Capital Cont Inputs'!$B$10,Q174*Q$80*Q165/('Standard Inputs'!$B$12+'NPV Calc'!Q165),0) -> 0 | R176: =IF(R$58='Capital Cont Inputs'!$B$10,R174*R$80*R165/('Standard Inputs'!$B$12+'NPV Calc'!R165),0) -> 0 | S176: =IF(S$58='Capital Cont Inputs'!$B$10,S174*S$80*S165/('Standard Inputs'!$B$12+'NPV Calc'!S165),0) -> 0 | T176: =IF(T$58='Capital Cont Inputs'!$B$10,T174*T$80*T165/('Standard Inputs'!$B$12+'NPV Calc'!T165),0) -> 0 | U176: =IF(U$58='Capital Cont Inputs'!$B$10,U174*U$80*U165/('Standard Inputs'!$B$12+'NPV Calc'!U165),0) -> 0 | V176: =IF(V$58='Capital Cont Inputs'!$B$10,V174*V$80*V165/('Standard Inputs'!$B$12+'NPV Calc'!V165),0) -> 0 | W176: =IF(W$58='Capital Cont Inputs'!$B$10,W174*W$80*W165/('Standard Inputs'!$B$12+'NPV Calc'!W165),0) -> 0 | X176: =IF(X$58='Capital Cont Inputs'!$B$10,X174*X$80*X165/('Standard Inputs'!$B$12+'NPV Calc'!X165),0) -> 0 | Y176: =IF(Y$58='Capital Cont Inputs'!$B$10,Y174*Y$80*Y165/('Standard Inputs'!$B$12+'NPV Calc'!Y165),0) -> 0 | Z176: =IF(Z$58='Capital Cont Inputs'!$B$10,Z174*Z$80*Z165/('Standard Inputs'!$B$12+'NPV Calc'!Z165),0) -> 0 | AA176: =IF(AA$58='Capital Cont Inputs'!$B$10,AA174*AA$80*AA165/('Standard Inputs'!$B$12+'NPV Calc'!AA165),0) -> 0 | AB176: =IF(AB$58='Capital Cont Inputs'!$B$10,AB174*AB$80*AB165/('Standard Inputs'!$B$12+'NPV Calc'!AB165),0) -> 0 | AC176: =IF(AC$58='Capital Cont Inputs'!$B$10,AC174*AC$80*AC165/('Standard Inputs'!$B$12+'NPV Calc'!AC165),0) -> 0 | AD176: =IF(AD$58='Capital Cont Inputs'!$B$10,AD174*AD$80*AD165/('Standard Inputs'!$B$12+'NPV Calc'!AD165),0) -> 0
B178: Ontario Capital Tax:
B179: Ending UCC | E179: =E110 -> 0 | F179: 22916.16 | G179: 21082.8672 | H179: 19396.23782 | I179: 17844.5388 | J179: 16416.97569 | K179: 15103.61764 | L179: 13895.32823 | M179: 12783.70197 | N179: 11761.00581 | O179: 10820.12535 | P179: 9954.515319 | Q179: 9158.154094 | R179: 8425.501766 | S179: 7751.461625 | T179: 7131.344695 | U179: 6560.837119 | V179: 6035.97015 | W179: 5553.092538 | X179: 5108.845135 | Y179: 4700.137524 | Z179: 4324.126522 | AA179: 3978.1964 | AB179: 3659.940688 | AC179: 3367.145433 | AD179: 3097.773799
B180: Ontario Capital Tax Rate (OCT) | E180: ='Standard Inputs'!$B$22 -> 0.00225 | F180: ='Standard Inputs'!$B$22 -> 0.00225 | G180: ='Standard Inputs'!$B$22 -> 0.00225 | H180: ='Standard Inputs'!$B$22 -> 0.00225 | I180: ='Standard Inputs'!$B$22 -> 0.00225 | J180: ='Standard Inputs'!$B$22 -> 0.00225 | K180: ='Standard Inputs'!$B$22 -> 0.00225 | L180: ='Standard Inputs'!$B$22 -> 0.00225 | M180: ='Standard Inputs'!$B$22 -> 0.00225 | N180: ='Standard Inputs'!$B$22 -> 0.00225 | O180: ='Standard Inputs'!$B$22 -> 0.00225 | P180: ='Standard Inputs'!$B$22 -> 0.00225 | Q180: ='Standard Inputs'!$B$22 -> 0.00225 | R180: ='Standard Inputs'!$B$22 -> 0.00225 | S180: ='Standard Inputs'!$B$22 -> 0.00225 | T180: ='Standard Inputs'!$B$22 -> 0.00225 | U180: ='Standard Inputs'!$B$22 -> 0.00225 | V180: ='Standard Inputs'!$B$22 -> 0.00225 | W180: ='Standard Inputs'!$B$22 -> 0.00225 | X180: ='Standard Inputs'!$B$22 -> 0.00225 | Y180: ='Standard Inputs'!$B$22 -> 0.00225 | Z180: ='Standard Inputs'!$B$22 -> 0.00225 | AA180: ='Standard Inputs'!$B$22 -> 0.00225 | AB180: ='Standard Inputs'!$B$22 -> 0.00225 | AC180: ='Standard Inputs'!$B$22 -> 0.00225 | AD180: ='Standard Inputs'!$B$22 -> 0.00225
B181: Total Ontario Capital Tax | E181: =E179*E180 -> 0 | F181: =F179*F180 -> 51.56136 | G181: 47.4364512 | H181: 43.6415351 | I181: 40.1502123 | J181: 36.93819531 | K181: 33.98313969 | L181: 31.26448851 | M181: 28.76332943 | N181: 26.46226308 | O181: 24.34528203 | P181: 22.39765947 | Q181: 20.60584671 | R181: 18.95737897 | S181: 17.44078866 | T181: 16.04552556 | U181: 14.76188352 | V181: 13.58093284 | W181: 12.49445821 | X181: 11.49490155 | Y181: 10.57530943 | Z181: 9.729284675 | AA181: 8.950941901 | AB181: 8.234866549 | AC181: 7.576077225 | AD181: 6.969991047

Sheet Standard Report
A1: `
E2: Date: | F2: 2020-02-07 | I2: =IF('Capital Cont Inputs'!B52="Revenue Guarantee","SUMMARY OF REVENUE GUARANTEE","SUMMARY OF CONTRIBUTION CALCULATIONS") -> SUMMARY OF CONTRIBUTION CALCULATIONS
E3: Project # | F3: ='Project Inputs'!B7 -> 0 | I3: ='Project Inputs'!B17&" Pool"&" - "&'Project Inputs'!B28 -> Transformation Pool - 2nd true-up
J5: =IF(AND('Capital Cont Inputs'!B31="Yes",'Capital Cont Inputs'!B52="Revenue Guarantee"),"Warning - the revenue guarantee has not been calculated, therefore the revenue guarantee report is not available for review.",IF(AND('Capital Cont Inputs'!B45="Revenue Guarantee",'Capital Cont Inputs'!B52="Revenue Guarantee",ROUND(NPVStandardReport,6)<>0),"WARNING - the NPV has changed since the last run of the Revenue Guarantee. Please re-run before reporting.",IF(AND('Capital Cont Inputs'!B45="Revenue Guarantee",'Capital Cont Inputs'!B52="IEE/True-up",NPVStandardReport<>NPVBeforeCC),"Warning - the NPV has changed since the last run of the Revenue Guarantee. Please re-run before reporting.",IF(AND((ROUND('NPV Calc'!D53,6)<>ROUND('Standard Report'!F96,6)),'Capital Cont Inputs'!B31="Yes"),"WARNING - the NPV has changed since the last run of the IEE calculation. Please re-run before reporting.","")))) -> 
J6: =IF('NPV Calc'!C2="Yes","WARNING - The detailed report is set to include capital contributions. Therefore, the report is not correct.","") -> 
E8: Facility Name: | G8: ='Project Inputs'!B9 -> Goreway TS new (2nd) 230/28-28 kV DESN
E9: Description: | G9: ='Project Inputs'!B11 -> 10 Year True Up Transformation Pool Capital Contribution
E10: Customer: | G10: =Customer -> Hydro One Brampton
I12: In-Service
I13: Date | J13: <------- | K13: Project year ended - annualized from In-Service Date -------->
G14: Month | I14: =IF(ISNUMBER(I15),'Project Inputs'!$B$15,"") -> 2010-05-23 | J14: =IF(ISNUMBER(J15),'Project Inputs'!$B$15,"") -> 2010-05-23 | K14: =IF(ISNUMBER(K15),'Project Inputs'!$B$15,"") -> 2010-05-23 | L14: =IF(ISNUMBER(L15),'Project Inputs'!$B$15,"") -> 2010-05-23 | M14: =IF(ISNUMBER(M15),'Project Inputs'!$B$15,"") -> 2010-05-23 | N14: =IF(ISNUMBER(N15),'Project Inputs'!$B$15,"") -> 2010-05-23 | O14: =IF(ISNUMBER(O15),'Project Inputs'!$B$15,"") -> 2010-05-23 | P14: =IF(ISNUMBER(P15),'Project Inputs'!$B$15,"") -> 2010-05-23 | Q14: =IF(ISNUMBER(Q15),'Project Inputs'!$B$15,"") -> 2010-05-23 | R14: =IF(ISNUMBER(R15),'Project Inputs'!$B$15,"") -> 2010-05-23 | S14: =IF(ISNUMBER(S15),'Project Inputs'!$B$15,"") -> 2010-05-23 | T14: =IF(ISNUMBER(T15),'Project Inputs'!$B$15,"") -> 2010-05-23 | U14: =IF(ISNUMBER(U15),'Project Inputs'!$B$15,"") -> 2010-05-23 | V14: =IF(ISNUMBER(V15),'Project Inputs'!$B$15,"") -> 2010-05-23 | W14: =IF(ISNUMBER(W15),'Project Inputs'!$B$15,"") -> 2010-05-23 | X14: =IF(ISNUMBER(X15),'Project Inputs'!$B$15,"") -> 2010-05-23 | Y14: =IF(ISNUMBER(Y15),'Project Inputs'!$B$15,"") -> 2010-05-23 | Z14: =IF(ISNUMBER(Z15),'Project Inputs'!$B$15,"") -> 2010-05-23 | AA14: =IF(ISNUMBER(AA15),'Project Inputs'!$B$15,"") -> 2010-05-23 | AB14: =IF(ISNUMBER(AB15),'Project Inputs'!$B$15,"") -> 2010-05-23 | AC14: =IF(ISNUMBER(AC15),'Project Inputs'!$B$15,"") -> 2010-05-23 | AD14: =IF(ISNUMBER(AD15),'Project Inputs'!$B$15,"") -> 2010-05-23 | AE14: =IF(ISNUMBER(AE15),'Project Inputs'!$B$15,"") -> 2010-05-23 | AF14: =IF(ISNUMBER(AF15),'Project Inputs'!$B$15,"") -> 2010-05-23 | AG14: =IF(ISNUMBER(AG15),'Project Inputs'!$B$15,"") -> 2010-05-23 | AH14: =IF(ISNUMBER(AH15),'Project Inputs'!$B$15,"") -> 2010-05-23
G15: Year | I15: ='Capital Cont Inputs'!B15 -> 2010 | J15: ='Capital Cont Inputs'!C15 -> 2011 | K15: ='Capital Cont Inputs'!D15 -> 2012 | L15: ='Capital Cont Inputs'!E15 -> 2013 | M15: ='Capital Cont Inputs'!F15 -> 2014 | N15: ='Capital Cont Inputs'!G15 -> 2015 | O15: ='Capital Cont Inputs'!H15 -> 2016 | P15: ='Capital Cont Inputs'!I15 -> 2017 | Q15: ='Capital Cont Inputs'!J15 -> 2018 | R15: ='Capital Cont Inputs'!K15 -> 2019 | S15: ='Capital Cont Inputs'!L15 -> 2020 | T15: ='Capital Cont Inputs'!M15 -> 2021 | U15: ='Capital Cont Inputs'!N15 -> 2022 | V15: ='Capital Cont Inputs'!O15 -> 2023 | W15: ='Capital Cont Inputs'!P15 -> 2024 | X15: ='Capital Cont Inputs'!Q15 -> 2025 | Y15: ='Capital Cont Inputs'!R15 -> 2026 | Z15: ='Capital Cont Inputs'!S15 -> 2027 | AA15: ='Capital Cont Inputs'!T15 -> 2028 | AB15: ='Capital Cont Inputs'!U15 -> 2029 | AC15: ='Capital Cont Inputs'!V15 -> 2030 | AD15: ='Capital Cont Inputs'!W15 -> 2031 | AE15: ='Capital Cont Inputs'!X15 -> 2032 | AF15: ='Capital Cont Inputs'!Y15 -> 2033 | AG15: ='Capital Cont Inputs'!Z15 -> 2034 | AH15: ='Capital Cont Inputs'!AA15 -> 2035
J16: =IF(ISNA('Capital Cont Inputs'!C14),"",'Capital Cont Inputs'!C14) ->  | K16: =IF(ISNA('Capital Cont Inputs'!D14),"",'Capital Cont Inputs'!D14) ->  | L16: =IF(ISNA('Capital Cont Inputs'!E14),"",'Capital Cont Inputs'!E14) ->  | M16: =IF(ISNA('Capital Cont Inputs'!F14),"",'Capital Cont Inputs'!F14) ->  | N16: =IF(ISNA('Capital Cont Inputs'!G14),"",'Capital Cont Inputs'!G14) -> 1st true-up | O16: =IF(ISNA('Capital Cont Inputs'!H14),"",'Capital Cont Inputs'!H14) ->  | P16: =IF(ISNA('Capital Cont Inputs'!I14),"",'Capital Cont Inputs'!I14) ->  | Q16: =IF(ISNA('Capital Cont Inputs'!J14),"",'Capital Cont Inputs'!J14) ->  | R16: =IF(ISNA('Capital Cont Inputs'!K14),"",'Capital Cont Inputs'!K14) ->  | S16: =IF(ISNA('Capital Cont Inputs'!L14),"",'Capital Cont Inputs'!L14) -> 2nd true-up | T16: =IF(ISNA('Capital Cont Inputs'!M14),"",'Capital Cont Inputs'!M14) ->  | U16: =IF(ISNA('Capital Cont Inputs'!N14),"",'Capital Cont Inputs'!N14) ->  | V16: =IF(ISNA('Capital Cont Inputs'!O14),"",'Capital Cont Inputs'!O14) ->  | W16: =IF(ISNA('Capital Cont Inputs'!P14),"",'Capital Cont Inputs'!P14) ->  | X16: =IF(ISNA('Capital Cont Inputs'!Q14),"",'Capital Cont Inputs'!Q14) -> 3rd true-up | Y16: =IF(ISNA('Capital Cont Inputs'!R14),"",'Capital Cont Inputs'!R14) ->  | Z16: =IF(ISNA('Capital Cont Inputs'!S14),"",'Capital Cont Inputs'!S14) ->  | AA16: =IF(ISNA('Capital Cont Inputs'!T14),"",'Capital Cont Inputs'!T14) ->  | AB16: =IF(ISNA('Capital Cont Inputs'!U14),"",'Capital Cont Inputs'!U14) ->  | AC16: =IF(ISNA('Capital Cont Inputs'!V14),"",'Capital Cont Inputs'!V14) ->  | AD16: =IF(ISNA('Capital Cont Inputs'!W14),"",'Capital Cont Inputs'!W14) ->  | AE16: =IF(ISNA('Capital Cont Inputs'!X14),"",'Capital Cont Inputs'!X14) ->  | AF16: =IF(ISNA('Capital Cont Inputs'!Y14),"",'Capital Cont Inputs'!Y14) ->  | AG16: =IF(ISNA('Capital Cont Inputs'!Z14),"",'Capital Cont Inputs'!Z14) ->  | AH16: =IF(ISNA('Capital Cont Inputs'!AA14),"",'Capital Cont Inputs'!AA14) -> 
I17: ='Capital Cont Inputs'!B16 -> 0 | J17: ='Capital Cont Inputs'!C16 -> 1 | K17: ='Capital Cont Inputs'!D16 -> 2 | L17: ='Capital Cont Inputs'!E16 -> 3 | M17: ='Capital Cont Inputs'!F16 -> 4 | N17: ='Capital Cont Inputs'!G16 -> 5 | O17: ='Capital Cont Inputs'!H16 -> 6 | P17: ='Capital Cont Inputs'!I16 -> 7 | Q17: ='Capital Cont Inputs'!J16 -> 8 | R17: ='Capital Cont Inputs'!K16 -> 9 | S17: ='Capital Cont Inputs'!L16 -> 10 | T17: ='Capital Cont Inputs'!M16 -> 11 | U17: ='Capital Cont Inputs'!N16 -> 12 | V17: ='Capital Cont Inputs'!O16 -> 13 | W17: ='Capital Cont Inputs'!P16 -> 14 | X17: ='Capital Cont Inputs'!Q16 -> 15 | Y17: ='Capital Cont Inputs'!R16 -> 16 | Z17: ='Capital Cont Inputs'!S16 -> 17 | AA17: ='Capital Cont Inputs'!T16 -> 18 | AB17: ='Capital Cont Inputs'!U16 -> 19 | AC17: ='Capital Cont Inputs'!V16 -> 20 | AD17: ='Capital Cont Inputs'!W16 -> 21 | AE17: ='Capital Cont Inputs'!X16 -> 22 | AF17: ='Capital Cont Inputs'!Y16 -> 23 | AG17: ='Capital Cont Inputs'!Z16 -> 24 | AH17: ='Capital Cont Inputs'!AA16 -> 25
C18: Revenue & Expense Forecast
E19: Load Forecast (MW) | J19: ='NPV Calc'!F10 -> 21.26180917 | K19: ='NPV Calc'!G10 -> 31.35384695 | L19: ='NPV Calc'!H10 -> 29.59271892 | M19: ='NPV Calc'!I10 -> 33.16229827 | N19: ='NPV Calc'!J10 -> 40.47906394 | O19: ='NPV Calc'!K10 -> 31.83579374 | P19: ='NPV Calc'!L10 -> 42.63435444 | Q19: ='NPV Calc'!M10 -> 46.6358349 | R19: ='NPV Calc'!N10 -> 47.73436657 | S19: ='NPV Calc'!O10 -> 49.31130905 | T19: ='NPV Calc'!P10 -> 54.09559515 | U19: ='NPV Calc'!Q10 -> 58.31781849 | V19: ='NPV Calc'!R10 -> 62.37168764 | W19: ='NPV Calc'!S10 -> 65.9458361 | X19: ='NPV Calc'!T10 -> 69.911763 | Y19: ='NPV Calc'!U10 -> 74.41029933 | Z19: ='NPV Calc'!V10 -> 78.79436044 | AA19: ='NPV Calc'!W10 -> 82.93702224 | AB19: ='NPV Calc'!X10 -> 87.53642255 | AC19: ='NPV Calc'!Y10 -> 92.1605076 | AD19: ='NPV Calc'!Z10 -> 95.82298243 | AE19: ='NPV Calc'!AA10 -> 99.71285479 | AF19: ='NPV Calc'!AB10 -> 103.5145354 | AG19: ='NPV Calc'!AC10 -> 106.89774 | AH19: ='NPV Calc'!AD10 -> 110.7333098
E20: Load adjustments (MW) | J20: ='NPV Calc'!F11 -> 0 | K20: ='NPV Calc'!G11 -> 0 | L20: ='NPV Calc'!H11 -> 0 | M20: ='NPV Calc'!I11 -> 0 | N20: ='NPV Calc'!J11 -> 0 | O20: ='NPV Calc'!K11 -> 0 | P20: ='NPV Calc'!L11 -> 0 | Q20: ='NPV Calc'!M11 -> 0 | R20: ='NPV Calc'!N11 -> 0 | S20: ='NPV Calc'!O11 -> 0 | T20: ='NPV Calc'!P11 -> 0 | U20: ='NPV Calc'!Q11 -> 0 | V20: ='NPV Calc'!R11 -> 0 | W20: ='NPV Calc'!S11 -> 0 | X20: ='NPV Calc'!T11 -> 0 | Y20: ='NPV Calc'!U11 -> 0 | Z20: ='NPV Calc'!V11 -> 0 | AA20: ='NPV Calc'!W11 -> 0 | AB20: ='NPV Calc'!X11 -> 0 | AC20: ='NPV Calc'!Y11 -> 0 | AD20: ='NPV Calc'!Z11 -> 0 | AE20: ='NPV Calc'!AA11 -> 0 | AF20: ='NPV Calc'!AB11 -> 0 | AG20: ='NPV Calc'!AC11 -> 0 | AH20: ='NPV Calc'!AD11 -> 0
J21: =J19+J20 -> 21.26180917 | K21: =K19+K20 -> 31.35384695 | L21: 29.59271892 | M21: 33.16229827 | N21: 40.47906394 | O21: 31.83579374 | P21: 42.63435444 | Q21: 46.6358349 | R21: 47.73436657 | S21: 49.31130905 | T21: 54.09559515 | U21: 58.31781849 | V21: 62.37168764 | W21: 65.9458361 | X21: 69.911763 | Y21: 74.41029933 | Z21: 78.79436044 | AA21: 82.93702224 | AB21: 87.53642255 | AC21: 92.1605076 | AD21: 95.82298243 | AE21: 99.71285479 | AF21: 103.5145354 | AG21: 106.89774 | AH21: 110.7333098
E22: Tariff Applied ($/kW/Month) | J22: ='NPV Calc'!F14 -> 1.61 | K22: ='NPV Calc'!G14 -> 1.61 | L22: ='NPV Calc'!H14 -> 1.61 | M22: ='NPV Calc'!I14 -> 1.61 | N22: ='NPV Calc'!J14 -> 1.61 | O22: ='NPV Calc'!K14 -> 1.61 | P22: ='NPV Calc'!L14 -> 1.61 | Q22: ='NPV Calc'!M14 -> 1.61 | R22: ='NPV Calc'!N14 -> 1.61 | S22: ='NPV Calc'!O14 -> 1.61 | T22: ='NPV Calc'!P14 -> 1.61 | U22: ='NPV Calc'!Q14 -> 1.61 | V22: ='NPV Calc'!R14 -> 1.61 | W22: ='NPV Calc'!S14 -> 1.61 | X22: ='NPV Calc'!T14 -> 1.61 | Y22: ='NPV Calc'!U14 -> 1.61 | Z22: ='NPV Calc'!V14 -> 1.61 | AA22: ='NPV Calc'!W14 -> 1.61 | AB22: ='NPV Calc'!X14 -> 1.61 | AC22: ='NPV Calc'!Y14 -> 1.61 | AD22: ='NPV Calc'!Z14 -> 1.61 | AE22: ='NPV Calc'!AA14 -> 1.61 | AF22: ='NPV Calc'!AB14 -> 1.61 | AG22: ='NPV Calc'!AC14 -> 1.61 | AH22: ='NPV Calc'!AD14 -> 1.61
C23: Incremental Revenue - $k | J23: =J21*J22*12 -> 410.7781532 | K23: =K21*K22*12 -> 605.7563231 | L23: 571.7313296 | M23: 640.6956027 | N23: 782.0555153 | O23: 615.0675352 | P23: 823.6957279 | Q23: 901.0043304 | R23: 922.2279621 | S23: 952.6944909 | T23: 1045.126898 | U23: 1126.700253 | V23: 1205.021005 | W23: 1274.073554 | X23: 1350.695261 | Y23: 1437.606983 | Z23: 1522.307044 | AA23: 1602.34327 | AB23: 1691.203684 | AC23: 1780.541007 | AD23: 1851.30002 | AE23: 1926.452354 | AF23: 1999.900824 | AG23: 2065.264336 | AH23: 2139.367545
E24: Removal Costs - $k | I24: ='NPV Calc'!E20 -> 0
E25: On-going OM&A Costs - $k | I25: ='NPV Calc'!E21 -> 0 | J25: ='NPV Calc'!F21 -> -42 | K25: ='NPV Calc'!G21 -> -42 | L25: ='NPV Calc'!H21 -> -42 | M25: ='NPV Calc'!I21 -> -42 | N25: ='NPV Calc'!J21 -> -42 | O25: ='NPV Calc'!K21 -> -42 | P25: ='NPV Calc'!L21 -> -42 | Q25: ='NPV Calc'!M21 -> -42 | R25: ='NPV Calc'!N21 -> -42 | S25: ='NPV Calc'!O21 -> -42 | T25: ='NPV Calc'!P21 -> -42 | U25: ='NPV Calc'!Q21 -> -42 | V25: ='NPV Calc'!R21 -> -42 | W25: ='NPV Calc'!S21 -> -42 | X25: ='NPV Calc'!T21 -> -42 | Y25: ='NPV Calc'!U21 -> -65 | Z25: ='NPV Calc'!V21 -> -65 | AA25: ='NPV Calc'!W21 -> -65 | AB25: ='NPV Calc'!X21 -> -65 | AC25: ='NPV Calc'!Y21 -> -65 | AD25: ='NPV Calc'!Z21 -> -65 | AE25: ='NPV Calc'!AA21 -> -65 | AF25: ='NPV Calc'!AB21 -> -65 | AG25: ='NPV Calc'!AC21 -> -65 | AH25: ='NPV Calc'!AD21 -> -65
E26: Ontario Capital Tax and Municipal Tax - $K | J26: ='NPV Calc'!F23+'NPV Calc'!F22 -> -200.798969 | K26: ='NPV Calc'!G23+'NPV Calc'!G22 -> -196.6740602 | L26: ='NPV Calc'!H23+'NPV Calc'!H22 -> -192.8791441 | M26: ='NPV Calc'!I23+'NPV Calc'!I22 -> -189.3878213 | N26: ='NPV Calc'!J23+'NPV Calc'!J22 -> -186.1758043 | O26: ='NPV Calc'!K23+'NPV Calc'!K22 -> -183.2207487 | P26: ='NPV Calc'!L23+'NPV Calc'!L22 -> -180.5020975 | Q26: ='NPV Calc'!M23+'NPV Calc'!M22 -> -178.0009384 | R26: ='NPV Calc'!N23+'NPV Calc'!N22 -> -175.6998721 | S26: ='NPV Calc'!O23+'NPV Calc'!O22 -> -173.582891 | T26: ='NPV Calc'!P23+'NPV Calc'!P22 -> -171.6352685 | U26: ='NPV Calc'!Q23+'NPV Calc'!Q22 -> -169.8434557 | V26: ='NPV Calc'!R23+'NPV Calc'!R22 -> -168.194988 | W26: ='NPV Calc'!S23+'NPV Calc'!S22 -> -166.6783977 | X26: ='NPV Calc'!T23+'NPV Calc'!T22 -> -165.2831346 | Y26: ='NPV Calc'!U23+'NPV Calc'!U22 -> -163.9994925 | Z26: ='NPV Calc'!V23+'NPV Calc'!V22 -> -162.8185419 | AA26: ='NPV Calc'!W23+'NPV Calc'!W22 -> -161.7320672 | AB26: ='NPV Calc'!X23+'NPV Calc'!X22 -> -160.7325106 | AC26: ='NPV Calc'!Y23+'NPV Calc'!Y22 -> -159.8129184 | AD26: ='NPV Calc'!Z23+'NPV Calc'!Z22 -> -158.9668937 | AE26: ='NPV Calc'!AA23+'NPV Calc'!AA22 -> -158.1885509 | AF26: ='NPV Calc'!AB23+'NPV Calc'!AB22 -> -157.4724756 | AG26: ='NPV Calc'!AC23+'NPV Calc'!AC22 -> -156.8136862 | AH26: ='NPV Calc'!AD23+'NPV Calc'!AD22 -> -156.2076001
C27: Net Revenue/(Costs) before taxes - $k | I27: =SUM(I23:I26) -> 0 | J27: 167.9791842 | K27: 367.0822629 | L27: 336.8521854 | M27: 409.3077813 | N27: 553.8797109 | O27: 389.8467864 | P27: 601.1936303 | Q27: 681.0033919 | R27: 704.52809 | S27: 737.1115999 | T27: 831.4916299 | U27: 914.8567975 | V27: 994.8260172 | W27: 1065.395156 | X27: 1143.412127 | Y27: 1208.60749 | Z27: 1294.488502 | AA27: 1375.611202 | AB27: 1465.471173 | AC27: 1555.728088 | AD27: 1627.333127 | AE27: 1703.263804 | AF27: 1777.428348 | AG27: 1843.45065 | AH27: 1918.159945
E28: Income Taxes - $k | I28: ='NPV Calc'!E27 -> 0 | J28: ='NPV Calc'!F27 -> 263.5983733 | K28: ='NPV Calc'!G27 -> 491.1805299 | L28: ='NPV Calc'!H27 -> 452.1753588 | M28: ='NPV Calc'!I27 -> 382.7010669 | N28: ='NPV Calc'!J27 -> 292.6839366 | O28: ='NPV Calc'!K27 -> 309.3762751 | P28: ='NPV Calc'!L27 -> 203.3770866 | Q28: ='NPV Calc'!M27 -> 144.2586602 | R28: ='NPV Calc'!N27 -> 106.5863026 | S28: ='NPV Calc'!O27 -> 68.2625698 | T28: ='NPV Calc'!P27 -> 11.4296633 | U28: ='NPV Calc'!Q27 -> -39.69601661 | V28: ='NPV Calc'!R27 -> -87.82818604 | W28: ='NPV Calc'!S27 -> -131.1039299 | X28: ='NPV Calc'!T27 -> -175.3038908 | Y28: ='NPV Calc'!U27 -> -213.7634715 | Z28: ='NPV Calc'!V27 -> -257.8232133 | AA28: ='NPV Calc'!W27 -> -299.0657528 | AB28: ='NPV Calc'!X27 -> -342.109963 | AC28: ='NPV Calc'!Y27 -> -384.25186 | AD28: ='NPV Calc'!Z27 -> -419.1929118 | AE28: ='NPV Calc'!AA27 -> -454.7067834 | AF28: ='NPV Calc'!AB27 -> -488.8228332 | AG28: ='NPV Calc'!AC27 -> -519.4695573 | AH28: ='NPV Calc'!AD27 -> -552.344084
C29: Operating Cash Flow (after taxes) - $k | I29: =SUM(I27:I28) -> 0 | J29: =SUM(J27:J28) -> 431.5775575 | K29: 858.2627928 | L29: 789.0275443 | M29: 792.0088483 | N29: 846.5636476 | O29: 699.2230616 | P29: 804.5707169 | Q29: 825.2620521 | R29: 811.1143927 | S29: 805.3741697 | T29: 842.9212931 | U29: 875.1607809 | V29: 906.9978311 | W29: 934.291226 | X29: 968.1082357 | Y29: 994.844019 | Z29: 1036.665288 | AA29: 1076.54545 | AB29: 1123.36121 | AC29: 1171.476228 | AD29: 1208.140215 | AE29: 1248.55702 | AF29: 1288.605515 | AG29: 1323.981093 | AH29: 1365.815861
G30: Cumulative PV @
G31: ='Standard Inputs'!B12 -> 0.05681332
C32: PV Operating Cash Flow (after taxes) - $k (A) | G32: =SUM(I32:AH32) -> 11990.89551 | I32: =I29*'NPV Calc'!E50 -> 0 | J32: =J29*'NPV Calc'!F50 -> 419.816703 | K32: =K29*'NPV Calc'!G50 -> 789.9923174 | L32: =L29*'NPV Calc'!H50 -> 687.2210729 | M32: =M29*'NPV Calc'!I50 -> 652.7337353 | N32: =N29*'NPV Calc'!J50 -> 660.1875992 | O32: =O29*'NPV Calc'!K50 -> 515.970904 | P32: =P29*'NPV Calc'!L50 -> 561.7918208 | Q32: =Q29*'NPV Calc'!M50 -> 545.2614411 | R32: =R29*'NPV Calc'!N50 -> 507.1036551 | S32: =S29*'NPV Calc'!O50 -> 476.4464016 | T32: =T29*'NPV Calc'!P50 -> 471.8512403 | U32: =U29*'NPV Calc'!Q50 -> 463.5618046 | V32: =V29*'NPV Calc'!R50 -> 454.5982587 | W32: =W29*'NPV Calc'!S50 -> 443.1038374 | X32: =X29*'NPV Calc'!T50 -> 434.4590788 | Y32: =Y29*'NPV Calc'!U50 -> 422.4561893 | Z32: =Z29*'NPV Calc'!V50 -> 416.5498308 | AA32: =AA29*'NPV Calc'!W50 -> 409.3195581 | AB32: =AB29*'NPV Calc'!X50 -> 404.1580859 | AC32: =AC29*'NPV Calc'!Y50 -> 398.8109283 | AD32: =AD29*'NPV Calc'!Z50 -> 389.1818986 | AE32: =AE29*'NPV Calc'!AA50 -> 380.5795025 | AF32: =AF29*'NPV Calc'!AB50 -> 371.671038 | AG32: =AG29*'NPV Calc'!AC50 -> 361.3451579 | AH32: =AH29*'NPV Calc'!AD50 -> 352.7234467
C34: Capital Expenditures - $k
E35: Capital cost before overheads & AFUDC - $k | I35: ='NPV Calc'!D33 -> -23871
E36: - Overheads - $k | I36: ='NPV Calc'!E34 -> 0
E37: - AFUDC - $k | I37: ='NPV Calc'!E35 -> 0
E38: Total upfront capital expenditures - $k | I38: =SUM(I35:I37) -> -23871
E39: On-going capital expenditures - $k | J39: ='NPV Calc'!F39 -> 0 | K39: ='NPV Calc'!G39 -> 0 | L39: ='NPV Calc'!H39 -> 0 | M39: ='NPV Calc'!I39 -> 0 | N39: ='NPV Calc'!J39 -> 0 | O39: ='NPV Calc'!K39 -> 0 | P39: ='NPV Calc'!L39 -> 0 | Q39: ='NPV Calc'!M39 -> 0 | R39: ='NPV Calc'!N39 -> 0 | S39: ='NPV Calc'!O39 -> 0 | T39: ='NPV Calc'!P39 -> 0 | U39: ='NPV Calc'!Q39 -> 0 | V39: ='NPV Calc'!R39 -> 0 | W39: ='NPV Calc'!S39 -> 0 | X39: ='NPV Calc'!T39 -> 0 | Y39: ='NPV Calc'!U39 -> 0 | Z39: ='NPV Calc'!V39 -> 0 | AA39: ='NPV Calc'!W39 -> 0 | AB39: ='NPV Calc'!X39 -> 0 | AC39: ='NPV Calc'!Y39 -> 0 | AD39: ='NPV Calc'!Z39 -> 0 | AE39: ='NPV Calc'!AA39 -> 0 | AF39: ='NPV Calc'!AB39 -> 0 | AG39: ='NPV Calc'!AC39 -> 0 | AH39: ='NPV Calc'!AD39 -> 0
E40: PV On-going capital expenditures - $k | I40: ='NPV Calc'!D39 -> 0
E41: Total capital expenditures - $k | I41: =I38+I40 -> -23871
C43: Capital Contributions - $k
E44: Previous capital contribution/(credit) | I44: ='NPV Calc'!E41 -> 0 | J44: =IF(J15>=True_up_year,"",'NPV Calc'!F41) -> 0 | K44: =IF(K15>=True_up_year,"",'NPV Calc'!G41) -> 0 | L44: =IF(L15>=True_up_year,"",'NPV Calc'!H41) -> 0 | M44: =IF(M15>=True_up_year,"",'NPV Calc'!I41) -> 0 | N44: =IF(N15>=True_up_year,"",'NPV Calc'!J41) -> 0 | O44: =IF(O15>=True_up_year,"",'NPV Calc'!K41) -> 0 | P44: =IF(P15>=True_up_year,"",'NPV Calc'!L41) -> 0 | Q44: =IF(Q15>=True_up_year,"",'NPV Calc'!M41) -> 0 | R44: =IF(R15>=True_up_year,"",'NPV Calc'!N41) -> 0 | S44: =IF(S15>=True_up_year,"",'NPV Calc'!O41) ->  | T44: =IF(T15>=True_up_year,"",'NPV Calc'!P41) ->  | U44: =IF(U15>=True_up_year,"",'NPV Calc'!Q41) ->  | V44: =IF(V15>=True_up_year,"",'NPV Calc'!R41) ->  | W44: =IF(W15>=True_up_year,"",'NPV Calc'!S41) ->  | X44: =IF(X15>=True_up_year,"",'NPV Calc'!T41) ->  | Y44: =IF(Y15>=True_up_year,"",'NPV Calc'!U41) ->  | Z44: =IF(Z15>=True_up_year,"",'NPV Calc'!V41) ->  | AA44: =IF(AA15>=True_up_year,"",'NPV Calc'!W41) ->  | AB44: =IF(AB15>=True_up_year,"",'NPV Calc'!X41) ->  | AC44: =IF(AC15>=True_up_year,"",'NPV Calc'!Y41) ->  | AD44: =IF(AD15>=True_up_year,"",'NPV Calc'!Z41) ->  | AE44: =IF(AE15>=True_up_year,"",'NPV Calc'!AA41) ->  | AF44: =IF(AF15>=True_up_year,"",'NPV Calc'!AB41) ->  | AG44: =IF(AG15>=True_up_year,"",'NPV Calc'!AC41) ->  | AH44: =IF(AH15>=True_up_year,"",'NPV Calc'!AD41) -> 
E45: Current capital contribution/(credit) | I45: =IF(I15=True_up_year,'NPV Calc'!E42,"") ->  | J45: =IF(J15=True_up_year,'NPV Calc'!F42,"") ->  | K45: =IF(K15=True_up_year,'NPV Calc'!G42,"") ->  | L45: =IF(L15=True_up_year,'NPV Calc'!H42,"") ->  | M45: =IF(M15=True_up_year,'NPV Calc'!I42,"") ->  | N45: =IF(N15=True_up_year,'NPV Calc'!J42,"") ->  | O45: =IF(O15=True_up_year,'NPV Calc'!K42,"") ->  | P45: =IF(P15=True_up_year,'NPV Calc'!L42,"") ->  | Q45: =IF(Q15=True_up_year,'NPV Calc'!M42,"") ->  | R45: =IF(R15=True_up_year,'NPV Calc'!N42,"") ->  | S45: =IF(S15=True_up_year,'NPV Calc'!O42,"") -> 0 | T45: =IF(T15=True_up_year,'NPV Calc'!P42,"") ->  | U45: =IF(U15=True_up_year,'NPV Calc'!Q42,"") ->  | V45: =IF(V15=True_up_year,'NPV Calc'!R42,"") ->  | W45: =IF(W15=True_up_year,'NPV Calc'!S42,"") ->  | X45: =IF(X15=True_up_year,'NPV Calc'!T42,"") ->  | Y45: =IF(Y15=True_up_year,'NPV Calc'!U42,"") ->  | Z45: =IF(Z15=True_up_year,'NPV Calc'!V42,"") ->  | AA45: =IF(AA15=True_up_year,'NPV Calc'!W42,"") ->  | AB45: =IF(AB15=True_up_year,'NPV Calc'!X42,"") ->  | AC45: =IF(AC15=True_up_year,'NPV Calc'!Y42,"") ->  | AD45: =IF(AD15=True_up_year,'NPV Calc'!Z42,"") ->  | AE45: =IF(AE15=True_up_year,'NPV Calc'!AA42,"") ->  | AF45: =IF(AF15=True_up_year,'NPV Calc'!AB42,"") ->  | AG45: =IF(AG15=True_up_year,'NPV Calc'!AC42,"") ->  | AH45: =IF(AH15=True_up_year,'NPV Calc'!AD42,"") -> 
E46: PV of annual capital contribution | I46: =IF(AND(I45="",I44=""),"",'NPV Calc'!E55) -> 0 | J46: =IF(AND(J45="",J44=""),"",'NPV Calc'!F55) -> 0 | K46: =IF(AND(K45="",K44=""),"",'NPV Calc'!G55) -> 0 | L46: =IF(AND(L45="",L44=""),"",'NPV Calc'!H55) -> 0 | M46: =IF(AND(M45="",M44=""),"",'NPV Calc'!I55) -> 0 | N46: =IF(AND(N45="",N44=""),"",'NPV Calc'!J55) -> 0 | O46: =IF(AND(O45="",O44=""),"",'NPV Calc'!K55) -> 0 | P46: =IF(AND(P45="",P44=""),"",'NPV Calc'!L55) -> 0 | Q46: =IF(AND(Q45="",Q44=""),"",'NPV Calc'!M55) -> 0 | R46: =IF(AND(R45="",R44=""),"",'NPV Calc'!N55) -> 0 | S46: =IF(AND(S45="",S44=""),"",'NPV Calc'!O55) -> 0 | T46: =IF(AND(T45="",T44=""),"",'NPV Calc'!P55) ->  | U46: =IF(AND(U45="",U44=""),"",'NPV Calc'!Q55) ->  | V46: =IF(AND(V45="",V44=""),"",'NPV Calc'!R55) ->  | W46: =IF(AND(W45="",W44=""),"",'NPV Calc'!S55) ->  | X46: =IF(AND(X45="",X44=""),"",'NPV Calc'!T55) ->  | Y46: =IF(AND(Y45="",Y44=""),"",'NPV Calc'!U55) ->  | Z46: =IF(AND(Z45="",Z44=""),"",'NPV Calc'!V55) ->  | AA46: =IF(AND(AA45="",AA44=""),"",'NPV Calc'!W55) ->  | AB46: =IF(AND(AB45="",AB44=""),"",'NPV Calc'!X55) ->  | AC46: =IF(AND(AC45="",AC44=""),"",'NPV Calc'!Y55) ->  | AD46: =IF(AND(AD45="",AD44=""),"",'NPV Calc'!Z55) ->  | AE46: =IF(AND(AE45="",AE44=""),"",'NPV Calc'!AA55) ->  | AF46: =IF(AND(AF45="",AF44=""),"",'NPV Calc'!AB55) ->  | AG46: =IF(AND(AG45="",AG44=""),"",'NPV Calc'!AC55) ->  | AH46: =IF(AND(AH45="",AH44=""),"",'NPV Calc'!AD55) -> 
E47: Total PV | I47: ='NPV Calc'!D43 -> 0
C50: PV Proceeds on disposal of assets - $k | I50: ='NPV Calc'!D28+'NPV Calc'!D46+'NPV Calc'!D47 -> 0
C52: PV CCA Residual Tax Shield - $k | I52: ='NPV Calc'!D29 -> 152.4400747
C54: PV Working Capital - $k | I54: ='NPV Calc'!D45 -> -1.600609095
C56: PV Capital (after taxes) - $k (B) | G56: =+I56 -> -23720.16053 | I56: =I41+I47+I50+I52+I54 -> -23720.16053
C59: Cumulative PV Cash Flow (after taxes) - $k (A) + (B) | G59: =G32+G56 -> -11729.26503 | I59: =I56+I32 -> -23720.16053 | J59: =IF(ISNUMBER(J17),I59+J32,0) -> -23300.34383 | K59: -22510.35151 | L59: -21823.13044 | M59: -21170.39671 | N59: -20510.20911 | O59: -19994.2382 | P59: -19432.44638 | Q59: -18887.18494 | R59: -18380.08129 | S59: -17903.63488 | T59: -17431.78364 | U59: -16968.22184 | V59: -16513.62358 | W59: -16070.51974 | X59: -15636.06066 | Y59: -15213.60448 | Z59: -14797.05464 | AA59: -14387.73509 | AB59: -13983.577 | AC59: -13584.76607 | AD59: -13195.58417 | AE59: -12815.00467 | AF59: -12443.33363 | AG59: -12081.98848 | AH59: -11729.26503
C63: Discounted Cash Flow Summary | O63: Capital Contributions | Z63: Other Assumptions | AD63: Notes:
S64: PV of | U64: Previous | W64: Current
C65: Economic Study Horizon - Years: | G65: =IF(ISNUMBER('Project Inputs'!B21),'Project Inputs'!B21,'Project Inputs'!E19) -> 25 | Q65: Date | S65: Cont | U65: Cont Payments | W65: Cont / (Credit) | Z65: In-Service Date: | AC65: ='Project Inputs'!B15 -> 2010-05-23
S66: $k | U66: $k | W66: $k
C67: Discount Rate - % | G67: ='Standard Inputs'!B12 -> 0.05681332 | O67: Initial economic evaluation | Q67: =YEAR(AC65) -> 2010 | S67: ='Report After Cont $k'!I46 -> 9823.70384 | U67: =IF(AND(RevGuarFlag="Yes",Stage='Standard Inputs'!E55,'Capital Cont Inputs'!B27="No"),IEECapCon,'Report After Cont $k'!I44) -> 9823.70384 | W67: =IF(AND(RevGuarFlag="Yes",Stage='Standard Inputs'!E55,'Capital Cont Inputs'!B27="No"),'Capital Cont Inputs'!B18,IF(OR(Stage='Standard Inputs'!E54,Stage='Standard Inputs'!E55),'Report After Cont $k'!I45,"")) ->  | Z67: Municipal Tax | AC67: ='Standard Inputs'!B25 -> 0.006251837335 | AD67: Transmission system average
G69: Before | J69: After | O69: =IF(ISNUMBER(Q69),'Standard Inputs'!E56,"") -> 1st true-up | Q69: =IF(OR('Project Inputs'!B28='Standard Inputs'!E56,'Project Inputs'!B28='Standard Inputs'!E57,'Project Inputs'!B28='Standard Inputs'!E58,'Project Inputs'!B28='Standard Inputs'!E59,'Project Inputs'!B28='Standard Inputs'!E60),HLOOKUP('Standard Inputs'!E56,'Capital Cont Inputs'!$B$14:$AA$15,MATCH('Capital Cont Inputs'!$A$15,'Capital Cont Inputs'!$A$14:$A$18,0),0),"") -> 2015 | S69: =IF(ISNA(HLOOKUP('Standard Inputs'!E56,'Report After Cont $k'!$I$16:$AH$59,MATCH('Report After Cont $k'!$E$46,'Report After Cont $k'!E16:E60,0),0)),"",HLOOKUP('Standard Inputs'!E56,'Report After Cont $k'!$I$16:$AH$59,MATCH('Report After Cont $k'!$E$46,'Report After Cont $k'!E16:E60,0),0)) -> 469.432279 | U69: =IF(ISNA(HLOOKUP('Standard Inputs'!E56,'Report After Cont $k'!$I$16:$AH$59,MATCH('Report After Cont $k'!$E$44,'Report After Cont $k'!E16:E60,0),0)),"",HLOOKUP('Standard Inputs'!E56,'Report After Cont $k'!$I$16:$AH$59,MATCH('Report After Cont $k'!$E$44,'Report After Cont $k'!E16:E60,0),0)) -> 618.82 | W69: =IF(ISNA(HLOOKUP('Standard Inputs'!E56,'Report After Cont $k'!$I$16:$AH$59,MATCH('Report After Cont $k'!$E$45,'Report After Cont $k'!E16:E60,0),0)),"",HLOOKUP('Standard Inputs'!E56,'Report After Cont $k'!$I$16:$AH$59,MATCH('Report After Cont $k'!$E$45,'Report After Cont $k'!E16:E60,0),0)) ->  | Z69: Federal Income Tax | AC69: ='Standard Inputs'!B16 -> 0.195 | AD69: ="Federal corporate income tax" -> Federal corporate income tax
G70: Cont | J70: Cont | L70: Impact
G71: $k | J71: $k | L71: $k | O71: =IF(ISNUMBER(Q71),'Standard Inputs'!E57,"") -> 2nd true-up | Q71: =IF(OR('Project Inputs'!B28='Standard Inputs'!E57,'Project Inputs'!B28='Standard Inputs'!E58,'Project Inputs'!B28='Standard Inputs'!E59,'Project Inputs'!B28='Standard Inputs'!E60),HLOOKUP('Standard Inputs'!E57,'Capital Cont Inputs'!$B$14:$AA$15,MATCH('Capital Cont Inputs'!$A$15,'Capital Cont Inputs'!$A$14:$A$18,0),0),"") -> 2020 | S71: =IF(ISNA(HLOOKUP('Standard Inputs'!E57,'Report After Cont $k'!$I$16:$AH$59,MATCH('Report After Cont $k'!$E$46,'Report After Cont $k'!E16:E60,0),0)),"",HLOOKUP('Standard Inputs'!E57,'Report After Cont $k'!$I$16:$AH$59,MATCH('Report After Cont $k'!$E$46,'Report After Cont $k'!E16:E60,0),0)) -> 3257.021506 | U71: =IF(ISNA(HLOOKUP('Standard Inputs'!E57,'Report After Cont $k'!$I$16:$AH$59,MATCH('Report After Cont $k'!$E$44,'Report After Cont $k'!E16:E60,0),0)),"",HLOOKUP('Standard Inputs'!E57,'Report After Cont $k'!$I$16:$AH$59,MATCH('Report After Cont $k'!$E$44,'Report After Cont $k'!E16:E60,0),0)) ->  | W71: =IF(ISNA(HLOOKUP('Standard Inputs'!E57,'Report After Cont $k'!$I$16:$AH$59,MATCH('Report After Cont $k'!$E$45,'Report After Cont $k'!E16:E60,0),0)),"",HLOOKUP('Standard Inputs'!E57,'Report After Cont $k'!$I$16:$AH$59,MATCH('Report After Cont $k'!$E$45,'Report After Cont $k'!E16:E60,0),0)) -> 5659.830312 | Z71: Ontario Corporation Income Tax | AC71: ='Standard Inputs'!B17 -> 0.14 | AD71: ="Provincial corporate income tax" -> Provincial corporate income tax
C73: PV Incremental Revenue | G73: ='NPV Calc'!D17 -> 14276.30632 | J73: ='Report After Cont $k'!G73 -> 14276.30632 | L73: =IF(J73-G73=0,"",J73-G73) ->  | O73: =IF(ISNUMBER(Q73),'Standard Inputs'!E58,"") ->  | Q73: =IF(OR('Project Inputs'!B28='Standard Inputs'!E58,'Project Inputs'!B28='Standard Inputs'!E59,'Project Inputs'!B28='Standard Inputs'!E60),HLOOKUP('Standard Inputs'!E58,'Capital Cont Inputs'!$B$14:$AA$15,MATCH('Capital Cont Inputs'!$A$15,'Capital Cont Inputs'!$A$14:$A$18,0),0),"") ->  | S73: =IF(ISNA(HLOOKUP('Standard Inputs'!E58,'Report After Cont $k'!$I$16:$AH$59,MATCH('Report After Cont $k'!$E$46,'Report After Cont $k'!E16:E60,0),0)),"",HLOOKUP('Standard Inputs'!E58,'Report After Cont $k'!$I$16:$AH$59,MATCH('Report After Cont $k'!$E$46,'Report After Cont $k'!E16:E60,0),0)) ->  | U73: =IF(ISNA(HLOOKUP('Standard Inputs'!E58,'Report After Cont $k'!$I$16:$AH$59,MATCH('Report After Cont $k'!$E$44,'Report After Cont $k'!E16:E60,0),0)),"",HLOOKUP('Standard Inputs'!E58,'Report After Cont $k'!$I$16:$AH$59,MATCH('Report After Cont $k'!$E$44,'Report After Cont $k'!E16:E60,0),0)) ->  | W73: =IF(ISNA(HLOOKUP('Standard Inputs'!E58,'Report After Cont $k'!$I$16:$AH$59,MATCH('Report After Cont $k'!$E$45,'Report After Cont $k'!E16:E60,0),0)),"",HLOOKUP('Standard Inputs'!E58,'Report After Cont $k'!$I$16:$AH$59,MATCH('Report After Cont $k'!$E$45,'Report After Cont $k'!E16:E60,0),0)) ->  | Z73: Working cash net lag days | AC73: ='Standard Inputs'!B40 -> 17.75 | AD73: ='Standard Inputs'!B48 -> As per Lead Lag study
C74: PV OM&A Costs | G74: ='NPV Calc'!D21+'NPV Calc'!D20 -> -646.1867526 | J74: ='Report After Cont $k'!G74 -> -646.1867526 | L74: =IF(J74-G74=0,"",J74-G74) -> 
C75: PV Ontario Capital Tax and Municipal Tax | G75: ='NPV Calc'!D23+'NPV Calc'!D22 -> -2397.346558 | J75: ='Report After Cont $k'!G75 -> -1086.284474 | L75: 1311.062084 | O75: =IF(ISNUMBER(Q75),'Standard Inputs'!E59,"") ->  | Q75: =IF(OR('Project Inputs'!B28='Standard Inputs'!E59,'Project Inputs'!B28='Standard Inputs'!E60),HLOOKUP('Standard Inputs'!E59,'Capital Cont Inputs'!$B$14:$AA$15,MATCH('Capital Cont Inputs'!$A$15,'Capital Cont Inputs'!$A$14:$A$18,0),0),"") ->  | S75: =IF(ISNA(HLOOKUP('Standard Inputs'!E59,'Report After Cont $k'!$I$16:$AH$59,MATCH('Report After Cont $k'!$E$46,'Report After Cont $k'!E16:E60,0),0)),"",HLOOKUP('Standard Inputs'!E59,'Report After Cont $k'!$I$16:$AH$59,MATCH('Report After Cont $k'!$E$46,'Report After Cont $k'!E16:E60,0),0)) ->  | U75: =IF(ISNA(HLOOKUP('Standard Inputs'!E59,'Report After Cont $k'!$I$16:$AH$59,MATCH('Report After Cont $k'!$E$44,'Report After Cont $k'!E16:E60,0),0)),"",HLOOKUP('Standard Inputs'!E59,'Report After Cont $k'!$I$16:$AH$59,MATCH('Report After Cont $k'!$E$44,'Report After Cont $k'!E16:E60,0),0)) ->  | W75: =IF(ISNA(HLOOKUP('Standard Inputs'!E59,'Report After Cont $k'!$I$16:$AH$59,MATCH('Report After Cont $k'!$E$45,'Report After Cont $k'!E16:E60,0),0)),"",HLOOKUP('Standard Inputs'!E59,'Report After Cont $k'!$I$16:$AH$59,MATCH('Report After Cont $k'!$E$45,'Report After Cont $k'!E16:E60,0),0)) ->  | Z75: ="CCA Rate for Class "&'Standard Inputs'!B30&" Assets" -> CCA Rate for Class 47 Assets | AC75: ='Standard Inputs'!C30 -> 0.08 | AD75: =+IF('NPV Calc'!F140=0,"100% Class "&'Standard Inputs'!B30&" assets"&IF('NPV Calc'!F117=0,""," except for Land"),ROUND('NPV Calc'!F126/('NPV Calc'!F104-'NPV Calc'!F117)*100,1)&"% Class "&'Standard Inputs'!B30&" assets"&IF('NPV Calc'!F117=0,""," except for Land")) -> 100% Class 47 assets
C76: PV Income Taxes | G76: ='NPV Calc'!D27-SUM('NPV Calc'!E98:AD98)*'Standard Inputs'!B19 -> -3762.978957 | J76: ='Report After Cont $k'!G76 -> -4202.184755 | L76: -439.2057981
C77: PV CCA Tax Shield | G77: ='NPV Calc'!D29+SUM('NPV Calc'!E98:AD98)*'Standard Inputs'!B19 -> 4673.541531 | J77: ='Report After Cont $k'!G77 -> 1980.792649 | L77: -2692.748882 | O77: =IF(ISNUMBER(Q77),'Standard Inputs'!E60,"") ->  | Q77: =IF('Project Inputs'!B28='Standard Inputs'!E60,HLOOKUP('Standard Inputs'!E60,'Capital Cont Inputs'!$B$14:$AA$15,MATCH('Capital Cont Inputs'!$A$15,'Capital Cont Inputs'!$A$14:$A$18,0),0),"") ->  | S77: =IF(ISNA(HLOOKUP('Standard Inputs'!E60,'Report After Cont $k'!$I$16:$AH$59,MATCH('Report After Cont $k'!$E$46,'Report After Cont $k'!E16:E60,0),0)),"",HLOOKUP('Standard Inputs'!E60,'Report After Cont $k'!$I$16:$AH$59,MATCH('Report After Cont $k'!$E$46,'Report After Cont $k'!E16:E60,0),0)) ->  | U77: =IF(ISNA(HLOOKUP('Standard Inputs'!E60,'Report After Cont $k'!$I$16:$AH$59,MATCH('Report After Cont $k'!$E$44,'Report After Cont $k'!E16:E60,0),0)),"",HLOOKUP('Standard Inputs'!E60,'Report After Cont $k'!$I$16:$AH$59,MATCH('Report After Cont $k'!$E$44,'Report After Cont $k'!E16:E60,0),0)) ->  | W77: =IF(ISNA(HLOOKUP('Standard Inputs'!E60,'Report After Cont $k'!$I$16:$AH$59,MATCH('Report After Cont $k'!$E$45,'Report After Cont $k'!E16:E60,0),0)),"",HLOOKUP('Standard Inputs'!E60,'Report After Cont $k'!$I$16:$AH$59,MATCH('Report After Cont $k'!$E$45,'Report After Cont $k'!E16:E60,0),0)) -> 
C78: PV Capital - Upfront | F78: =SUM('NPV Calc'!D33:D35) -> -23871 | I78: ='Report After Cont $k'!F78 -> -23871
C79: Add: PV Capital Contribution | F79: ='NPV Calc'!D43 -> 0 | G79: =SUM(F78:F79) -> -23871 | I79: ='Report After Cont $k'!F79 -> 13550.15763 | J79: ='Report After Cont $k'!G79 -> -10320.84237 | L79: 13550.15763 | O79: Total | S79: =SUM(S67:S78) -> 13550.15763 | U79: =SUM(U67:U78) -> 10442.52384 | W79: =SUM(W67:W78) -> 5659.830312
C80: PV Capital - On-going | G80: =I40 -> 0 | J80: ='Report After Cont $k'!G80 -> 0
C81: PV Proceeds on disposal of assets | G81: =I50 -> 0 | J81: ='Report After Cont $k'!G81 -> 0
C82: PV Working Capital | G82: =I54 -> -1.600609095 | J82: ='Report After Cont $k'!G82 -> -1.600609095 | O82: ="Contribution Required (before HST)" -> Contribution Required (before HST) | W82: =IF(W79<=0,"N/A",W79) -> 5659.830312
C83: PV Surplus / (Shortfall) | G83: =SUM(G73:G82) -> -11729.26503 | J83: ='Report After Cont $k'!G83 -> -2.285949208e-12 | L83: 11729.26503
O84: =IF('Standard Inputs'!A46="HST",'Standard Inputs'!A46&" @ "&'Standard Inputs'!B46*100&"%","") ->  | W84: =IF(W79<=0,"N/A",W79*'Standard Inputs'!B46) -> 282.9915156
E85: Profitability Index* | G85: =IF(G79+G80+G81=0," ",(SUM(G73:G77)+G82)/ABS(G79+G80+G81)) -> 0.5086395615 | J85: =IF(J79+J80+J81=0," ",(SUM(J73:J77)+J82)/ABS(J79+J80+J81)) -> 1
O86: Contribution Required (including HST)1 | W86: =IF(W79<=0,"N/A",W79+W84) -> 5942.821828
C87: Notes:
C88: *PV of total cash flow, excluding net capital expenditure & on-going capital & proceeds on disposal / PV of net capital expenditure & on-going capital & proceeds on disposal | O88: Notes:
O89: =IF('Standard Inputs'!A46="HST","1) Payment from customer must include HST.","1) Payment from customer must include HST/GST.") -> 1) Payment from customer must include HST/GST.
AE91: Calculation Time Stamp: | AF91: 16-Oct-20, 4:44 PM
E95: Net Present Value check:
E96: * Prev NPV $ before cap cont/ rev guar: | F96: -11729.26503
E97: * Represents the last recorded NPV before capital contributions or revenue guarantee when either the IEE/true-up or revenue guarantee calculation was completed.
E98: Cap Contributions included in report? | F98: ='Capital Cont Inputs'!B53 -> Yes

Sheet Report After Cont $k
A1: `
E2: ='Standard Report'!E2 -> Date: | F2: ='Standard Report'!F2 -> 2020-02-07 | J2: =IF(OR('Capital Cont Inputs'!B45="Revenue Guarantee",'Capital Cont Inputs'!B39="Yes"),"THE REVENUE GUARANTEE CALCULATION IS SET TO BE OR HAS BEEN USED. THIS REPORT IS NOT CORRECT.","SUMMARY OF CONTRIBUTION CALCULATIONS") -> SUMMARY OF CONTRIBUTION CALCULATIONS
E3: ='Standard Report'!E3 -> Project # | F3: ='Standard Report'!F3 -> 0 | J3: ='Standard Report'!I3 -> Transformation Pool - 2nd true-up
E8: ='Standard Report'!E8 -> Facility Name: | G8: ='Standard Report'!G8 -> Goreway TS new (2nd) 230/28-28 kV DESN
E9: ='Standard Report'!E9 -> Description: | G9: ='Standard Report'!G9 -> 10 Year True Up Transformation Pool Capital Contribution
E10: ='Standard Report'!E10 -> Customer: | G10: ='Standard Report'!G10 -> Hydro One Brampton
I12: ='Standard Report'!I12 -> In-Service
I13: ='Standard Report'!I13 -> Date | J13: <------- | K13: Project year ended - annualized from In-Service Date -------->
G14: Month | I14: ='Standard Report'!I14 -> 2010-05-23 | J14: ='Standard Report'!J14 -> 2010-05-23 | K14: ='Standard Report'!K14 -> 2010-05-23 | L14: ='Standard Report'!L14 -> 2010-05-23 | M14: ='Standard Report'!M14 -> 2010-05-23 | N14: ='Standard Report'!N14 -> 2010-05-23 | O14: ='Standard Report'!O14 -> 2010-05-23 | P14: ='Standard Report'!P14 -> 2010-05-23 | Q14: ='Standard Report'!Q14 -> 2010-05-23 | R14: ='Standard Report'!R14 -> 2010-05-23 | S14: ='Standard Report'!S14 -> 2010-05-23 | T14: ='Standard Report'!T14 -> 2010-05-23 | U14: ='Standard Report'!U14 -> 2010-05-23 | V14: ='Standard Report'!V14 -> 2010-05-23 | W14: ='Standard Report'!W14 -> 2010-05-23 | X14: ='Standard Report'!X14 -> 2010-05-23 | Y14: ='Standard Report'!Y14 -> 2010-05-23 | Z14: ='Standard Report'!Z14 -> 2010-05-23 | AA14: ='Standard Report'!AA14 -> 2010-05-23 | AB14: ='Standard Report'!AB14 -> 2010-05-23 | AC14: ='Standard Report'!AC14 -> 2010-05-23 | AD14: ='Standard Report'!AD14 -> 2010-05-23 | AE14: ='Standard Report'!AE14 -> 2010-05-23 | AF14: ='Standard Report'!AF14 -> 2010-05-23 | AG14: ='Standard Report'!AG14 -> 2010-05-23 | AH14: ='Standard Report'!AH14 -> 2010-05-23
G15: Year | I15: ='Standard Report'!I15 -> 2010 | J15: ='Standard Report'!J15 -> 2011 | K15: ='Standard Report'!K15 -> 2012 | L15: ='Standard Report'!L15 -> 2013 | M15: ='Standard Report'!M15 -> 2014 | N15: ='Standard Report'!N15 -> 2015 | O15: ='Standard Report'!O15 -> 2016 | P15: ='Standard Report'!P15 -> 2017 | Q15: ='Standard Report'!Q15 -> 2018 | R15: ='Standard Report'!R15 -> 2019 | S15: ='Standard Report'!S15 -> 2020 | T15: ='Standard Report'!T15 -> 2021 | U15: ='Standard Report'!U15 -> 2022 | V15: ='Standard Report'!V15 -> 2023 | W15: ='Standard Report'!W15 -> 2024 | X15: ='Standard Report'!X15 -> 2025 | Y15: ='Standard Report'!Y15 -> 2026 | Z15: ='Standard Report'!Z15 -> 2027 | AA15: ='Standard Report'!AA15 -> 2028 | AB15: ='Standard Report'!AB15 -> 2029 | AC15: ='Standard Report'!AC15 -> 2030 | AD15: ='Standard Report'!AD15 -> 2031 | AE15: ='Standard Report'!AE15 -> 2032 | AF15: ='Standard Report'!AF15 -> 2033 | AG15: ='Standard Report'!AG15 -> 2034 | AH15: ='Standard Report'!AH15 -> 2035
J16: ='Standard Report'!J16 ->  | K16: ='Standard Report'!K16 ->  | L16: ='Standard Report'!L16 ->  | M16: ='Standard Report'!M16 ->  | N16: ='Standard Report'!N16 -> 1st true-up | O16: ='Standard Report'!O16 ->  | P16: ='Standard Report'!P16 ->  | Q16: ='Standard Report'!Q16 ->  | R16: ='Standard Report'!R16 ->  | S16: ='Standard Report'!S16 -> 2nd true-up | T16: ='Standard Report'!T16 ->  | U16: ='Standard Report'!U16 ->  | V16: ='Standard Report'!V16 ->  | W16: ='Standard Report'!W16 ->  | X16: ='Standard Report'!X16 -> 3rd true-up | Y16: ='Standard Report'!Y16 ->  | Z16: ='Standard Report'!Z16 ->  | AA16: ='Standard Report'!AA16 ->  | AB16: ='Standard Report'!AB16 ->  | AC16: ='Standard Report'!AC16 ->  | AD16: ='Standard Report'!AD16 ->  | AE16: ='Standard Report'!AE16 ->  | AF16: ='Standard Report'!AF16 ->  | AG16: ='Standard Report'!AG16 ->  | AH16: ='Standard Report'!AH16 -> 
I17: ='Standard Report'!I17 -> 0 | J17: ='Standard Report'!J17 -> 1 | K17: ='Standard Report'!K17 -> 2 | L17: ='Standard Report'!L17 -> 3 | M17: ='Standard Report'!M17 -> 4 | N17: ='Standard Report'!N17 -> 5 | O17: ='Standard Report'!O17 -> 6 | P17: ='Standard Report'!P17 -> 7 | Q17: ='Standard Report'!Q17 -> 8 | R17: ='Standard Report'!R17 -> 9 | S17: ='Standard Report'!S17 -> 10 | T17: ='Standard Report'!T17 -> 11 | U17: ='Standard Report'!U17 -> 12 | V17: ='Standard Report'!V17 -> 13 | W17: ='Standard Report'!W17 -> 14 | X17: ='Standard Report'!X17 -> 15 | Y17: ='Standard Report'!Y17 -> 16 | Z17: ='Standard Report'!Z17 -> 17 | AA17: ='Standard Report'!AA17 -> 18 | AB17: ='Standard Report'!AB17 -> 19 | AC17: ='Standard Report'!AC17 -> 20 | AD17: ='Standard Report'!AD17 -> 21 | AE17: ='Standard Report'!AE17 -> 22 | AF17: ='Standard Report'!AF17 -> 23 | AG17: ='Standard Report'!AG17 -> 24 | AH17: ='Standard Report'!AH17 -> 25
C18: ='Standard Report'!C18 -> Revenue & Expense Forecast
E19: ='Standard Report'!E19 -> Load Forecast (MW) | J19: 21.26180917 | K19: 31.35384695 | L19: 29.59271892 | M19: 33.16229827 | N19: 40.47906394 | O19: 31.83579374 | P19: 42.63435444 | Q19: 46.6358349 | R19: 47.73436657 | S19: 49.31130905 | T19: 54.09559515 | U19: 58.31781849 | V19: 62.37168764 | W19: 65.9458361 | X19: 69.911763 | Y19: 74.41029933 | Z19: 78.79436044 | AA19: 82.93702224 | AB19: 87.53642255 | AC19: 92.1605076 | AD19: 95.82298243 | AE19: 99.71285479 | AF19: 103.5145354 | AG19: 106.89774 | AH19: 110.7333098
E20: ='Standard Report'!E20 -> Load adjustments (MW) | J20: 0 | K20: 0 | L20: 0 | M20: 0 | N20: 0 | O20: 0 | P20: 0 | Q20: 0 | R20: 0 | S20: 0 | T20: 0 | U20: 0 | V20: 0 | W20: 0 | X20: 0 | Y20: 0 | Z20: 0 | AA20: 0 | AB20: 0 | AC20: 0 | AD20: 0 | AE20: 0 | AF20: 0 | AG20: 0 | AH20: 0
J21: 21.26180917 | K21: 31.35384695 | L21: 29.59271892 | M21: 33.16229827 | N21: 40.47906394 | O21: 31.83579374 | P21: 42.63435444 | Q21: 46.6358349 | R21: 47.73436657 | S21: 49.31130905 | T21: 54.09559515 | U21: 58.31781849 | V21: 62.37168764 | W21: 65.9458361 | X21: 69.911763 | Y21: 74.41029933 | Z21: 78.79436044 | AA21: 82.93702224 | AB21: 87.53642255 | AC21: 92.1605076 | AD21: 95.82298243 | AE21: 99.71285479 | AF21: 103.5145354 | AG21: 106.89774 | AH21: 110.7333098
E22: ='Standard Report'!E22 -> Tariff Applied ($/kW/Month) | J22: 1.61 | K22: 1.61 | L22: 1.61 | M22: 1.61 | N22: 1.61 | O22: 1.61 | P22: 1.61 | Q22: 1.61 | R22: 1.61 | S22: 1.61 | T22: 1.61 | U22: 1.61 | V22: 1.61 | W22: 1.61 | X22: 1.61 | Y22: 1.61 | Z22: 1.61 | AA22: 1.61 | AB22: 1.61 | AC22: 1.61 | AD22: 1.61 | AE22: 1.61 | AF22: 1.61 | AG22: 1.61 | AH22: 1.61
C23: ='Standard Report'!C23 -> Incremental Revenue - $k | J23: 410.7781532 | K23: 605.7563231 | L23: 571.7313296 | M23: 640.6956027 | N23: 782.0555153 | O23: 615.0675352 | P23: 823.6957279 | Q23: 901.0043304 | R23: 922.2279621 | S23: 952.6944909 | T23: 1045.126898 | U23: 1126.700253 | V23: 1205.021005 | W23: 1274.073554 | X23: 1350.695261 | Y23: 1437.606983 | Z23: 1522.307044 | AA23: 1602.34327 | AB23: 1691.203684 | AC23: 1780.541007 | AD23: 1851.30002 | AE23: 1926.452354 | AF23: 1999.900824 | AG23: 2065.264336 | AH23: 2139.367545
E24: ='Standard Report'!E24 -> Removal Costs - $k | I24: 0
E25: ='Standard Report'!E25 -> On-going OM&A Costs - $k | I25: 0 | J25: -42 | K25: -42 | L25: -42 | M25: -42 | N25: -42 | O25: -42 | P25: -42 | Q25: -42 | R25: -42 | S25: -42 | T25: -42 | U25: -42 | V25: -42 | W25: -42 | X25: -42 | Y25: -65 | Z25: -65 | AA25: -65 | AB25: -65 | AC25: -65 | AD25: -65 | AE25: -65 | AF25: -65 | AG25: -65 | AH25: -65
E26: ='Standard Report'!E26 -> Ontario Capital Tax and Municipal Tax - $K | J26: -118.1635703 | K26: -115.7361975 | L26: -113.5030146 | M26: -111.4484862 | N26: -104.352907 | O26: -102.7208863 | P26: -101.2194273 | Q26: -99.83808502 | R26: -98.5672501 | S26: -49.78851006 | T26: -49.69089406 | U26: -49.60108735 | V26: -49.51846517 | W26: -49.44245277 | X26: -49.37252136 | Y26: -49.30818447 | Z26: -49.24899452 | AA26: -49.19453977 | AB26: -49.1444414 | AC26: -49.0983509 | AD26: -49.05594764 | AE26: -49.01693664 | AF26: -48.98104652 | AG26: -48.94802761 | AH26: -48.91765021
C27: ='Standard Report'!C27 -> Net Revenue/(Costs) before taxes - $k | I27: 0 | J27: 250.6145829 | K27: 448.0201256 | L27: 416.228315 | M27: 487.2471164 | N27: 635.7026083 | O27: 470.3466488 | P27: 680.4763006 | Q27: 759.1662453 | R27: 781.660712 | S27: 860.9059809 | T27: 953.4360043 | U27: 1035.099166 | V27: 1113.50254 | W27: 1182.631101 | X27: 1259.32274 | Y27: 1323.298799 | Z27: 1408.058049 | AA27: 1488.14873 | AB27: 1577.059242 | AC27: 1666.442656 | AD27: 1737.244073 | AE27: 1812.435418 | AF27: 1885.919778 | AG27: 1951.316309 | AH27: 2025.449895
E28: ='Standard Report'!E28 -> Income Taxes - $k | I28: 0 | J28: 104.2778833 | K28: 211.3220935 | L28: 193.0596432 | M28: 142.6686544 | N28: 60.1721616 | O28: 85.42361719 | P28: -4.408995709 | Q28: -48.65417241 | R28: -72.64314033 | S28: -190.1690874 | T28: -304.8671247 | U28: -333.3869988 | V28: -360.7218269 | W28: -384.8640167 | X28: -411.4611079 | Y28: -433.7260484 | Z28: -462.8867213 | AA28: -490.4221173 | AB28: -520.8557555 | AC28: -551.3959264 | AD28: -575.6633901 | AE28: -601.3575606 | AF28: -626.4394855 | AG28: -648.7748146 | AH28: -674.0028579
C29: ='Standard Report'!C29 -> Operating Cash Flow (after taxes) - $k | I29: 0 | J29: 354.8924662 | K29: 659.3422191 | L29: 609.2879582 | M29: 629.9157709 | N29: 695.8747699 | O29: 555.770266 | P29: 676.0673048 | Q29: 710.5120729 | R29: 709.0175717 | S29: 670.7368934 | T29: 648.5688795 | U29: 701.712167 | V29: 752.7807131 | W29: 797.7670841 | X29: 847.8616318 | Y29: 889.5727501 | Z29: 945.1713279 | AA29: 997.7266125 | AB29: 1056.203487 | AC29: 1115.04673 | AD29: 1161.580683 | AE29: 1211.077857 | AF29: 1259.480292 | AG29: 1302.541494 | AH29: 1351.447037
G30: Cumulative PV @
G31: 0.05681332
C32: ='Standard Report'!C32 -> PV Operating Cash Flow (after taxes) - $k (A) | G32: 10314.8026 | I32: 0 | J32: 345.2213454 | K32: 606.8948718 | L32: 530.6728863 | M32: 519.1447986 | N32: 542.6737788 | O32: 410.1141715 | P32: 472.0642626 | Q32: 469.4446277 | R32: 443.2733599 | S32: 396.7971551 | T32: 363.0564712 | U32: 371.6882264 | V32: 377.302778 | W32: 378.3548925 | X32: 380.4958681 | Y32: 377.7532025 | Z32: 379.7859937 | AA32: 379.3513932 | AB32: 379.9963677 | AC32: 379.6003798 | AD32: 374.1835342 | AE32: 369.1552736 | AF32: 363.2704826 | AG32: 355.493794 | AH32: 349.0126821
C34: ='Standard Report'!C34 -> Capital Expenditures - $k
E35: ='Standard Report'!E35 -> Capital cost before overheads & AFUDC - $k | I35: -23871
E36: ='Standard Report'!E36 -> - Overheads - $k | I36: 0
E37: ='Standard Report'!E37 -> - AFUDC - $k | I37: 0
E38: ='Standard Report'!E38 -> Total upfront capital expenditures - $k | I38: -23871
E39: ='Standard Report'!E39 -> On-going capital expenditures - $k | J39: 0 | K39: 0 | L39: 0 | M39: 0 | N39: 0 | O39: 0 | P39: 0 | Q39: 0 | R39: 0 | S39: 0 | T39: 0 | U39: 0 | V39: 0 | W39: 0 | X39: 0 | Y39: 0 | Z39: 0 | AA39: 0 | AB39: 0 | AC39: 0 | AD39: 0 | AE39: 0 | AF39: 0 | AG39: 0 | AH39: 0
E40: ='Standard Report'!E40 -> PV On-going capital expenditures - $k | I40: 0
E41: ='Standard Report'!E41 -> Total capital expenditures - $k | I41: -23871
C43: ='Standard Report'!C43 -> Capital Contributions - $k
E44: ='Standard Report'!E44 -> Previous capital contribution/(credit) | I44: 9823.70384 | J44: 0 | K44: 0 | L44: 0 | M44: 0 | N44: 618.82 | O44: 0 | P44: 0 | Q44: 0 | R44: 0
E45: ='Standard Report'!E45 -> Current capital contribution/(credit) | S45: 5659.830312
E46: ='Standard Report'!E46 -> PV of annual capital contribution | I46: 9823.70384 | J46: 0 | K46: 0 | L46: 0 | M46: 0 | N46: 469.432279 | O46: 0 | P46: 0 | Q46: 0 | R46: 0 | S46: 3257.021506
E47: ='Standard Report'!E47 -> Total PV | I47: 13550.15763
C50: ='Standard Report'!C50 -> PV Proceeds on disposal of assets - $k | I50: 0
C52: ='Standard Report'!C52 -> PV CCA Residual Tax Shield - $k | I52: 7.640386538
C54: ='Standard Report'!C54 -> PV Working Capital - $k | I54: -1.600609095
C56: ='Standard Report'!C56 -> PV Capital (after taxes) - $k (B) | G56: -10314.8026 | I56: -10314.8026
C59: ='Standard Report'!C59 -> Cumulative PV Cash Flow (after taxes) - $k (A) + (B) | G59: 0 | I59: -10314.8026 | J59: -9969.581252 | K59: -9362.68638 | L59: -8832.013494 | M59: -8312.868695 | N59: -7770.194916 | O59: -7360.080745 | P59: -6888.016482 | Q59: -6418.571854 | R59: -5975.298495 | S59: -5578.50134 | T59: -5215.444868 | U59: -4843.756642 | V59: -4466.453864 | W59: -4088.098971 | X59: -3707.603103 | Y59: -3329.849901 | Z59: -2950.063907 | AA59: -2570.712514 | AB59: -2190.716146 | AC59: -1811.115766 | AD59: -1436.932232 | AE59: -1067.776959 | AF59: -704.506476 | AG59: -349.0126821 | AH59: 2.614797268e-12
C63: Discounted Cash Flow Summary
C65: Economic Study Horizon - Years: | G65: ='Capital Cont Inputs'!B5 -> 25
C67: Discount Rate - % | G67: ='Standard Inputs'!B12 -> 0.05681332
G70: After Con't
G71: $k
C73: PV Incremental Revenue | G73: 14276.30632
C74: PV OM&A Costs | G74: -646.1867526
C75: PV Ontario Capital Tax and Municipal Tax | G75: -1086.284474
C76: PV Income Taxes | G76: -4202.184755
C77: PV CCA Tax Shield | G77: 1980.792649
C78: PV Capital - Upfront | F78: -23871
C79: Add: PV Capital Contribution | F79: 13550.15763 | G79: -10320.84237
C80: PV Capital - On-going | G80: 0
C81: PV Proceeds on disposal of assets | G81: 0
C82: PV Working Capital | G82: -1.600609095
C83: PV Surplus / (Shortfall) | G83: -2.285949208e-12
E85: Profitability Index* | G85: 1

Sheet True-up Report
B2: COMPARISON OF CONTRIBUTION CALCULATIONS
B3: ='Project Inputs'!B17&" Pool" -> Transformation Pool
B5: ='Standard Report'!E3 -> Project # | C5: ='Standard Report'!F3 -> 0
B7: ='Standard Report'!E8 -> Facility Name: | C7: ='Standard Report'!G8 -> Goreway TS new (2nd) 230/28-28 kV DESN
C10: ='Project Inputs'!B28 -> 2nd true-up | G10: 1st true-up
C11: Actual (20xx-20xx) / Forecast (20xx-20xx) | G11: Actual (20xx-20xx) / Forecast (20xx-20xx) | K11: Change
C12: Load | D12: Adjustments | E12: Total | G12: Load | H12: Adjustments | I12: Total | K12: Total
B13: Year | C13: MW | D13: MW | E13: MW | G13: MW | H13: MW | I13: MW | K13: MW
B14: ='Capital Cont Inputs'!C15 -> 2011 | C14: ='NPV Calc'!$F$10 -> 21.26180917 | D14: ='NPV Calc'!$F$11 -> 0 | E14: =C14+D14 -> 21.26180917 | I14: =G14+H14 -> 0 | K14: =E14-I14 -> 21.26180917
B15: ='Capital Cont Inputs'!D15 -> 2012 | C15: ='NPV Calc'!$G$10 -> 31.35384695 | D15: ='NPV Calc'!$G$11 -> 0 | E15: =C15+D15 -> 31.35384695 | I15: =G15+H15 -> 0 | K15: =E15-I15 -> 31.35384695
B16: ='Capital Cont Inputs'!E15 -> 2013 | C16: ='NPV Calc'!$H$10 -> 29.59271892 | D16: ='NPV Calc'!$H$11 -> 0 | E16: 29.59271892 | I16: 0 | K16: 29.59271892
B17: ='Capital Cont Inputs'!F15 -> 2014 | C17: ='NPV Calc'!$I$10 -> 33.16229827 | D17: ='NPV Calc'!$I$11 -> 0 | E17: 33.16229827 | I17: 0 | K17: 33.16229827
B18: ='Capital Cont Inputs'!G15 -> 2015 | C18: ='NPV Calc'!$J$10 -> 40.47906394 | D18: ='NPV Calc'!$J$11 -> 0 | E18: 40.47906394 | I18: 0 | K18: 40.47906394
B19: ='Capital Cont Inputs'!H15 -> 2016 | C19: ='NPV Calc'!$K$10 -> 31.83579374 | D19: ='NPV Calc'!$K$11 -> 0 | E19: 31.83579374 | I19: 0 | K19: 31.83579374
B20: ='Capital Cont Inputs'!I15 -> 2017 | C20: ='NPV Calc'!$L$10 -> 42.63435444 | D20: ='NPV Calc'!$L$11 -> 0 | E20: 42.63435444 | I20: 0 | K20: 42.63435444
B21: ='Capital Cont Inputs'!J15 -> 2018 | C21: ='NPV Calc'!$M$10 -> 46.6358349 | D21: ='NPV Calc'!$M$11 -> 0 | E21: 46.6358349 | I21: 0 | K21: 46.6358349
B22: ='Capital Cont Inputs'!K15 -> 2019 | C22: ='NPV Calc'!$N$10 -> 47.73436657 | D22: ='NPV Calc'!$N$11 -> 0 | E22: 47.73436657 | I22: 0 | K22: 47.73436657
B23: ='Capital Cont Inputs'!L15 -> 2020 | C23: ='NPV Calc'!$O$10 -> 49.31130905 | D23: ='NPV Calc'!$O$11 -> 0 | E23: 49.31130905 | I23: 0 | K23: 49.31130905
B24: ='Capital Cont Inputs'!M15 -> 2021 | C24: ='NPV Calc'!$P$10 -> 54.09559515 | D24: ='NPV Calc'!$P$11 -> 0 | E24: 54.09559515 | I24: 0 | K24: 54.09559515
B25: ='Capital Cont Inputs'!N15 -> 2022 | C25: ='NPV Calc'!$Q$10 -> 58.31781849 | D25: ='NPV Calc'!$Q$11 -> 0 | E25: 58.31781849 | I25: 0 | K25: 58.31781849
B26: ='Capital Cont Inputs'!O15 -> 2023 | C26: ='NPV Calc'!$R$10 -> 62.37168764 | D26: ='NPV Calc'!$R$11 -> 0 | E26: 62.37168764 | I26: 0 | K26: 62.37168764
B27: ='Capital Cont Inputs'!P15 -> 2024 | C27: ='NPV Calc'!$S$10 -> 65.9458361 | D27: ='NPV Calc'!$S$11 -> 0 | E27: 65.9458361 | I27: 0 | K27: 65.9458361
B28: ='Capital Cont Inputs'!Q15 -> 2025 | C28: ='NPV Calc'!$T$10 -> 69.911763 | D28: ='NPV Calc'!$T$11 -> 0 | E28: 69.911763 | I28: 0 | K28: 69.911763
B29: ='Capital Cont Inputs'!R15 -> 2026 | C29: ='NPV Calc'!$U$10 -> 74.41029933 | D29: ='NPV Calc'!$U$11 -> 0 | E29: 74.41029933 | I29: 0 | K29: 74.41029933
B30: ='Capital Cont Inputs'!S15 -> 2027 | C30: ='NPV Calc'!$V$10 -> 78.79436044 | D30: ='NPV Calc'!$V$11 -> 0 | E30: 78.79436044 | I30: 0 | K30: 78.79436044
B31: ='Capital Cont Inputs'!T15 -> 2028 | C31: ='NPV Calc'!$W$10 -> 82.93702224 | D31: ='NPV Calc'!$W$11 -> 0 | E31: 82.93702224 | I31: 0 | K31: 82.93702224
B32: ='Capital Cont Inputs'!U15 -> 2029 | C32: ='NPV Calc'!$X$10 -> 87.53642255 | D32: ='NPV Calc'!$X$11 -> 0 | E32: 87.53642255 | I32: 0 | K32: 87.53642255
B33: ='Capital Cont Inputs'!V15 -> 2030 | C33: ='NPV Calc'!$Y$10 -> 92.1605076 | D33: ='NPV Calc'!$Y$11 -> 0 | E33: 92.1605076 | I33: 0 | K33: 92.1605076
B34: ='Capital Cont Inputs'!W15 -> 2031 | C34: ='NPV Calc'!$Z$10 -> 95.82298243 | D34: ='NPV Calc'!$Z$11 -> 0 | E34: 95.82298243 | I34: 0 | K34: 95.82298243
B35: ='Capital Cont Inputs'!X15 -> 2032 | C35: ='NPV Calc'!$AA$10 -> 99.71285479 | D35: ='NPV Calc'!$AA$11 -> 0 | E35: 99.71285479 | I35: 0 | K35: 99.71285479
B36: ='Capital Cont Inputs'!Y15 -> 2033 | C36: ='NPV Calc'!$AB$10 -> 103.5145354 | D36: ='NPV Calc'!$AB$11 -> 0 | E36: 103.5145354 | I36: 0 | K36: 103.5145354
B37: ='Capital Cont Inputs'!Z15 -> 2034 | C37: ='NPV Calc'!$AC$10 -> 106.89774 | D37: ='NPV Calc'!$AC$11 -> 0 | E37: 106.89774 | I37: 0 | K37: 106.89774
B38: ='Capital Cont Inputs'!AA15 -> 2035 | C38: ='NPV Calc'!$AD$10 -> 110.7333098 | D38: ='NPV Calc'!$AD$11 -> 0 | E38: 110.7333098 | I38: 0 | K38: 110.7333098
B39: Total | C39: =SUM(C14:C38) -> 1617.164131 | D39: =SUM(D14:D38) -> 0 | E39: 1617.164131 | G39: =SUM(G14:G38) -> 0 | H39: =SUM(H14:H38) -> 0 | I39: =SUM(I14:I38) -> 0 | K39: =E39-I39 -> 1617.164131
B41: Tariff Rate Applied ($/kW/Month) | E41: ='NPV Calc'!$F$14 -> 1.61 | I41: ='NPV Calc'!$F$14 -> 1.61 | K41: ='NPV Calc'!$F$14 -> 1.61
B43: Total Revenue ($k) | E43: =E39*E41*12 -> 31243.61101 | I43: =I39*I41*12 -> 0 | K43: =K39*K41*12 -> 31243.61101
B45: Discounted Cash Flow Summary:
E46: $k | I46: $k | K46: $k
B47: PV Incremental Revenue | E47: ='Standard Report'!J73 -> 14276.30632 | K47: =IF(E47-I47=0,"",E47-I47) -> 14276.30632
B48: PV OM&A Costs | E48: ='Standard Report'!J74 -> -646.1867526 | K48: =IF(E48-I48=0,"",E48-I48) -> -646.1867526
B49: PV Municipal Tax | E49: ='Standard Report'!J75 -> -1086.284474 | K49: -1086.284474
B50: PV Income Taxes | E50: ='Standard Report'!J76 -> -4202.184755 | K50: -4202.184755
B51: PV CCA Tax Shield | E51: ='Standard Report'!J77 -> 1980.792649 | K51: 1980.792649
B52: PV Capital - Upfront | E52: ='Standard Report'!I78 -> -23871 | K52: -23871
B53: PV Capital Contribution1 | E53: ='Standard Report'!I79 -> 13550.15763 | K53: 13550.15763
B54: PV Capital - On-going | E54: ='Standard Report'!J80 -> 0
B55: PV Proceeds on disposal of assets | E55: ='Standard Report'!J81 -> 0
B56: PV Working Capital | E56: ='Standard Report'!J82 -> -1.600609095 | K56: -1.600609095
B57: PV Surplus / (Shortfall) | E57: =SUM(E47:E56) -> -2.285949208e-12 | I57: =SUM(I47:I56) -> 0 | K57: =SUM(K47:K56) -> -2.285949208e-12
B60: Notes:

Sheet Menus
B2: Tab | C2: Cell Name | D2: Contents
B3: Project Inputs | C3: ='Project Inputs'!A28 -> Current stage of economic evaluation: | D3: ='Standard Inputs'!E54 -> Estimated cost
D4: ='Standard Inputs'!E55 -> Actual cost
D5: ='Standard Inputs'!E56 -> 1st true-up
D6: ='Standard Inputs'!E57 -> 2nd true-up
D7: ='Standard Inputs'!E58 -> 3rd true-up
D8: ='Standard Inputs'!E59 -> 4th true-up
D9: ='Standard Inputs'!E60 -> 5th true-up
E11: Evaluation period (years):
B12: Project Inputs | C12: ='Project Inputs'!A19 -> Customer Risk Classification | D12: High | E12: 5
D13: Medium-high | E13: 10
D14: Medium-low | E14: 15
D15: Low | E15: 25
B18: Project Inputs | C18: ='Project Inputs'!A17 -> Type of Project: | D18: Transformation
D19: Network
D20: Line
B23: Project Inputs | C23: Asset Types: | D23: Line - Overhead
D24: Line - Underground
D25: Network - SS
D26: Network - TS
D27: Station - DESN
D28: Station - single
D29: N/A
B32: Project Inputs | C32: Multiple uses | D32: Yes
B33: Prelim Calc | D33: No
B34: NPV Calc
B37: Project Inputs | C37: ='Project Inputs'!A75 -> Is this load based on calendar or project year? | D37: Project Year
D38: Calendar Year
B41: Standard Inputs | C41: HST/GST? | D41: HST
D42: GST
B45: Capital Contributions & Municipal | C45: Net/Gross? | D45: Net
B46: Taxes | D46: Gross
B49: Capital Cont Inputs | D49: IEE/True-up
D50: Revenue Guarantee
